account_party,address,code,date,document_number,expense_code_name,expense_code_name_short,id,party_cell,party_cell_code,party_cell_geoobject,purpose,source_bank_account_number,source_bank_account_type,sum,target_legal_personality,target_legal_personality_code,target_type
РПЛ,"Київ, вулиця Миколи Лєскова, 9",70,2017-12-29,bn,Банківські послуги,Інші витрати,120332,Центральний офіс,37279703,Україна,Комісія за вих. Перекази в нацвалюті,26006580179,current,266.00,"АТ ""Райффайзен банк Аваль""",14305909,юридична особа
РПЛ,"Київ, вулиця Миколи Лєскова, 9",70,2017-12-29,bn,Банківські послуги,Інші витрати,120331,Центральний офіс,37279703,Україна,Комісія за вих. Перекази в нацвалюті,26006580179,current,250.00,"АТ ""Райффайзен банк Аваль""",14305909,юридична особа
РПЛ,"Київ, вулиця Миколи Лєскова, 9",70,2017-12-29,bn,Банківські послуги,Інші витрати,120330,Центральний офіс,37279703,Україна,Комісія за вих. Перекази в нацвалюті,26006580179,current,20.00,"АТ ""Райффайзен банк Аваль""",14305909,юридична особа
РПЛ,"Вінницька область, Вінниця, вулиця Академіка Янгеля, 45",79,2017-12-28,485,"Оренда будинків і приміщень та експлуатаційні витрати (прибирання, страхування орендованих будинків, охорона, сигналізація, ремонт, вивіз сміття, тощо)",Оренда нерухомості,120527,Центральний офіс,37279703,Україна,Вода питна,26006580179,current,160.00,"ТОВ ""Еко-сфера""",32320552,юридична особа
РПЛ,"Київ, вулиця Мечникова, 2",51,2017-12-28,486,Оплата ефірного часу на ТБ,Телереклама,120214,Центральний офіс,37279703,Україна,Послуги з розміщення інформаційного ролику в ефірі телеканалу,26009580176,state,22000.00,"ТОВ ""Телеканал ""Прямий""",04948693,юридична особа
РПЛ,"Київ, вулиця Дегтярівська, 21Г",51,2017-12-27,483,Оплата ефірного часу на ТБ,Телереклама,121062,Центральний офіс,37279703,Україна,Послуги з забезпечення розміщення інформаційного відеоматеріалу в ефірі телеканалу,26009580176,state,979128.00,"ТОВ ""Інформаційне агентство ""112-Україна""",,юридична особа
РПЛ,"Київ, вулиця Бастіонна, 6",43,2017-12-27,482,Інші витрати,Інші витрати,120726,Центральний офіс,37279703,Україна,Адміністративний збір за проведення державної регістрації,26006580179,current,480.00,ДКСУ,37567646,юридична особа
РПЛ,"Київ, вулиця Мечникова, 2",51,2017-12-27,484,Оплата ефірного часу на ТБ,Телереклама,120213,Центральний офіс,37279703,Україна,Послуги з розміщення інформаційного ролику в ефірі телеканалу,26009580176,state,812393.78,"ТОВ ""Телеканал ""Прямий""",04948693,юридична особа
РПЛ,Житомирська область,84,2017-12-26,476,"Заробітна плата, премії","Заробітна плата, лікарняні, вагітності, відрядження, компенсації",123897,Центральний офіс,37279703,Україна,Заробітна плата за грудень,26009580176,state,4215.27,Рачковська-Долгих Віра Миколаївна,,фізична особа
РПЛ,"Луганська область, Сєвєродонецьк",84,2017-12-26,474,"Заробітна плата, премії","Заробітна плата, лікарняні, вагітності, відрядження, компенсації",123896,Центральний офіс,37279703,Україна,Заробітна плата за грудень,26009580176,state,6557.09,Камінський Володимир Володимирович,,фізична особа
РПЛ,Київ,84,2017-12-26,472,"Заробітна плата, премії","Заробітна плата, лікарняні, вагітності, відрядження, компенсації",123895,Центральний офіс,37279703,Україна,Заробітна плата за грудень,26009580176,state,2576.00,Нагорська Марина Володимирівна,,фізична особа
РПЛ,Київ,84,2017-12-26,471,"Заробітна плата, премії","Заробітна плата, лікарняні, вагітності, відрядження, компенсації",123894,Центральний офіс,37279703,Україна,Заробітна плата за грудень,26009580176,state,17710.00,Мєдвєдєв Олександр Леонідович,,фізична особа
РПЛ,"Одеська область, Одеса",84,2017-12-26,470,"Заробітна плата, премії","Заробітна плата, лікарняні, вагітності, відрядження, компенсації",123893,Центральний офіс,37279703,Україна,Заробітна плата за грудень,26009580176,state,5152.00,Щербініна Валентина Леонідівна,,фізична особа
РПЛ,Київ,84,2017-12-26,468,"Заробітна плата, премії","Заробітна плата, лікарняні, вагітності, відрядження, компенсації",123892,Центральний офіс,37279703,Україна,Заробітна плата за грудень,26009580176,state,9458.75,Яковлєва Вероніка Павлівна,,фізична особа
РПЛ,Київ,84,2017-12-26,468,"Заробітна плата, премії","Заробітна плата, лікарняні, вагітності, відрядження, компенсації",123891,Центральний офіс,37279703,Україна,Заробітна плата за грудень,26009580176,state,12839.75,Якименко Оксана Сергіївна,,фізична особа
РПЛ,"Дніпропетровська область, Дніпро́",84,2017-12-26,468,"Заробітна плата, премії","Заробітна плата, лікарняні, вагітності, відрядження, компенсації",123890,Центральний офіс,37279703,Україна,Заробітна плата за грудень,26009580176,state,6762.00,Штогрін Тетяна Миколаївна,,фізична особа
РПЛ,Київ,84,2017-12-26,468,"Заробітна плата, премії","Заробітна плата, лікарняні, вагітності, відрядження, компенсації",123889,Центральний офіс,37279703,Україна,Заробітна плата за грудень,26009580176,state,6842.50,Шищенко Наталка Олександрівна,,фізична особа
РПЛ,Київ,84,2017-12-26,468,"Заробітна плата, премії","Заробітна плата, лікарняні, вагітності, відрядження, компенсації",123888,Центральний офіс,37279703,Україна,Заробітна плата за грудень,26009580176,state,18273.50,Шаян Євген Леонідович,,фізична особа
РПЛ,"Донецька область, Донецьк",84,2017-12-26,468,"Заробітна плата, премії","Заробітна плата, лікарняні, вагітності, відрядження, компенсації",123887,Центральний офіс,37279703,Україна,Заробітна плата за грудень,26009580176,state,14369.25,Чухляк Ольга Олегівна,,фізична особа
РПЛ,"Вінницька область, Вінниця",84,2017-12-26,468,"Заробітна плата, премії","Заробітна плата, лікарняні, вагітності, відрядження, компенсації",123886,Центральний офіс,37279703,Україна,Заробітна плата за грудень,26009580176,state,5152.00,Чонка Софія Миколаївна,,фізична особа
РПЛ,"Дніпропетровська область, Синельникове",84,2017-12-26,468,"Заробітна плата, премії","Заробітна плата, лікарняні, вагітності, відрядження, компенсації",123885,Центральний офіс,37279703,Україна,Заробітна плата за грудень,26009580176,state,6762.00,Чернова Катерина Валеріївна,,фізична особа
РПЛ,"Тернопільська область, Збаразький район, Збараж",84,2017-12-26,468,"Заробітна плата, премії","Заробітна плата, лікарняні, вагітності, відрядження, компенсації",123884,Центральний офіс,37279703,Україна,Заробітна плата за грудень,26009580176,state,5152.00,Чернета Роман Іванович,,фізична особа
РПЛ,"Житомирська область, Житомир",84,2017-12-26,468,"Заробітна плата, премії","Заробітна плата, лікарняні, вагітності, відрядження, компенсації",123883,Центральний офіс,37279703,Україна,Заробітна плата за грудень,26009580176,state,6762.00,Цивінський Павло Васильович,,фізична особа
РПЛ,"Дніпропетровська область, Дніпро́",84,2017-12-26,468,"Заробітна плата, премії","Заробітна плата, лікарняні, вагітності, відрядження, компенсації",123882,Центральний офіс,37279703,Україна,Заробітна плата за грудень,26009580176,state,6762.00,Цаплін Євген Костянтинович,,фізична особа
РПЛ,"Запорізька область, Запоріжжя",84,2017-12-26,468,"Заробітна плата, премії","Заробітна плата, лікарняні, вагітності, відрядження, компенсації",123881,Центральний офіс,37279703,Україна,Заробітна плата за грудень,26009580176,state,6762.00,Хохлов Юрій Станіславович,,фізична особа
РПЛ,Київ,84,2017-12-26,468,"Заробітна плата, премії","Заробітна плата, лікарняні, вагітності, відрядження, компенсації",123880,Центральний офіс,37279703,Україна,Заробітна плата за грудень,26009580176,state,5152.00,Хоменко Клим Миколайович,,фізична особа
РПЛ,"Київська обл., Бориспіль",84,2017-12-26,468,"Заробітна плата, премії","Заробітна плата, лікарняні, вагітності, відрядження, компенсації",123879,Центральний офіс,37279703,Україна,Заробітна плата за грудень,26009580176,state,15415.75,Федун Юрій Степанович,,фізична особа
РПЛ,"Вінницька область, Вінниця",84,2017-12-26,468,"Заробітна плата, премії","Заробітна плата, лікарняні, вагітності, відрядження, компенсації",123878,Центральний офіс,37279703,Україна,Заробітна плата за грудень,26009580176,state,2640.40,Федорова Ольга Іванівна,,фізична особа
РПЛ,"Чернігівська область, Чернігів",84,2017-12-26,468,"Заробітна плата, премії","Заробітна плата, лікарняні, вагітності, відрядження, компенсації",123877,Центральний офіс,37279703,Україна,Заробітна плата за грудень,26009580176,state,6762.00,Урожай Аліна Вікторівна,,фізична особа
РПЛ,"Луганська область, Борівське",84,2017-12-26,468,"Заробітна плата, премії","Заробітна плата, лікарняні, вагітності, відрядження, компенсації",123876,Центральний офіс,37279703,Україна,Заробітна плата за грудень,26009580176,state,6762.00,Троценко Ольга Анатоліївна,,фізична особа
РПЛ,"Волинська область, Ратнівський район, Ратне",84,2017-12-26,468,"Заробітна плата, премії","Заробітна плата, лікарняні, вагітності, відрядження, компенсації",123875,Центральний офіс,37279703,Україна,Заробітна плата за грудень,26009580176,state,6762.00,Трикош Ірина Олександрівна,,фізична особа
РПЛ,Київ,84,2017-12-26,468,"Заробітна плата, премії","Заробітна плата, лікарняні, вагітності, відрядження, компенсації",123874,Центральний офіс,37279703,Україна,Заробітна плата за грудень,26009580176,state,18917.50,Торговець Юлія Василівна,,фізична особа
РПЛ,Київ,84,2017-12-26,468,"Заробітна плата, премії","Заробітна плата, лікарняні, вагітності, відрядження, компенсації",123873,Центральний офіс,37279703,Україна,Заробітна плата за грудень,26009580176,state,2576.00,Ткаченко Катерина Станіславівна,,фізична особа
РПЛ,"Донецька область, Маріуполь",84,2017-12-26,468,"Заробітна плата, премії","Заробітна плата, лікарняні, вагітності, відрядження, компенсації",123872,Центральний офіс,37279703,Україна,Заробітна плата за грудень,26009580176,state,10304.00,Ткач Максим Миколайович,,фізична особа
РПЛ,"Київська обл., Володарський район, Володарка",84,2017-12-26,468,"Заробітна плата, премії","Заробітна плата, лікарняні, вагітності, відрядження, компенсації",123871,Центральний офіс,37279703,Україна,Заробітна плата за грудень,26009580176,state,5152.00,Тихонова Світлана Ігорівна,,фізична особа
РПЛ,"Сумська область, Сумський район, Суми",84,2017-12-26,468,"Заробітна плата, премії","Заробітна плата, лікарняні, вагітності, відрядження, компенсації",123870,Центральний офіс,37279703,Україна,Заробітна плата за грудень,26009580176,state,3381.00,Тихенко Володимир Сергійович,,фізична особа
РПЛ,"Чернігівська область, Корюківський район, Корюківка",84,2017-12-26,468,"Заробітна плата, премії","Заробітна плата, лікарняні, вагітності, відрядження, компенсації",123869,Центральний офіс,37279703,Україна,Заробітна плата за грудень,26009580176,state,13242.25,Стукало Світлана Анатоліївна,,фізична особа
РПЛ,"Луганська область, Луганськ",84,2017-12-26,468,"Заробітна плата, премії","Заробітна плата, лікарняні, вагітності, відрядження, компенсації",123868,Центральний офіс,37279703,Україна,Заробітна плата за грудень,26009580176,state,6762.00,Старицький Владислав Олександрович,,фізична особа
РПЛ,"Чернігівська область, Чернігів",84,2017-12-26,468,"Заробітна плата, премії","Заробітна плата, лікарняні, вагітності, відрядження, компенсації",123867,Центральний офіс,37279703,Україна,Заробітна плата за грудень,26009580176,state,17629.50,Соколова Анжеліка Артурівна,,фізична особа
РПЛ,"Львівська область, Городоцький район, Городок",84,2017-12-26,468,"Заробітна плата, премії","Заробітна плата, лікарняні, вагітності, відрядження, компенсації",123866,Центральний офіс,37279703,Україна,Заробітна плата за грудень,26009580176,state,5152.00,Снігур Христина Іванівна,,фізична особа
РПЛ,"Сумська область, Сумський район, Суми",84,2017-12-26,468,"Заробітна плата, премії","Заробітна плата, лікарняні, вагітності, відрядження, компенсації",123865,Центральний офіс,37279703,Україна,Заробітна плата за грудень,26009580176,state,6762.00,Скляров Олександр Павлович,,фізична особа
РПЛ,"Черкаська область, Черкаси",84,2017-12-26,468,"Заробітна плата, премії","Заробітна плата, лікарняні, вагітності, відрядження, компенсації",123864,Центральний офіс,37279703,Україна,Заробітна плата за грудень,26009580176,state,5152.00,Сичов Ігор Григорович,,фізична особа
РПЛ,"Сумська область, Сумський район, Суми",84,2017-12-26,468,"Заробітна плата, премії","Заробітна плата, лікарняні, вагітності, відрядження, компенсації",123863,Центральний офіс,37279703,Україна,Заробітна плата за грудень,26009580176,state,4186.00,Сидоренко Дарʼя Олександрівна,,фізична особа
РПЛ,"Львівська область, Львів",84,2017-12-26,468,"Заробітна плата, премії","Заробітна плата, лікарняні, вагітності, відрядження, компенсації",123862,Центральний офіс,37279703,Україна,Заробітна плата за грудень,26009580176,state,3381.00,Сидор Адріана Ігорівна,,фізична особа
РПЛ,"Чернівецька область, Чернівці",84,2017-12-26,468,"Заробітна плата, премії","Заробітна плата, лікарняні, вагітності, відрядження, компенсації",123861,Центральний офіс,37279703,Україна,Заробітна плата за грудень,26009580176,state,6762.00,Сербенюк Андрій Альфредович,,фізична особа
РПЛ,"Волинська область, Луцьк",84,2017-12-26,468,"Заробітна плата, премії","Заробітна плата, лікарняні, вагітності, відрядження, компенсації",123860,Центральний офіс,37279703,Україна,Заробітна плата за грудень,26009580176,state,6762.00,Семчук Юрій Анатолійович,,фізична особа
РПЛ,"Київ, вулиця Максима Берлинського, 6, 14",84,2017-12-26,468,"Заробітна плата, премії","Заробітна плата, лікарняні, вагітності, відрядження, компенсації",123859,Центральний офіс,37279703,Україна,Заробітна плата за грудень,26009580176,state,6762.00,Самсонова Аліна Вікторівна,2947606863,фізична особа
РПЛ,"Сумська область, Шостка",84,2017-12-26,468,"Заробітна плата, премії","Заробітна плата, лікарняні, вагітності, відрядження, компенсації",123858,Центральний офіс,37279703,Україна,Заробітна плата за грудень,26009580176,state,5152.00,Садовой Артем Володимирович,,фізична особа
РПЛ,"Закарпатська область, Ужгород",84,2017-12-26,468,"Заробітна плата, премії","Заробітна плата, лікарняні, вагітності, відрядження, компенсації",123857,Центральний офіс,37279703,Україна,Заробітна плата за грудень,26009580176,state,6762.00,Рудман Олеся Іванівна,,фізична особа
РПЛ,"Дніпропетровська область, Дніпро́",84,2017-12-26,468,"Заробітна плата, премії","Заробітна плата, лікарняні, вагітності, відрядження, компенсації",123856,Центральний офіс,37279703,Україна,Заробітна плата за грудень,26009580176,state,6762.00,Ревенко Юлія Сергіївна,,фізична особа
РПЛ,"Чернівецька область, Чернівці",84,2017-12-26,468,"Заробітна плата, премії","Заробітна плата, лікарняні, вагітності, відрядження, компенсації",123855,Центральний офіс,37279703,Україна,Заробітна плата за грудень,26009580176,state,2576.00,Пузема Катерина Володимирівна,,фізична особа
РПЛ,Київ,84,2017-12-26,468,"Заробітна плата, премії","Заробітна плата, лікарняні, вагітності, відрядження, компенсації",123854,Центральний офіс,37279703,Україна,Заробітна плата за грудень,26009580176,state,17629.50,Пугачова Ярослава Павлівна,,фізична особа
РПЛ,"Хмельницька область, Красилівський район, Красилів",84,2017-12-26,468,"Заробітна плата, премії","Заробітна плата, лікарняні, вагітності, відрядження, компенсації",123853,Центральний офіс,37279703,Україна,Заробітна плата за грудень,26009580176,state,3260.94,Процюк Наталія Юріївна,,фізична особа
РПЛ,Київ,84,2017-12-26,468,"Заробітна плата, премії","Заробітна плата, лікарняні, вагітності, відрядження, компенсації",123852,Центральний офіс,37279703,Україна,Заробітна плата за грудень,26009580176,state,14369.25,Приміський Олег Владиславович,,фізична особа
РПЛ,"Київська обл., Обухівський район, Обухів",84,2017-12-26,468,"Заробітна плата, премії","Заробітна плата, лікарняні, вагітності, відрядження, компенсації",123851,Центральний офіс,37279703,Україна,Заробітна плата за грудень,26009580176,state,6762.00,Потеряйко Вадим Юрійович,,фізична особа
РПЛ,"Закарпатська область, Ужгород",84,2017-12-26,468,"Заробітна плата, премії","Заробітна плата, лікарняні, вагітності, відрядження, компенсації",123850,Центральний офіс,37279703,Україна,Заробітна плата за грудень,26009580176,state,3381.00,Попадюк Надія Іванівна,,фізична особа
РПЛ,Київ,84,2017-12-26,468,"Заробітна плата, премії","Заробітна плата, лікарняні, вагітності, відрядження, компенсації",123849,Центральний офіс,37279703,Україна,Заробітна плата за грудень,26009580176,state,16180.50,Поліщук Анна Валентинівна,,фізична особа
РПЛ,"Сумська область, Сумський район, Суми",84,2017-12-26,468,"Заробітна плата, премії","Заробітна плата, лікарняні, вагітності, відрядження, компенсації",123848,Центральний офіс,37279703,Україна,Заробітна плата за грудень,26009580176,state,2782.71,Пінчук Юрій Петрович,,фізична особа
РПЛ,"Одеська область, Одеса",84,2017-12-26,468,"Заробітна плата, премії","Заробітна плата, лікарняні, вагітності, відрядження, компенсації",123847,Центральний офіс,37279703,Україна,Заробітна плата за грудень,26009580176,state,5152.00,Перчеклій Микола Васильович,,фізична особа
РПЛ,Київ,84,2017-12-26,468,"Заробітна плата, премії","Заробітна плата, лікарняні, вагітності, відрядження, компенсації",123846,Центральний офіс,37279703,Україна,Заробітна плата за грудень,26009580176,state,5152.00,Пархоменко Аліна Петрівна,,фізична особа
РПЛ,Київ,84,2017-12-26,468,"Заробітна плата, премії","Заробітна плата, лікарняні, вагітності, відрядження, компенсації",123845,Центральний офіс,37279703,Україна,Заробітна плата за грудень,26009580176,state,6762.00,Парака Ярослава Володимирівна,,фізична особа
РПЛ,"Київська обл., Васильків",84,2017-12-26,468,"Заробітна плата, премії","Заробітна плата, лікарняні, вагітності, відрядження, компенсації",123844,Центральний офіс,37279703,Україна,Заробітна плата за грудень,26009580176,state,16583.00,Падурець Людмила Володимирівна,,фізична особа
РПЛ,"Київська обл., Біла Церква",84,2017-12-26,468,"Заробітна плата, премії","Заробітна плата, лікарняні, вагітності, відрядження, компенсації",123843,Центральний офіс,37279703,Україна,Заробітна плата за грудень,26009580176,state,3823.75,Остапенко Сергій Анатолійович,,фізична особа
РПЛ,"Харківська область, Харків",84,2017-12-26,468,"Заробітна плата, премії","Заробітна плата, лікарняні, вагітності, відрядження, компенсації",123842,Центральний офіс,37279703,Україна,Заробітна плата за грудень,26009580176,state,5152.00,Олійник Костянтин Михайлович,,фізична особа
РПЛ,"Чернігівська область, Чернігів",84,2017-12-26,468,"Заробітна плата, премії","Заробітна плата, лікарняні, вагітності, відрядження, компенсації",123841,Центральний офіс,37279703,Україна,Заробітна плата за грудень,26009580176,state,5152.00,Олексієнко Ярослав Олександрович,,фізична особа
РПЛ,Київ,84,2017-12-26,468,"Заробітна плата, премії","Заробітна плата, лікарняні, вагітності, відрядження, компенсації",123840,Центральний офіс,37279703,Україна,Заробітна плата за грудень,26009580176,state,14530.25,Новохацька Олександра Вікторівна,,фізична особа
РПЛ,"Тернопільська область, Тернопіль",84,2017-12-26,468,"Заробітна плата, премії","Заробітна плата, лікарняні, вагітності, відрядження, компенсації",123839,Центральний офіс,37279703,Україна,Заробітна плата за грудень,26009580176,state,6762.00,Німко Олег Васильович,,фізична особа
РПЛ,Київ,84,2017-12-26,468,"Заробітна плата, премії","Заробітна плата, лікарняні, вагітності, відрядження, компенсації",123838,Центральний офіс,37279703,Україна,Заробітна плата за грудень,26009580176,state,12075.00,Нечипорук Олександр Григорович,,фізична особа
РПЛ,"Рівненська область, Рівне",84,2017-12-26,468,"Заробітна плата, премії","Заробітна плата, лікарняні, вагітності, відрядження, компенсації",123837,Центральний офіс,37279703,Україна,Заробітна плата за грудень,26009580176,state,6762.00,Назарчук Юлія Юріївна,,фізична особа
РПЛ,"Запорізька область, Запоріжжя",84,2017-12-26,468,"Заробітна плата, премії","Заробітна плата, лікарняні, вагітності, відрядження, компенсації",123836,Центральний офіс,37279703,Україна,Заробітна плата за грудень,26009580176,state,6781.55,Надолинський Ростислав Федорович,,фізична особа
РПЛ,"Полтавська область, Лубенський район, Новооріхівка",84,2017-12-26,468,"Заробітна плата, премії","Заробітна плата, лікарняні, вагітності, відрядження, компенсації",123835,Центральний офіс,37279703,Україна,Заробітна плата за грудень,26009580176,state,3381.00,Моренко Лідія Сергіївна,,фізична особа
РПЛ,"Полтавська область, Лубенський район, Новооріхівка",84,2017-12-26,468,"Заробітна плата, премії","Заробітна плата, лікарняні, вагітності, відрядження, компенсації",123834,Центральний офіс,37279703,Україна,Заробітна плата за грудень,26009580176,state,3381.00,Мірошниченко Віталій Григорович,,фізична особа
РПЛ,"Львівська область, Львів",84,2017-12-26,468,"Заробітна плата, премії","Заробітна плата, лікарняні, вагітності, відрядження, компенсації",123833,Центральний офіс,37279703,Україна,Заробітна плата за грудень,26009580176,state,6762.00,Мигул Олеся Стефанівна,,фізична особа
РПЛ,Київ,84,2017-12-26,468,"Заробітна плата, премії","Заробітна плата, лікарняні, вагітності, відрядження, компенсації",123832,Центральний офіс,37279703,Україна,Заробітна плата за грудень,26009580176,state,18273.50,Мелещук Наталія Володимирівна,,фізична особа
РПЛ,"Полтавська область, Полтава",84,2017-12-26,468,"Заробітна плата, премії","Заробітна плата, лікарняні, вагітності, відрядження, компенсації",123831,Центральний офіс,37279703,Україна,Заробітна плата за грудень,26009580176,state,14168.00,Матяш Руслан Анатолійович,,фізична особа
РПЛ,"Кіровоградська область, Олександрія",84,2017-12-26,468,"Заробітна плата, премії","Заробітна плата, лікарняні, вагітності, відрядження, компенсації",123830,Центральний офіс,37279703,Україна,Заробітна плата за грудень,26009580176,state,14307.93,Матвієць Вікторія Олександрівна,,фізична особа
РПЛ,"Одеська область, Подільськ",84,2017-12-26,468,"Заробітна плата, премії","Заробітна плата, лікарняні, вагітності, відрядження, компенсації",123829,Центральний офіс,37279703,Україна,Заробітна плата за грудень,26009580176,state,6762.00,Максимчук Марина Юріївна,,фізична особа
РПЛ,Київ,84,2017-12-26,468,"Заробітна плата, премії","Заробітна плата, лікарняні, вагітності, відрядження, компенсації",123828,Центральний офіс,37279703,Україна,Заробітна плата за грудень,26009580176,state,16583.00,Макарова Юлія Миколаївна,,фізична особа
РПЛ,"Івано-Франківська область, Івано-Франківськ",84,2017-12-26,468,"Заробітна плата, премії","Заробітна плата, лікарняні, вагітності, відрядження, компенсації",123827,Центральний офіс,37279703,Україна,Заробітна плата за грудень,26009580176,state,5152.00,Мазур Юрій Валентинович,,фізична особа
РПЛ,Київ,84,2017-12-26,468,"Заробітна плата, премії","Заробітна плата, лікарняні, вагітності, відрядження, компенсації",123826,Центральний офіс,37279703,Україна,Заробітна плата за грудень,26009580176,state,7526.75,Ляшенко Андрій Віталійович,,фізична особа
РПЛ,"Кіровоградська область, Новомиргородський район, Мартоноша",84,2017-12-26,468,"Заробітна плата, премії","Заробітна плата, лікарняні, вагітності, відрядження, компенсації",123825,Центральний офіс,37279703,Україна,Заробітна плата за грудень,26009580176,state,6762.00,Лягур Ірина Василівна,,фізична особа
РПЛ,"Закарпатська область, Ужгородський район, Часлівці",84,2017-12-26,468,"Заробітна плата, премії","Заробітна плата, лікарняні, вагітності, відрядження, компенсації",123824,Центральний офіс,37279703,Україна,Заробітна плата за грудень,26009580176,state,3381.00,Лютянський Сергій Іванович,,фізична особа
РПЛ,Київ,84,2017-12-26,468,"Заробітна плата, премії","Заробітна плата, лікарняні, вагітності, відрядження, компенсації",123823,Центральний офіс,37279703,Україна,Заробітна плата за грудень,26009580176,state,9559.37,Лінська Віта Юріївна,,фізична особа
РПЛ,"Одеська область, Одеса",84,2017-12-26,468,"Заробітна плата, премії","Заробітна плата, лікарняні, вагітності, відрядження, компенсації",123822,Центральний офіс,37279703,Україна,Заробітна плата за грудень,26009580176,state,5152.00,Лисейко Оксана Вікторівна,,фізична особа
РПЛ,"Одеська область, Одеса",84,2017-12-26,468,"Заробітна плата, премії","Заробітна плата, лікарняні, вагітності, відрядження, компенсації",123821,Центральний офіс,37279703,Україна,Заробітна плата за грудень,26009580176,state,5152.00,Лисейко Ігор Федорович,,фізична особа
РПЛ,Київ,84,2017-12-26,468,"Заробітна плата, премії","Заробітна плата, лікарняні, вагітності, відрядження, компенсації",123820,Центральний офіс,37279703,Україна,Заробітна плата за грудень,26009580176,state,5152.00,Линовицький Ігор Олександрович,,фізична особа
РПЛ,Київ,84,2017-12-26,468,"Заробітна плата, премії","Заробітна плата, лікарняні, вагітності, відрядження, компенсації",123819,Центральний офіс,37279703,Україна,Заробітна плата за грудень,26009580176,state,16583.00,Куц Тарас Федорович,,фізична особа
РПЛ,"Черкаська область, Черкаський район, Дубіївка",84,2017-12-26,468,"Заробітна плата, премії","Заробітна плата, лікарняні, вагітності, відрядження, компенсації",123818,Центральний офіс,37279703,Україна,Заробітна плата за грудень,26009580176,state,17710.00,Кутілова Вікторія Володимирівна,,фізична особа
РПЛ,"Івано-Франківська область, Тисменицький район, Чукалівка",84,2017-12-26,468,"Заробітна плата, премії","Заробітна плата, лікарняні, вагітності, відрядження, компенсації",123817,Центральний офіс,37279703,Україна,Заробітна плата за грудень,26009580176,state,5152.00,Кривченко Тетяна Миколаївна,,фізична особа
РПЛ,"Київська обл., Васильків",84,2017-12-26,468,"Заробітна плата, премії","Заробітна плата, лікарняні, вагітності, відрядження, компенсації",123816,Центральний офіс,37279703,Україна,Заробітна плата за грудень,26009580176,state,8050.00,Криворучко Ігор Олегович,,фізична особа
РПЛ,"Чернігівська область, Ічнянський район, Ічня",84,2017-12-26,468,"Заробітна плата, премії","Заробітна плата, лікарняні, вагітності, відрядження, компенсації",123815,Центральний офіс,37279703,Україна,Заробітна плата за грудень,26009580176,state,3381.00,Крамаренко Сергій Миколайович,,фізична особа
РПЛ,Київ,84,2017-12-26,468,"Заробітна плата, премії","Заробітна плата, лікарняні, вагітності, відрядження, компенсації",123814,Центральний офіс,37279703,Україна,Заробітна плата за грудень,26009580176,state,7017.99,Кравченко Сергій Вікторович,,фізична особа
РПЛ,"Київська обл., Бровари",84,2017-12-26,468,"Заробітна плата, премії","Заробітна плата, лікарняні, вагітності, відрядження, компенсації",123813,Центральний офіс,37279703,Україна,Заробітна плата за грудень,26009580176,state,5152.00,Кравченко Олександр Миколайович,,фізична особа
РПЛ,Київ,84,2017-12-26,468,"Заробітна плата, премії","Заробітна плата, лікарняні, вагітності, відрядження, компенсації",123812,Центральний офіс,37279703,Україна,Заробітна плата за грудень,26009580176,state,17710.00,Короткий Геннадій Леонідович,,фізична особа
РПЛ,Київ,84,2017-12-26,468,"Заробітна плата, премії","Заробітна плата, лікарняні, вагітності, відрядження, компенсації",123811,Центральний офіс,37279703,Україна,Заробітна плата за грудень,26009580176,state,6762.00,Кондюх Андрій Олегович,,фізична особа
РПЛ,"Рівненська область, Рівне",84,2017-12-26,468,"Заробітна плата, премії","Заробітна плата, лікарняні, вагітності, відрядження, компенсації",123810,Центральний офіс,37279703,Україна,Заробітна плата за грудень,26009580176,state,4186.00,Конєв Володимир Леонідович,,фізична особа
РПЛ,"Чернігівська область, Городнянський район, Городня",84,2017-12-26,468,"Заробітна плата, премії","Заробітна плата, лікарняні, вагітності, відрядження, компенсації",123809,Центральний офіс,37279703,Україна,Заробітна плата за грудень,26009580176,state,3381.00,Климович Тетяна Вікторівна,,фізична особа
РПЛ,Київ,84,2017-12-26,468,"Заробітна плата, премії","Заробітна плата, лікарняні, вагітності, відрядження, компенсації",123808,Центральний офіс,37279703,Україна,Заробітна плата за грудень,26009580176,state,5152.00,Кітаєв Роман Русланович,,фізична особа
РПЛ,"Одеська область, Тарутинський район, Тарутине",84,2017-12-26,468,"Заробітна плата, премії","Заробітна плата, лікарняні, вагітності, відрядження, компенсації",123807,Центральний офіс,37279703,Україна,Заробітна плата за грудень,26009580176,state,5152.00,Кисса Святослав Вікторович,,фізична особа
РПЛ,м. Кропивницький,84,2017-12-26,468,"Заробітна плата, премії","Заробітна плата, лікарняні, вагітності, відрядження, компенсації",123806,Центральний офіс,37279703,Україна,Заробітна плата за грудень,26009580176,state,5152.00,Кашуба Олег Валерійович,,фізична особа
РПЛ,"Закарпатська область, Ужгород",84,2017-12-26,468,"Заробітна плата, премії","Заробітна плата, лікарняні, вагітності, відрядження, компенсації",123805,Центральний офіс,37279703,Україна,Заробітна плата за грудень,26009580176,state,5152.00,Іваненко Олександр Володимирович,,фізична особа
РПЛ,"Чернівецька область, Чернівці",84,2017-12-26,468,"Заробітна плата, премії","Заробітна плата, лікарняні, вагітності, відрядження, компенсації",123804,Центральний офіс,37279703,Україна,Заробітна плата за грудень,26009580176,state,15368.19,Закієв Артур Вячеславович,,фізична особа
РПЛ,"Київська обл., Києво-Святошинський район, Крюківщина",84,2017-12-26,468,"Заробітна плата, премії","Заробітна плата, лікарняні, вагітності, відрядження, компенсації",123803,Центральний офіс,37279703,Україна,Заробітна плата за грудень,26009580176,state,2576.00,Заваліна Ксенія Валеріївна,,фізична особа
РПЛ,Київ,84,2017-12-26,468,"Заробітна плата, премії","Заробітна плата, лікарняні, вагітності, відрядження, компенсації",123802,Центральний офіс,37279703,Україна,Заробітна плата за грудень,26009580176,state,16583.00,Євтушенко Наталія Федорівна,,фізична особа
РПЛ,"Запорізька область, Запоріжжя",84,2017-12-26,468,"Заробітна плата, премії","Заробітна плата, лікарняні, вагітності, відрядження, компенсації",123801,Центральний офіс,37279703,Україна,Заробітна плата за грудень,26009580176,state,6762.00,Дергачова Ірина Станіславівна,,фізична особа
РПЛ,"Хмельницька область, Хмельницький",84,2017-12-26,468,"Заробітна плата, премії","Заробітна плата, лікарняні, вагітності, відрядження, компенсації",123800,Центральний офіс,37279703,Україна,Заробітна плата за грудень,26009580176,state,3381.00,Данілкова Анастасія Юріївна,,фізична особа
РПЛ,"Чернігівська область, Сновський район, Сновськ",84,2017-12-26,468,"Заробітна плата, премії","Заробітна плата, лікарняні, вагітності, відрядження, компенсації",123799,Центральний офіс,37279703,Україна,Заробітна плата за грудень,26009580176,state,9136.75,Данильченко Ніна Василівна,,фізична особа
РПЛ,Київ,84,2017-12-26,468,"Заробітна плата, премії","Заробітна плата, лікарняні, вагітності, відрядження, компенсації",123798,Центральний офіс,37279703,Україна,Заробітна плата за грудень,26009580176,state,18917.50,Даниленко Антон Олександрович,,фізична особа
РПЛ,"Київська обл., Броварський район, Світильня",84,2017-12-26,468,"Заробітна плата, премії","Заробітна плата, лікарняні, вагітності, відрядження, компенсації",123797,Центральний офіс,37279703,Україна,Заробітна плата за грудень,26009580176,state,17710.00,Гринчук Тетяна Володимирівна,,фізична особа
РПЛ,"Донецька область, Слов'янський район, Билбасівка",84,2017-12-26,468,"Заробітна плата, премії","Заробітна плата, лікарняні, вагітності, відрядження, компенсації",123796,Центральний офіс,37279703,Україна,Заробітна плата за грудень,26009580176,state,7259.64,Григорян Мартирос Рафаельович,,фізична особа
РПЛ,Київ,84,2017-12-26,468,"Заробітна плата, премії","Заробітна плата, лікарняні, вагітності, відрядження, компенсації",123795,Центральний офіс,37279703,Україна,Заробітна плата за грудень,26009580176,state,13242.25,Грабик Алла Ігорівна,,фізична особа
РПЛ,Київ,84,2017-12-26,468,"Заробітна плата, премії","Заробітна плата, лікарняні, вагітності, відрядження, компенсації",123794,Центральний офіс,37279703,Україна,Заробітна плата за грудень,26009580176,state,5152.00,Городенко Ольга Борисівна,,фізична особа
РПЛ,"Дніпропетровська область, Нікополь",84,2017-12-26,468,"Заробітна плата, премії","Заробітна плата, лікарняні, вагітності, відрядження, компенсації",123793,Центральний офіс,37279703,Україна,Заробітна плата за грудень,26009580176,state,6762.00,Горобець Сергій Геннадійович,,фізична особа
РПЛ,"Житомирська область, Житомир",84,2017-12-26,468,"Заробітна плата, премії","Заробітна плата, лікарняні, вагітності, відрядження, компенсації",123792,Центральний офіс,37279703,Україна,Заробітна плата за грудень,26009580176,state,6762.00,Гнєушев Сергій Вікторович,,фізична особа
РПЛ,"Запорізька область, Приморський район, Приморськ",84,2017-12-26,468,"Заробітна плата, премії","Заробітна плата, лікарняні, вагітності, відрядження, компенсації",123791,Центральний офіс,37279703,Україна,Заробітна плата за грудень,26009580176,state,8430.55,Глєбова Яна Олександрівна,,фізична особа
РПЛ,Київ,84,2017-12-26,468,"Заробітна плата, премії","Заробітна плата, лікарняні, вагітності, відрядження, компенсації",123790,Центральний офіс,37279703,Україна,Заробітна плата за грудень,26009580176,state,6118.00,Герасименко Євгеній Юрійович,,фізична особа
РПЛ,"Полтавська область, Полтава",84,2017-12-26,468,"Заробітна плата, премії","Заробітна плата, лікарняні, вагітності, відрядження, компенсації",123789,Центральний офіс,37279703,Україна,Заробітна плата за грудень,26009580176,state,2833.60,Гавриш Світлана Іванівна,,фізична особа
РПЛ,"Волинська область, Рожищенський район, Копачівка",84,2017-12-26,468,"Заробітна плата, премії","Заробітна плата, лікарняні, вагітності, відрядження, компенсації",123788,Центральний офіс,37279703,Україна,Заробітна плата за грудень,26009580176,state,6762.00,Воробйова Жанна Миколаївна,,фізична особа
РПЛ,"Вінницька область, Чернівецький район, Шендерівка",84,2017-12-26,468,"Заробітна плата, премії","Заробітна плата, лікарняні, вагітності, відрядження, компенсації",123787,Центральний офіс,37279703,Україна,Заробітна плата за грудень,26009580176,state,6762.00,Войцех Юлія Миколаївна,,фізична особа
РПЛ,"Тернопільська область, Тернопіль",84,2017-12-26,468,"Заробітна плата, премії","Заробітна плата, лікарняні, вагітності, відрядження, компенсації",123786,Центральний офіс,37279703,Україна,Заробітна плата за грудень,26009580176,state,4502.50,Влізло Ольга Миколаївна,,фізична особа
РПЛ,Київ,84,2017-12-26,468,"Заробітна плата, премії","Заробітна плата, лікарняні, вагітності, відрядження, компенсації",123785,Центральний офіс,37279703,Україна,Заробітна плата за грудень,26009580176,state,9136.75,Відмиш Євген Аркадійович,,фізична особа
РПЛ,"Миколаївська область, Миколаїв",84,2017-12-26,468,"Заробітна плата, премії","Заробітна плата, лікарняні, вагітності, відрядження, компенсації",123784,Центральний офіс,37279703,Україна,Заробітна плата за грудень,26009580176,state,6762.00,Висоцька Катерина Олександрівна,,фізична особа
РПЛ,"Донецька область, Миколаївка",84,2017-12-26,468,"Заробітна плата, премії","Заробітна плата, лікарняні, вагітності, відрядження, компенсації",123783,Центральний офіс,37279703,Україна,Заробітна плата за грудень,26009580176,state,12021.33,Буцик Ростислав Олександрович,,фізична особа
РПЛ,"Львівська область, Жидачівський район, Ходорів",84,2017-12-26,468,"Заробітна плата, премії","Заробітна плата, лікарняні, вагітності, відрядження, компенсації",123782,Центральний офіс,37279703,Україна,Заробітна плата за грудень,26009580176,state,6762.00,Бутковська Зоряна Богданівна,,фізична особа
РПЛ,Київ,84,2017-12-26,468,"Заробітна плата, премії","Заробітна плата, лікарняні, вагітності, відрядження, компенсації",123781,Центральний офіс,37279703,Україна,Заробітна плата за грудень,26009580176,state,18273.50,Бугаєв Сергій Володимирович,,фізична особа
РПЛ,"Хмельницька область, Хмельницький",84,2017-12-26,468,"Заробітна плата, премії","Заробітна плата, лікарняні, вагітності, відрядження, компенсації",123780,Центральний офіс,37279703,Україна,Заробітна плата за грудень,26009580176,state,6762.00,Брезденюк Аліна Олегівна,,фізична особа
РПЛ,Київ,84,2017-12-26,468,"Заробітна плата, премії","Заробітна плата, лікарняні, вагітності, відрядження, компенсації",123779,Центральний офіс,37279703,Україна,Заробітна плата за грудень,26009580176,state,5152.00,Бондаренко Владислав Юрійович,,фізична особа
РПЛ,м. Кропивницький,84,2017-12-26,468,"Заробітна плата, премії","Заробітна плата, лікарняні, вагітності, відрядження, компенсації",123778,Центральний офіс,37279703,Україна,Заробітна плата за грудень,26009580176,state,6762.00,Бойко Сергій Вікторович,,фізична особа
РПЛ,"Рівненська область, Рівне",84,2017-12-26,468,"Заробітна плата, премії","Заробітна плата, лікарняні, вагітності, відрядження, компенсації",123777,Центральний офіс,37279703,Україна,Заробітна плата за грудень,26009580176,state,6762.00,Біла Оксана Володимирівна,,фізична особа
РПЛ,Київ,84,2017-12-26,468,"Заробітна плата, премії","Заробітна плата, лікарняні, вагітності, відрядження, компенсації",123776,Центральний офіс,37279703,Україна,Заробітна плата за грудень,26009580176,state,8291.50,Бистрякова Юлія Ігорівна,,фізична особа
РПЛ,Київ,84,2017-12-26,468,"Заробітна плата, премії","Заробітна плата, лікарняні, вагітності, відрядження, компенсації",123775,Центральний офіс,37279703,Україна,Заробітна плата за грудень,26009580176,state,11343.19,Бєлов Ігор Ігорович,,фізична особа
РПЛ,"Херсонська область, Білозерський район, Станіслав",84,2017-12-26,468,"Заробітна плата, премії","Заробітна плата, лікарняні, вагітності, відрядження, компенсації",123774,Центральний офіс,37279703,Україна,Заробітна плата за грудень,26009580176,state,5152.00,Бесараб Михайло Михайлович,,фізична особа
РПЛ,"Чернівецька область, Чернівці",84,2017-12-26,468,"Заробітна плата, премії","Заробітна плата, лікарняні, вагітності, відрядження, компенсації",123773,Центральний офіс,37279703,Україна,Заробітна плата за грудень,26009580176,state,6762.00,Беркещук Катерина Володимирівна,,фізична особа
РПЛ,"Харківська область, Харків",84,2017-12-26,468,"Заробітна плата, премії","Заробітна плата, лікарняні, вагітності, відрядження, компенсації",123772,Центральний офіс,37279703,Україна,Заробітна плата за грудень,26009580176,state,6762.00,Беляєва Анна Ігорівна,,фізична особа
РПЛ,"Чернівецька область, Глибоцький район, Коровія",84,2017-12-26,468,"Заробітна плата, премії","Заробітна плата, лікарняні, вагітності, відрядження, компенсації",123771,Центральний офіс,37279703,Україна,Заробітна плата за грудень,26009580176,state,13282.50,Бауер Марія Василівна,,фізична особа
РПЛ,"Київська обл., Бородянський район, Шибене",84,2017-12-26,468,"Заробітна плата, премії","Заробітна плата, лікарняні, вагітності, відрядження, компенсації",123770,Центральний офіс,37279703,Україна,Заробітна плата за грудень,26009580176,state,13524.00,Бардаш Олег Миколайович,,фізична особа
РПЛ,"Тернопільська область, Лановецький район, Ланівці",84,2017-12-26,468,"Заробітна плата, премії","Заробітна плата, лікарняні, вагітності, відрядження, компенсації",123769,Центральний офіс,37279703,Україна,Заробітна плата за грудень,26009580176,state,5152.00,Барва Ярослав Ігорович,,фізична особа
РПЛ,"Київська обл., Обухівський район, Українка",84,2017-12-26,468,"Заробітна плата, премії","Заробітна плата, лікарняні, вагітності, відрядження, компенсації",123768,Центральний офіс,37279703,Україна,Заробітна плата за грудень,26009580176,state,6762.00,Байбула Юрій Михайлович,,фізична особа
РПЛ,"Харківська область, Харків",84,2017-12-26,468,"Заробітна плата, премії","Заробітна плата, лікарняні, вагітності, відрядження, компенсації",123767,Центральний офіс,37279703,Україна,Заробітна плата за грудень,26009580176,state,5152.00,Андрейченко Андрій Юрійович,,фізична особа
РПЛ,"Миколаївська область, Миколаїв",84,2017-12-26,468,"Заробітна плата, премії","Заробітна плата, лікарняні, вагітності, відрядження, компенсації",123766,Центральний офіс,37279703,Україна,Заробітна плата за грудень,26009580176,state,6762.00,Алєксєєв Антон Леонідович,,фізична особа
РПЛ,"Херсонська область, Херсон",84,2017-12-26,468,"Заробітна плата, премії","Заробітна плата, лікарняні, вагітності, відрядження, компенсації",123765,Центральний офіс,37279703,Україна,Заробітна плата за грудень,26009580176,state,2060.80,Адаменко Аліна Михайлівна,,фізична особа
РПЛ,"Хмельницька область, Ізяславський район, Шекеринці",84,2017-12-26,468,"Заробітна плата, премії","Заробітна плата, лікарняні, вагітності, відрядження, компенсації",123764,Центральний офіс,37279703,Україна,Заробітна плата за грудень,26009580176,state,6791.27,Андрощук Зоряна Юріївна,,фізична особа
РПЛ,"Сумська область, Білопільський район, Улянівка",84,2017-12-26,466,"Заробітна плата, премії","Заробітна плата, лікарняні, вагітності, відрядження, компенсації",123763,Центральний офіс,37279703,Україна,Аліменти утримані із з/плати Пінчук Ю.П.,26009580176,state,858.66,Пінчук Аліна Євгеніївна,,фізична особа
РПЛ,"Київ, вулиця Січових Стрільців, 26",58,2017-12-26,479,"Виготовлення друкованих матеріалів (плакатів, листівок, буклетів та інших агітаційних матеріалів)",Друкована агітація,121193,Центральний офіс,37279703,Україна,Друкована продукція,26009580176,state,150000.00,Карімов О М,2988521699,фізична особа
РПЛ,"Київ, Кловський узвіз, 7, 39",82,2017-12-26,481,"Гонорари, в тому числі за надані консультаційні послуги","Гонорари, в тому числі за надані консультаційні послуги",121131,Центральний офіс,37279703,Україна,Нотаріальні послуги,26009580176,state,7500.00,Авершина І В,2684300807,фізична особа
РПЛ,"Київ, Кловський узвіз, 7, 39",82,2017-12-26,480,"Гонорари, в тому числі за надані консультаційні послуги","Гонорари, в тому числі за надані консультаційні послуги",121130,Центральний офіс,37279703,Україна,Нотаріальні послуги,26009580176,state,850.00,Авершина І В,2684300807,фізична особа
РПЛ,"Тернопільська область, Тернопіль, вулиця Князя Острозького, 14",43,2017-12-26,467,Інші витрати,Інші витрати,121040,Центральний офіс,37279703,Україна,Відрахування із з/плати Влізло О.М. згідно виконавчого листа,26009580176,state,649.50,Тернопільський відділ ДВС ГТУЮТО,40330167,юридична особа
РПЛ,"Київ, вулиця Багговутівська, 26",62,2017-12-26,458,Сплата ЄСВ,Податкові платежі,120936,Центральний офіс,37279703,Україна,Єдиний соціальний внесок,26009580176,state,248483.00,ДПІ у Шевченківському районі у м. Києві,38728711,юридична особа
РПЛ,"Київ, вулиця Академіка Туполєва, 28А",61,2017-12-26,460,Військовий збір,Податкові платежі,120872,Центральний офіс,37279703,Україна,Військовий збір,26009580176,state,19640.00,УДКСУ у Шевченківському районі м. Києва,37995466,юридична особа
РПЛ,"Київ, вулиця Академіка Туполєва, 28А",63,2017-12-26,459,Податок на доходи,Податкові платежі,120871,Центральний офіс,37279703,Україна,Податок на доходи фізичних осіб,26009580176,state,235786.00,УДКСУ у Шевченківському районі м. Києва,37995466,юридична особа
РПЛ,"Київ, вулиця Керченська, 7/7",74,2017-12-26,473,"Придбання канцтоварів, паперу, інших предметів і матеріалів, а також госп товари",Придбання канцтоварів та госп. товарів,120658,Центральний офіс,37279703,Україна,Плита підвісної стелі,26006580179,current,878.10,"ПП ""РЕММАТ ТПК""",35571954,юридична особа
РПЛ,"Рівненська область, Рівне, вулиця Замкова, 22",43,2017-12-26,465,Інші витрати,Інші витрати,120652,Центральний офіс,37279703,Україна,Відрахування із з/плати Конєва В.Л.згідно виконавчого листа,26009580176,state,27.50,Рівненський міський відділ ДВС ГТУЮ у Рівненській обл.,35007146,юридична особа
РПЛ,"Рівненська область, Рівне, вулиця Замкова, 22",43,2017-12-26,461,Інші витрати,Інші витрати,120651,Центральний офіс,37279703,Україна,Відрахування із з/плати Конєва В.Л.згідно виконавчого листа,26009580176,state,1.56,Рівненський міський відділ ДВС ГТУЮ у Рівненській обл.,35007146,юридична особа
РПЛ,"Рівненська область, Рівне, вулиця Замкова, 22",43,2017-12-26,464,Інші витрати,Інші витрати,120650,Центральний офіс,37279703,Україна,Відрахування із з/плати Конєва В.Л.згідно виконавчого листа,26009580176,state,27.50,Рівненський міський відділ ДВС ГТУЮ у Рівненській обл.,35007146,юридична особа
РПЛ,"Рівненська область, Рівне, вулиця Замкова, 22",43,2017-12-26,463,Інші витрати,Інші витрати,120649,Центральний офіс,37279703,Україна,Відрахування із з/плати Конєва В.Л.згідно виконавчого листа,26009580176,state,962.94,Рівненський міський відділ ДВС ГТУЮ у Рівненській обл.,35007146,юридична особа
РПЛ,"Рівненська область, Рівне, вулиця Замкова, 22",43,2017-12-26,462,Інші витрати,Інші витрати,120648,Центральний офіс,37279703,Україна,Відрахування із з/плати Конєва В.Л.згідно виконавчого листа,26009580176,state,1641.90,Рівненський міський відділ ДВС ГТУЮ у Рівненській обл.,35007146,юридична особа
РПЛ,"Київ, вулиця Миколи Лєскова, 9",70,2017-12-26,477,Банківські послуги,Інші витрати,120409,Центральний офіс,37279703,Україна,Комісія банку за зарахування коштів на СКР працівників,26009580176,state,8.43,"АТ ""Райффайзен банк Аваль""",14305909,юридична особа
РПЛ,"Київ, вулиця Миколи Лєскова, 9",70,2017-12-26,475,Банківські послуги,Інші витрати,120408,Центральний офіс,37279703,Україна,Комісія банку за зарахування коштів на СКР працівників,26009580176,state,13.11,"АТ ""Райффайзен банк Аваль""",14305909,юридична особа
РПЛ,"Київ, вулиця Миколи Лєскова, 9",70,2017-12-26,469,Банківські послуги,Інші витрати,120407,Центральний офіс,37279703,Україна,Комісія банку за зарахування коштів на СКР працівників,26009580176,state,2081.88,"АТ ""Райффайзен банк Аваль""",14305909,юридична особа
РПЛ,"Херсонська область, Херсон",49,2017-12-26,478,Публікування матеріалів у друкованих ЗМІ,Реклама в друкованих ЗМІ,120225,Центральний офіс,37279703,Україна,Розміщення інформації в газеті,26009580176,state,8118.00,"ТОВ ""РГ ""Новий день""",14122988,юридична особа
РПЛ,"Чернігівська область, Носівський район, Носівка, Богуна, 1",74,2017-12-22,442,"Придбання канцтоварів, паперу, інших предметів і матеріалів, а також госп товари",Придбання канцтоварів та госп. товарів,121240,Центральний офіс,37279703,Україна,кепки,26009580176,state,62700.00,Ляшенко Зінаїда Володимирівна,3300400684,фізична особа
РПЛ,"Чернігівська область, Носівський район, Носівка, Богуна, 1",57,2017-12-22,441,Виготовлення брендованої продукції,"Виготовлення брендованої продукції (футболки, кепки, парасольки)",121239,Центральний офіс,37279703,Україна,"Ручки, кепки",26009580176,state,60900.00,Ляшенко Зінаїда Володимирівна,3300400684,фізична особа
РПЛ,"Миколаївська область, Миколаїв, провулок Чехова, 12",82,2017-12-22,452,"Гонорари, в тому числі за надані консультаційні послуги","Гонорари, в тому числі за надані консультаційні послуги",121194,Центральний офіс,37279703,Україна,Надання інформаційних послуг,26009580176,state,2000.00,Шутько І С,2995421393,фізична особа
РПЛ,"Київ, вулиця Максима Берлинського, 6, 14",82,2017-12-22,440,"Гонорари, в тому числі за надані консультаційні послуги","Гонорари, в тому числі за надані консультаційні послуги",121162,Центральний офіс,37279703,Україна,Організація і проведення семінару,26009580176,state,22000.00,Самсонова Аліна Вікторівна,2947606863,фізична особа
РПЛ,"Київ, вулиця Ольжича, 15, 67",77,2017-12-22,456,"Оренда, ремонт та обслуговування автомобілів","Оренда, ремонт та обслуговування автомобілів",121099,Центральний офіс,37279703,Україна,Обслуговування і ремонт автомобіля,26009580176,state,31320.00,Храповицький М О,2409414937,фізична особа
РПЛ,"Київ, вулиця Степана Руданського, 3А, 535",57,2017-12-22,443,Виготовлення брендованої продукції,"Виготовлення брендованої продукції (футболки, кепки, парасольки)",121042,Центральний офіс,37279703,Україна,Вудилище махове,26009580176,state,34272.00,"ТОВ ""ЦЕРЕЙРА ГРУП""",40818311,юридична особа
РПЛ,"Київ, вулиця Бориспільська, 11А",57,2017-12-22,444,Виготовлення брендованої продукції,"Виготовлення брендованої продукції (футболки, кепки, парасольки)",120970,Центральний офіс,37279703,Україна,Кружки,26009580176,state,52404.00,"ТОВ ""АРТАЛЕКО ГІФТС""",39677993,юридична особа
РПЛ,"Миколаївська область, Миколаїв, вулиця Велика Морська, 23",51,2017-12-22,450,Оплата ефірного часу на ТБ,Телереклама,120952,Центральний офіс,37279703,Україна,Надання інформаційних послуг,26009580176,state,1500.00,"ТОВ ""ІНФОРМАЦІЙНЕ АГЕНСТВО ІНШЕ, ТВ""",39287889,юридична особа
РПЛ,"Київ, вулиця Кирилівська, 160",57,2017-12-22,447,Виготовлення брендованої продукції,"Виготовлення брендованої продукції (футболки, кепки, парасольки)",120951,Центральний офіс,37279703,Україна,Значки,26009580176,state,33000.00,"ТОВ ""РВК ВІЛЬНИЙ ФОРУМ""",39285195,юридична особа
РПЛ,"Київ, вулиця Машинобудівна, 44",72,2017-12-22,446,"Придбання, ремонт офісної техніки та програмного забезпечення (Бухгалтерські програми, Ліга.закон, домени)",Придбання офісної техніки та програмного забезпечення,120943,Центральний офіс,37279703,Україна,БФП EPCON L850 (C11CE31402),26009580176,state,11079.00,"ТОВ ""НЕДОРОГО""",38977343,юридична особа
РПЛ,"Київська обл., Бровари, вулиця Грушевського, 15А, 53",74,2017-12-22,445,"Придбання канцтоварів, паперу, інших предметів і матеріалів, а також госп товари",Придбання канцтоварів та госп. товарів,120732,Центральний офіс,37279703,Україна,Візитки,26009580176,state,1339.20,"ТОВ ""Оранта М""",37721982,юридична особа
РПЛ,"Миколаївська область, Миколаїв, проспект Центральний, 93, 305",48,2017-12-22,449,Публікування матеріалів у мережі Інтернет,Реклама в інтернеті,120667,Центральний офіс,37279703,Україна,Розміщення і демонстрація інформаційних матеріалів,26009580176,state,3500.00,"ТОВ ""Інформаційне Агенство Українська Медіа Груп",35834750,юридична особа
РПЛ,"Київ, Кільцева дорога, 1Б",74,2017-12-22,455,"Придбання канцтоварів, паперу, інших предметів і матеріалів, а також госп товари",Придбання канцтоварів та госп. товарів,120538,Центральний офіс,37279703,Україна,"Лампи, зажими",26009580176,state,1344.24,"ТОВ ""Епіцентр К""",32490244,юридична особа
РПЛ,"Київ, вулиця Антоновича, 172",81,2017-12-22,451,Аудит,"Гонорари, в тому числі за надані консультаційні послуги",120516,Центральний офіс,37279703,Україна,"Авансовий платіж за виконання незалежного аудиту за рік, що зак.31.12.2017р.",26009580176,state,192000.00,"ТОВ ""Крестон Джі Сі Джі Аудит""",31586485,юридична особа
РПЛ,"Харківська область, Харків, Театральний провулок, 4",51,2017-12-22,448,Оплата ефірного часу на ТБ,Телереклама,120441,Центральний офіс,37279703,Україна,Надання невиключного права на телевізійний показ твору,26009580176,state,17500.00,"ТОВ ""Компанія АТН""",24270655,юридична особа
РПЛ,"Миколаївська область, Миколаїв, вулиця Адміральська, 20",49,2017-12-22,454,Публікування матеріалів у друкованих ЗМІ,Реклама в друкованих ЗМІ,120357,Центральний офіс,37279703,Україна,Інформаційний матеріал в газеті,26009580176,state,6300.00,"РГ ""Вечерний Николаев""",20882700,юридична особа
РПЛ,"Миколаївська область, Миколаїв, вулиця Нікольська, 46",49,2017-12-22,453,Публікування матеріалів у друкованих ЗМІ,Реклама в друкованих ЗМІ,120356,Центральний офіс,37279703,Україна,Інформаційне забезпечення в газеті,26009580176,state,2754.00,"Редакція газети ""Рідне Прибужжя""",20877099,юридична особа
РПЛ,"Київ, вулиця Московська, 41/8, 108",58,2017-12-21,436,"Виготовлення друкованих матеріалів (плакатів, листівок, буклетів та інших агітаційних матеріалів)",Друкована агітація,121135,Центральний офіс,37279703,Україна,Листівки А4,26009580176,state,3202.50,Мазур Вадим Павлович,2691511079,фізична особа
РПЛ,"Київ, вулиця Ярославів Вал, 13",58,2017-12-21,438,"Виготовлення друкованих матеріалів (плакатів, листівок, буклетів та інших агітаційних матеріалів)",Друкована агітація,120993,Центральний офіс,37279703,Україна,Наклейки А7,26009580176,state,1520.00,"ТОВ ""КОЛОРИСТ""",40002307,юридична особа
РПЛ,"Київ, вулиця Сортувальна, 20",57,2017-12-21,437,Виготовлення брендованої продукції,"Виготовлення брендованої продукції (футболки, кепки, парасольки)",120370,Центральний офіс,37279703,Україна,Пакети,26009580176,state,24400.00,"ТОВ ""УКРАЇНСЬКІ ДЖЕРЕЛА""",22950759,юридична особа
РПЛ,"Київ, вулиця Хрещатик, 22",75,2017-12-21,439,Поштові послуги та поширення друкованих матеріалів,Поштові послуги та поширення друкованих матеріалів,120200,Центральний офіс,37279703,Україна,Періодичні видання,26009580176,state,4700.78,"Київська міська дирекція ПАТ ""Укрпошта""",01189979,юридична особа
РПЛ,"Запорізька область, Гуляйпільський район, Гуляйполе, вулиця Українська",72,2017-12-20,431,"Придбання, ремонт офісної техніки та програмного забезпечення (Бухгалтерські програми, Ліга.закон, домени)",Придбання офісної техніки та програмного забезпечення,121188,Центральний офіс,37279703,Україна,Надання в строкове платне користування Віртуальної інф.,26009580176,state,1200.00,Сухобок Катерина Володимирівна,2974809628,фізична особа
РПЛ,"Запорізька область, Гуляйпільський район, Гуляйполе, вулиця Українська",72,2017-12-20,430,"Придбання, ремонт офісної техніки та програмного забезпечення (Бухгалтерські програми, Ліга.закон, домени)",Придбання офісної техніки та програмного забезпечення,121187,Центральний офіс,37279703,Україна,Надання в строкове платне користування Віртуальної інф.,26009580176,state,5550.00,Сухобок Катерина Володимирівна,2974809628,фізична особа
РПЛ,"Дніпропетровська область, Дніпро́, вулиця Калинова, 43",79,2017-12-20,433,"Оренда будинків і приміщень та експлуатаційні витрати (прибирання, страхування орендованих будинків, охорона, сигналізація, ремонт, вивіз сміття, тощо)",Оренда нерухомості,120630,Центральний офіс,37279703,Україна,"Аван.плат.Суборенда нежитлового прим., компенсація витрат з утр. Буд. І споруд",26009580176,state,115839.22,"ТОВ ""Наутилус-Інвест 2006""",34823774,юридична особа
РПЛ,"Київ, Кільцева дорога, 1Б",74,2017-12-20,435,"Придбання канцтоварів, паперу, інших предметів і матеріалів, а також госп товари",Придбання канцтоварів та госп. товарів,120537,Центральний офіс,37279703,Україна,"Набір інструментів, ключів та ін.",26009580176,state,2364.06,"ТОВ ""Епіцентр К""",32490244,юридична особа
РПЛ,"Київ, вулиця Антоновича, 103",76,2017-12-20,432,Послуги зв’язку,Послуги зв’язку,120430,Центральний офіс,37279703,Україна,Аван.плат.Телекомунікаційні послуги (послуги інтернет) за листопад,26009580176,state,1700.00,"ТОВ НВФ ""ВОЛЗ""",24251847,юридична особа
РПЛ,"Дніпропетровська область, Дніпро́, вулиця Воскресенська, 14",51,2017-12-20,434,Оплата ефірного часу на ТБ,Телереклама,120351,Центральний офіс,37279703,Україна,Розміщення відеоматеріалу на 34 телеканалі,26009580176,state,6400.00,"ПрАТ ""Телевізійна служба Дніпропетровська""",20264089,юридична особа
РПЛ,"Донецька область, Слов'янський район, Слов'янськ",57,2017-12-19,429,Виготовлення брендованої продукції,"Виготовлення брендованої продукції (футболки, кепки, парасольки)",121107,Центральний офіс,37279703,Україна,Кружки,26009580176,state,24320.00,Полігенько Олександр Іванович,2539111452,фізична особа
РПЛ,"Київська обл., Бориспіль",83,2017-12-18,425,"Виплати працівникам (не зарплата): лікарняні, вагітності, відрядження, компенсації ","Заробітна плата, лікарняні, вагітності, відрядження, компенсації",123762,Центральний офіс,37279703,Україна,Аванс на відрядження,26009580176,state,120.00,Федун Юрій Степанович,,фізична особа
РПЛ,"Полтавська область, Полтава",83,2017-12-18,425,"Виплати працівникам (не зарплата): лікарняні, вагітності, відрядження, компенсації ","Заробітна плата, лікарняні, вагітності, відрядження, компенсації",123761,Центральний офіс,37279703,Україна,Аванс на відрядження,26009580176,state,180.00,Матяш Руслан Анатолійович,,фізична особа
РПЛ,"Київ, вулиця Ольжича, 15, 67",77,2017-12-18,428,"Оренда, ремонт та обслуговування автомобілів","Оренда, ремонт та обслуговування автомобілів",121098,Центральний офіс,37279703,Україна,Обслуговування і ремонт автомобіля,26009580176,state,32000.00,Храповицький М О,2409414937,фізична особа
РПЛ,"Київ, вулиця Ольжича, 15, 67",77,2017-12-18,427,"Оренда, ремонт та обслуговування автомобілів","Оренда, ремонт та обслуговування автомобілів",121097,Центральний офіс,37279703,Україна,Обслуговування і ремонт автомобіля,26009580176,state,35000.00,Храповицький М О,2409414937,фізична особа
РПЛ,"Київ, вулиця Польова, 21, 319",74,2017-12-18,424,"Придбання канцтоварів, паперу, інших предметів і матеріалів, а також госп товари",Придбання канцтоварів та госп. товарів,120716,Центральний офіс,37279703,Україна,"Мобілчарт для маркера, стирач, блок паперу",26009580176,state,5340.91,"ТОВ ""Офісмакс""",37141285,юридична особа
РПЛ,"Київ, вулиця Рейтарська, 8/5А",69,2017-12-18,423,Організація заходів та інші організаційні послуги,Організація заходів та інші організаційні послуги,120411,Центральний офіс,37279703,Україна,Організація і проведення пресконференції,26009580176,state,7500.00,"ТОВ ""Інформаційне агенство ""Інтерфакс-Україна""",23732734,юридична особа
РПЛ,"Київ, вулиця Миколи Лєскова, 9",70,2017-12-18,426,Банківські послуги,Інші витрати,120406,Центральний офіс,37279703,Україна,Комісія банку за зарахування коштів на СКР працівників,26009580176,state,0.60,"АТ ""Райффайзен банк Аваль""",14305909,юридична особа
РПЛ,"Київ, вулиця Короленківська, 4",57,2017-12-15,413,Виготовлення брендованої продукції,"Виготовлення брендованої продукції (футболки, кепки, парасольки)",121052,Центральний офіс,37279703,Україна,Блокноти А5,26009580176,state,242000.00,"ТОВ ""УСД-ГРУП""",41057252,юридична особа
РПЛ,"Київ, вулиця Бориспільська, 11А",57,2017-12-15,420,Виготовлення брендованої продукції,"Виготовлення брендованої продукції (футболки, кепки, парасольки)",120969,Центральний офіс,37279703,Україна,Футболки,26009580176,state,230976.00,"ТОВ ""АРТАЛЕКО ГІФТС""",39677993,юридична особа
РПЛ,"Київ, вулиця Волинська, 10",57,2017-12-15,421,Виготовлення брендованої продукції,"Виготовлення брендованої продукції (футболки, кепки, парасольки)",120738,Центральний офіс,37279703,Україна,Сумки 35*41,26009580176,state,270000.00,"ТОВ ""Борса""",37848922,юридична особа
РПЛ,"Дніпропетровська область, Дніпро́, вулиця Калинова, 43",79,2017-12-15,416,"Оренда будинків і приміщень та експлуатаційні витрати (прибирання, страхування орендованих будинків, охорона, сигналізація, ремонт, вивіз сміття, тощо)",Оренда нерухомості,120629,Центральний офіс,37279703,Україна,"Суборенда нежитлового прим., компенсація витрат з утр. Буд. І споруд",26009580176,state,115839.22,"ТОВ ""Наутилус-Інвест 2006""",34823774,юридична особа
РПЛ,"Харківська область, Харків, вулиця Одеська, 49",57,2017-12-15,415,Виготовлення брендованої продукції,"Виготовлення брендованої продукції (футболки, кепки, парасольки)",120600,Центральний офіс,37279703,Україна,Плащ дощовик,26009580176,state,151000.00,"ПП ""Прайм-а""",34466480,юридична особа
РПЛ,"Вінницька область, Вінниця, вулиця Академіка Янгеля, 45",79,2017-12-15,422,"Оренда будинків і приміщень та експлуатаційні витрати (прибирання, страхування орендованих будинків, охорона, сигналізація, ремонт, вивіз сміття, тощо)",Оренда нерухомості,120526,Центральний офіс,37279703,Україна,Вода питна,26006580179,current,240.00,"ТОВ ""Еко-сфера""",32320552,юридична особа
РПЛ,"Київ, вулиця Антоновича, 103",76,2017-12-15,417,Послуги зв’язку,Послуги зв’язку,120429,Центральний офіс,37279703,Україна,"Абонентная плата, доступ до мобільного зв""язку за жовтень",26009580176,state,295.86,"ТОВ НВФ ""ВОЛЗ""",24251847,юридична особа
РПЛ,"Київ, вулиця Антоновича, 103",76,2017-12-15,418,Послуги зв’язку,Послуги зв’язку,120428,Центральний офіс,37279703,Україна,Телекомунікаційні послуги (послуги інтернет) за листопад,26009580176,state,1700.00,"ТОВ НВФ ""ВОЛЗ""",24251847,юридична особа
РПЛ,"Київ, вулиця Сортувальна, 20",57,2017-12-15,414,Виготовлення брендованої продукції,"Виготовлення брендованої продукції (футболки, кепки, парасольки)",120369,Центральний офіс,37279703,Україна,Пакети,26009580176,state,62000.00,"ТОВ ""УКРАЇНСЬКІ ДЖЕРЕЛА""",22950759,юридична особа
РПЛ,"Івано-Франківська область, Івано-Франківськ, вулиця Галицька, 130",79,2017-12-15,419,"Оренда будинків і приміщень та експлуатаційні витрати (прибирання, страхування орендованих будинків, охорона, сигналізація, ремонт, вивіз сміття, тощо)",Оренда нерухомості,120212,Центральний офіс,37279703,Україна,"Орндна плата за грудень, гарантійний платіж",26006580179,current,2516.13,"ПК ""ФК"" Здорова родина",03407368,юридична особа
РПЛ,"Харківська область, Харків, Театральний провулок, 4",48,2017-12-14,412,Публікування матеріалів у мережі Інтернет,Реклама в інтернеті,120440,Центральний офіс,37279703,Україна,Розміщення інформації на сайті,26009580176,state,2400.00,"ТОВ ""Компанія АТН""",24270655,юридична особа
РПЛ,"Харківська область, Харків, Театральний провулок, 4",51,2017-12-14,411,Оплата ефірного часу на ТБ,Телереклама,120439,Центральний офіс,37279703,Україна,Надання невиключного права на телевізійний показ твору,26009580176,state,25000.00,"ТОВ ""Компанія АТН""",24270655,юридична особа
РПЛ,"Харківська область, Харків, Театральний провулок, 4",51,2017-12-14,410,Оплата ефірного часу на ТБ,Телереклама,120438,Центральний офіс,37279703,Україна,Надання невиключного права на телевізійний показ твору,26009580176,state,12000.00,"ТОВ ""Компанія АТН""",24270655,юридична особа
РПЛ,"Харківська область, Харків, Театральний провулок, 4",48,2017-12-14,409,Публікування матеріалів у мережі Інтернет,Реклама в інтернеті,120437,Центральний офіс,37279703,Україна,Розміщення інформації в пресі,26009580176,state,11940.00,"ТОВ ""Компанія АТН""",24270655,юридична особа
РПЛ,"Київська обл., Бориспіль",83,2017-12-13,407,"Виплати працівникам (не зарплата): лікарняні, вагітності, відрядження, компенсації ","Заробітна плата, лікарняні, вагітності, відрядження, компенсації",123760,Центральний офіс,37279703,Україна,Аванс на відрядження,26009580176,state,60.00,Федун Юрій Степанович,,фізична особа
РПЛ,"Київ, проспект Миколи Бажана, 7Б, 118",43,2017-12-13,405,Інші витрати,Інші витрати,121228,Центральний офіс,37279703,Україна,Хімчистка кавроліну,26009580176,state,1225.00,Семенюк Сергій Валентинович,3129823058,фізична особа
РПЛ,"Київ, вулиця Івана Франка, 13",72,2017-12-13,404,"Придбання, ремонт офісної техніки та програмного забезпечення (Бухгалтерські програми, Ліга.закон, домени)",Придбання офісної техніки та програмного забезпечення,121038,Центральний офіс,37279703,Україна,"Роботи з обслуговування ком""ютерної техніки та локальної мережі",26009580176,state,6000.10,"ТОВ ""ОДІКОМ СЕРВІС""",40188920,юридична особа
РПЛ,"Київ, Кільцева дорога, 1Б",73,2017-12-13,406,Придбання меблів,Придбання меблів,120536,Центральний офіс,37279703,Україна,"Манометр, редуктор тиску, ящик",26009580176,state,2406.18,"ТОВ ""Епіцентр К""",32490244,юридична особа
РПЛ,"Вінницька область, Вінниця, вулиця Академіка Янгеля, 45",79,2017-12-13,401,"Оренда будинків і приміщень та експлуатаційні витрати (прибирання, страхування орендованих будинків, охорона, сигналізація, ремонт, вивіз сміття, тощо)",Оренда нерухомості,120525,Центральний офіс,37279703,Україна,Вода питна,26006580179,current,200.00,"ТОВ ""Еко-сфера""",32320552,юридична особа
РПЛ,"Полтавська область, Полтава, вулиця Європейська, 57",75,2017-12-13,403,Поштові послуги та поширення друкованих матеріалів,Поштові послуги та поширення друкованих матеріалів,120511,Центральний офіс,37279703,Україна,Організація перевезень відправлень,26009580176,state,3765.50,"ТОВ ""Нова пошта""",31316718,юридична особа
РПЛ,"Київ, вулиця Миколи Лєскова, 9",70,2017-12-13,408,Банківські послуги,Інші витрати,120405,Центральний офіс,37279703,Україна,Комісія банку за зарахування коштів на СКР працівників,26009580176,state,0.12,"АТ ""Райффайзен банк Аваль""",14305909,юридична особа
РПЛ,"Київ, вулиця Хрещатик, 22",75,2017-12-13,402,Поштові послуги та поширення друкованих матеріалів,Поштові послуги та поширення друкованих матеріалів,120199,Центральний офіс,37279703,Україна,Марки поштові,26009580176,state,1000.00,"Київська міська дирекція ПАТ ""Укрпошта""",01189979,юридична особа
РПЛ,"Херсонська область, Херсон",83,2017-12-12,398,"Виплати працівникам (не зарплата): лікарняні, вагітності, відрядження, компенсації ","Заробітна плата, лікарняні, вагітності, відрядження, компенсації",123759,Центральний офіс,37279703,Україна,Відпускні за грудень,26009580176,state,2490.13,Грицаєнко Олександр Сергійович,,фізична особа
РПЛ,"Київ, проспект Степана Бандери, 22",77,2017-12-12,400,"Оренда, ремонт та обслуговування автомобілів","Оренда, ремонт та обслуговування автомобілів",120966,Центральний офіс,37279703,Україна,Попередня оплата за нафтопродукти,26009580176,state,10000.00,"ТОВ ""ГРАНД-ПЕТРОЛ""",39641883,юридична особа
РПЛ,"Київ, вулиця Багговутівська, 26",62,2017-12-12,395,Сплата ЄСВ,Податкові платежі,120935,Центральний офіс,37279703,Україна,Єдиний соціальний внесок,26009580176,state,680.53,ДПІ у Шевченківському районі у м. Києві,38728711,юридична особа
РПЛ,"Київ, вулиця Академіка Туполєва, 28А",63,2017-12-12,397,Податок на доходи,Податкові платежі,120870,Центральний офіс,37279703,Україна,Податок на доходи фізичних осіб,26009580176,state,556.80,УДКСУ у Шевченківському районі м. Києва,37995466,юридична особа
РПЛ,"Київ, вулиця Академіка Туполєва, 28А",61,2017-12-12,396,Військовий збір,Податкові платежі,120869,Центральний офіс,37279703,Україна,Військовий збір,26009580176,state,46.40,УДКСУ у Шевченківському районі м. Києва,37995466,юридична особа
РПЛ,"Київ, Харківське шосе, 144Б, 208",74,2017-12-12,394,"Придбання канцтоварів, паперу, інших предметів і матеріалів, а також госп товари",Придбання канцтоварів та госп. товарів,120705,Центральний офіс,37279703,Україна,Бокс для ключів,26009580176,state,622.06,"ПП ""Універсалторг-сервіс""",36214844,юридична особа
РПЛ,"Київ, вулиця Миколи Лєскова, 9",70,2017-12-12,399,Банківські послуги,Інші витрати,120404,Центральний офіс,37279703,Україна,Комісія банку за зарахування коштів на СКР працівників,26009580176,state,4.98,"АТ ""Райффайзен банк Аваль""",14305909,юридична особа
РПЛ,"Київ, вулиця Ентузіастів, 31/1",69,2017-12-08,393,Організація заходів та інші організаційні послуги,Організація заходів та інші організаційні послуги,121159,Центральний офіс,37279703,Україна,Організація та проведення заходу,26009580176,state,11880.00,Глазунова Євгенія Вікторівна,2894905248,фізична особа
РПЛ,"Київ, проспект Героїв Сталінграда, 10А",74,2017-12-08,392,"Придбання канцтоварів, паперу, інших предметів і матеріалів, а також госп товари",Придбання канцтоварів та госп. товарів,121065,Центральний офіс,37279703,Україна,"Жетони, медалі, грамоти",26006580179,current,2067.46,Хазан Петро Миколайович,1780800474,фізична особа
РПЛ,"Одеська область, Одеса, вулиця Мечникова, 132",72,2017-12-08,389,"Придбання, ремонт офісної техніки та програмного забезпечення (Бухгалтерські програми, Ліга.закон, домени)",Придбання офісної техніки та програмного забезпечення,120939,Центральний офіс,37279703,Україна,Запасне дзеркало для суфлера,26009580176,state,3240.00,"ТОВ ""Відеосолюшенс груп""",38942059,юридична особа
РПЛ,"Київ, Харківське шосе, 144Б, 208",74,2017-12-08,390,"Придбання канцтоварів, паперу, інших предметів і матеріалів, а також госп товари",Придбання канцтоварів та госп. товарів,120704,Центральний офіс,37279703,Україна,Концтовари,26009580176,state,7344.71,"ПП ""Універсалторг-сервіс""",36214844,юридична особа
РПЛ,"Дніпропетровська область, Дніпро́, вулиця Калинова, 43",79,2017-12-08,391,"Оренда будинків і приміщень та експлуатаційні витрати (прибирання, страхування орендованих будинків, охорона, сигналізація, ремонт, вивіз сміття, тощо)",Оренда нерухомості,120628,Центральний офіс,37279703,Україна,"За спільне використання техн. Мереж, компенсація за опалення у листопаді",26009580176,state,5963.99,"ТОВ ""Наутилус-Інвест 2006""",34823774,юридична особа
РПЛ,"Черкаська область, Черкаси",83,2017-12-06,386,"Виплати працівникам (не зарплата): лікарняні, вагітності, відрядження, компенсації ","Заробітна плата, лікарняні, вагітності, відрядження, компенсації",123758,Центральний офіс,37279703,Україна,Відпускні за грудень,26009580176,state,4436.79,Белінська Тетяна Миколаївна,,фізична особа
РПЛ,"Київська обл., Іванківський район, Іванків",77,2017-12-06,382,"Оренда, ремонт та обслуговування автомобілів","Оренда, ремонт та обслуговування автомобілів",123757,Центральний офіс,37279703,Україна,Оренда автомобіля у листопаді,26009580176,state,2415.00,Верес Валерій Васильович,,фізична особа
РПЛ,"Київська обл., Бородянський район, Шибене",77,2017-12-06,381,"Оренда, ремонт та обслуговування автомобілів","Оренда, ремонт та обслуговування автомобілів",123756,Центральний офіс,37279703,Україна,Оренда автомобіля у листопаді,26009580176,state,20125.00,Бардаш Олег Миколайович,,фізична особа
РПЛ,"Київ, Дніпровська набережна, 26, 21",74,2017-12-06,374,"Придбання канцтоварів, паперу, інших предметів і матеріалів, а також госп товари",Придбання канцтоварів та госп. товарів,121203,Центральний офіс,37279703,Україна,"Конструкція типу ""Паук"", ""Пресс-волд""",26009580176,state,8033.00,Кольцова П О,3002412704,фізична особа
РПЛ,"Запорізька область, Гуляйпільський район, Гуляйполе, вулиця Українська",72,2017-12-06,378,"Придбання, ремонт офісної техніки та програмного забезпечення (Бухгалтерські програми, Ліга.закон, домени)",Придбання офісної техніки та програмного забезпечення,121186,Центральний офіс,37279703,Україна,Надання в строкове платне користування Віртуальної інф.,26009580176,state,1190.55,Сухобок Катерина Володимирівна,2974809628,фізична особа
РПЛ,"Запорізька область, Гуляйпільський район, Гуляйполе, вулиця Українська",72,2017-12-06,377,"Придбання, ремонт офісної техніки та програмного забезпечення (Бухгалтерські програми, Ліга.закон, домени)",Придбання офісної техніки та програмного забезпечення,121185,Центральний офіс,37279703,Україна,Надання в строкове платне користування Віртуальної інф.у режимі гіпервізора,26009580176,state,5341.38,Сухобок Катерина Володимирівна,2974809628,фізична особа
РПЛ,"Київ, вулиця Багговутівська, 26",62,2017-12-06,383,Сплата ЄСВ,Податкові платежі,120934,Центральний офіс,37279703,Україна,Єдиний соціальний внесок,26009580176,state,1212.54,ДПІ у Шевченківському районі у м. Києві,38728711,юридична особа
РПЛ,"Київ, вулиця Академіка Туполєва, 28А",63,2017-12-06,385,Податок на доходи,Податкові платежі,120868,Центральний офіс,37279703,Україна,Податок на доходи фізичних осіб,26009580176,state,992.08,УДКСУ у Шевченківському районі м. Києва,37995466,юридична особа
РПЛ,"Київ, вулиця Академіка Туполєва, 28А",61,2017-12-06,384,Військовий збір,Податкові платежі,120867,Центральний офіс,37279703,Україна,Військовий збір,26009580176,state,82.67,УДКСУ у Шевченківському районі м. Києва,37995466,юридична особа
РПЛ,"Київ, вулиця Академіка Туполєва, 28А",61,2017-12-06,380,Військовий збір,Податкові платежі,120866,Центральний офіс,37279703,Україна,Військовий збір нарахований на доходи за оренду автомобіля,26009580176,state,420.00,УДКСУ у Шевченківському районі м. Києва,37995466,юридична особа
РПЛ,"Київ, вулиця Академіка Туполєва, 28А",63,2017-12-06,379,Податок на доходи,Податкові платежі,120865,Центральний офіс,37279703,Україна,Податок на доходи фізичних осіб за оренду автомобіля,26009580176,state,5040.00,УДКСУ у Шевченківському районі м. Києва,37995466,юридична особа
РПЛ,"Київ, вулиця Михайла Бойчука, 18",57,2017-12-06,376,Виготовлення брендованої продукції,"Виготовлення брендованої продукції (футболки, кепки, парасольки)",120656,Центральний офіс,37279703,Україна,Прапор брендовий,26009580176,state,25600.00,"ТОВ ""Нові дисконтні системи України""",35196903,юридична особа
РПЛ,"Вінницька область, Вінниця, вулиця Академіка Янгеля, 45",79,2017-12-06,388,"Оренда будинків і приміщень та експлуатаційні витрати (прибирання, страхування орендованих будинків, охорона, сигналізація, ремонт, вивіз сміття, тощо)",Оренда нерухомості,120524,Центральний офіс,37279703,Україна,Вода питна,26006580179,current,240.00,"ТОВ ""Еко-сфера""",32320552,юридична особа
РПЛ,"Київ, вулиця Миколи Лєскова, 9",70,2017-12-06,387,Банківські послуги,Інші витрати,120403,Центральний офіс,37279703,Україна,Комісія банку за зарахування коштів на СКР працівників,26009580176,state,8.87,"АТ ""Райффайзен банк Аваль""",14305909,юридична особа
РПЛ,"Дніпропетровська область, Дніпро́, вулиця Воскресенська, 14",51,2017-12-06,375,Оплата ефірного часу на ТБ,Телереклама,120350,Центральний офіс,37279703,Україна,Розміщення відеоматеріалу на 34 телеканалі,26009580176,state,6400.00,"ПрАТ ""Телевізійна служба Дніпропетровська""",20264089,юридична особа
РПЛ,Київ,84,2017-12-05,371,"Заробітна плата, премії","Заробітна плата, лікарняні, вагітності, відрядження, компенсації",123755,Центральний офіс,37279703,Україна,заробітна плата за 2 пол. листопада,26009580176,state,1288.00,Нагорська Марина Володимирівна,,фізична особа
РПЛ,Київ,84,2017-12-05,372,"Заробітна плата, премії","Заробітна плата, лікарняні, вагітності, відрядження, компенсації",123754,Центральний офіс,37279703,Україна,заробітна плата за 2 пол. листопада,26009580176,state,6641.25,Мєдвєдєв Олександр Леонідович,,фізична особа
РПЛ,"Одеська область, Одеса",84,2017-12-05,370,"Заробітна плата, премії","Заробітна плата, лікарняні, вагітності, відрядження, компенсації",123753,Центральний офіс,37279703,Україна,заробітна плата за 2 пол. листопада,26009580176,state,2576.00,Щербініна Валентина Леонідівна,,фізична особа
РПЛ,Київ,84,2017-12-05,368,"Заробітна плата, премії","Заробітна плата, лікарняні, вагітності, відрядження, компенсації",123752,Центральний офіс,37279703,Україна,заробітна плата за 2 пол. листопада,26009580176,state,3521.88,Яковлєва Вероніка Павлівна,,фізична особа
РПЛ,Київ,84,2017-12-05,368,"Заробітна плата, премії","Заробітна плата, лікарняні, вагітності, відрядження, компенсації",123751,Центральний офіс,37279703,Україна,заробітна плата за 2 пол. листопада,26009580176,state,4709.25,Якименко Оксана Сергіївна,,фізична особа
РПЛ,"Дніпропетровська область, Дніпро́",84,2017-12-05,368,"Заробітна плата, премії","Заробітна плата, лікарняні, вагітності, відрядження, компенсації",123750,Центральний офіс,37279703,Україна,заробітна плата за 2 пол. листопада,26009580176,state,2576.00,Штогрін Тетяна Миколаївна,,фізична особа
РПЛ,Київ,84,2017-12-05,368,"Заробітна плата, премії","Заробітна плата, лікарняні, вагітності, відрядження, компенсації",123749,Центральний офіс,37279703,Україна,заробітна плата за 2 пол. листопада,26009580176,state,2737.00,Шищенко Наталка Олександрівна,,фізична особа
РПЛ,Київ,84,2017-12-05,368,"Заробітна плата, премії","Заробітна плата, лікарняні, вагітності, відрядження, компенсації",123748,Центральний офіс,37279703,Україна,заробітна плата за 2 пол. листопада,26009580176,state,6721.75,Шаян Євген Леонідович,,фізична особа
РПЛ,"Донецька область, Донецьк",84,2017-12-05,368,"Заробітна плата, премії","Заробітна плата, лікарняні, вагітності, відрядження, компенсації",123747,Центральний офіс,37279703,Україна,заробітна плата за 2 пол. листопада,26009580176,state,6077.75,Чухляк Ольга Олегівна,,фізична особа
РПЛ,"Вінницька область, Вінниця",84,2017-12-05,368,"Заробітна плата, премії","Заробітна плата, лікарняні, вагітності, відрядження, компенсації",123746,Центральний офіс,37279703,Україна,заробітна плата за 2 пол. листопада,26009580176,state,2576.00,Чонка Софія Миколаївна,,фізична особа
РПЛ,"Дніпропетровська область, Синельникове",84,2017-12-05,368,"Заробітна плата, премії","Заробітна плата, лікарняні, вагітності, відрядження, компенсації",123745,Центральний офіс,37279703,Україна,заробітна плата за 2 пол. листопада,26009580176,state,2576.00,Чернова Катерина Валеріївна,,фізична особа
РПЛ,"Тернопільська область, Збаразький район, Збараж",84,2017-12-05,368,"Заробітна плата, премії","Заробітна плата, лікарняні, вагітності, відрядження, компенсації",123744,Центральний офіс,37279703,Україна,заробітна плата за 2 пол. листопада,26009580176,state,2576.00,Чернета Роман Іванович,,фізична особа
РПЛ,"Житомирська область, Житомир",84,2017-12-05,368,"Заробітна плата, премії","Заробітна плата, лікарняні, вагітності, відрядження, компенсації",123743,Центральний офіс,37279703,Україна,заробітна плата за 2 пол. листопада,26009580176,state,2576.00,Цивінський Павло Васильович,,фізична особа
РПЛ,"Дніпропетровська область, Дніпро́",84,2017-12-05,368,"Заробітна плата, премії","Заробітна плата, лікарняні, вагітності, відрядження, компенсації",123742,Центральний офіс,37279703,Україна,заробітна плата за 2 пол. листопада,26009580176,state,2576.00,Цаплін Євген Костянтинович,,фізична особа
РПЛ,"Запорізька область, Запоріжжя",84,2017-12-05,368,"Заробітна плата, премії","Заробітна плата, лікарняні, вагітності, відрядження, компенсації",123741,Центральний офіс,37279703,Україна,заробітна плата за 2 пол. листопада,26009580176,state,1405.09,Хохлов Юрій Станіславович,,фізична особа
РПЛ,Київ,84,2017-12-05,368,"Заробітна плата, премії","Заробітна плата, лікарняні, вагітності, відрядження, компенсації",123740,Центральний офіс,37279703,Україна,заробітна плата за 2 пол. листопада,26009580176,state,1865.00,Хоменко Клим Миколайович,,фізична особа
РПЛ,"Київська обл., Бориспіль",84,2017-12-05,368,"Заробітна плата, премії","Заробітна плата, лікарняні, вагітності, відрядження, компенсації",123739,Центральний офіс,37279703,Україна,заробітна плата за 2 пол. листопада,26009580176,state,6601.00,Федун Юрій Степанович,,фізична особа
РПЛ,"Вінницька область, Вінниця",84,2017-12-05,368,"Заробітна плата, премії","Заробітна плата, лікарняні, вагітності, відрядження, компенсації",123738,Центральний офіс,37279703,Україна,заробітна плата за 2 пол. листопада,26009580176,state,2576.00,Федорова Ольга Іванівна,,фізична особа
РПЛ,"Чернігівська область, Чернігів",84,2017-12-05,368,"Заробітна плата, премії","Заробітна плата, лікарняні, вагітності, відрядження, компенсації",123737,Центральний офіс,37279703,Україна,заробітна плата за 2 пол. листопада,26009580176,state,2576.00,Урожай Аліна Вікторівна,,фізична особа
РПЛ,"Луганська область, Борівське",84,2017-12-05,368,"Заробітна плата, премії","Заробітна плата, лікарняні, вагітності, відрядження, компенсації",123736,Центральний офіс,37279703,Україна,заробітна плата за 2 пол. листопада,26009580176,state,2576.00,Троценко Ольга Анатоліївна,,фізична особа
РПЛ,"Волинська область, Ратнівський район, Ратне",84,2017-12-05,368,"Заробітна плата, премії","Заробітна плата, лікарняні, вагітності, відрядження, компенсації",123735,Центральний офіс,37279703,Україна,заробітна плата за 2 пол. листопада,26009580176,state,2576.00,Трикош Ірина Олександрівна,,фізична особа
РПЛ,Київ,84,2017-12-05,368,"Заробітна плата, премії","Заробітна плата, лікарняні, вагітності, відрядження, компенсації",123734,Центральний офіс,37279703,Україна,заробітна плата за 2 пол. листопада,26009580176,state,7043.75,Торговець Юлія Василівна,,фізична особа
РПЛ,Київ,84,2017-12-05,368,"Заробітна плата, премії","Заробітна плата, лікарняні, вагітності, відрядження, компенсації",123733,Центральний офіс,37279703,Україна,заробітна плата за 2 пол. листопада,26009580176,state,1288.00,Ткаченко Катерина Станіславівна,,фізична особа
РПЛ,"Київська обл., Володарський район, Володарка",84,2017-12-05,368,"Заробітна плата, премії","Заробітна плата, лікарняні, вагітності, відрядження, компенсації",123732,Центральний офіс,37279703,Україна,заробітна плата за 2 пол. листопада,26009580176,state,2576.00,Тихонова Світлана Ігорівна,,фізична особа
РПЛ,"Сумська область, Сумський район, Суми",84,2017-12-05,368,"Заробітна плата, премії","Заробітна плата, лікарняні, вагітності, відрядження, компенсації",123731,Центральний офіс,37279703,Україна,заробітна плата за 2 пол. листопада,26009580176,state,1288.00,Тихенко Володимир Сергійович,,фізична особа
РПЛ,"Чернігівська область, Корюківський район, Корюківка",84,2017-12-05,368,"Заробітна плата, премії","Заробітна плата, лікарняні, вагітності, відрядження, компенсації",123730,Центральний офіс,37279703,Україна,заробітна плата за 2 пол. листопада,26009580176,state,3853.02,Стукало Світлана Анатоліївна,,фізична особа
РПЛ,"Луганська область, Луганськ",84,2017-12-05,368,"Заробітна плата, премії","Заробітна плата, лікарняні, вагітності, відрядження, компенсації",123729,Центральний офіс,37279703,Україна,заробітна плата за 2 пол. листопада,26009580176,state,2576.00,Старицький Владислав Олександрович,,фізична особа
РПЛ,"Чернігівська область, Чернігів",84,2017-12-05,368,"Заробітна плата, премії","Заробітна плата, лікарняні, вагітності, відрядження, компенсації",123728,Центральний офіс,37279703,Україна,заробітна плата за 2 пол. листопада,26009580176,state,6601.00,Соколова Анжеліка Артурівна,,фізична особа
РПЛ,"Львівська область, Городоцький район, Городок",84,2017-12-05,368,"Заробітна плата, премії","Заробітна плата, лікарняні, вагітності, відрядження, компенсації",123727,Центральний офіс,37279703,Україна,заробітна плата за 2 пол. листопада,26009580176,state,2576.00,Снігур Христина Іванівна,,фізична особа
РПЛ,"Сумська область, Сумський район, Суми",84,2017-12-05,368,"Заробітна плата, премії","Заробітна плата, лікарняні, вагітності, відрядження, компенсації",123726,Центральний офіс,37279703,Україна,заробітна плата за 2 пол. листопада,26009580176,state,2576.00,Скляров Олександр Павлович,,фізична особа
РПЛ,"Черкаська область, Черкаси",84,2017-12-05,368,"Заробітна плата, премії","Заробітна плата, лікарняні, вагітності, відрядження, компенсації",123725,Центральний офіс,37279703,Україна,заробітна плата за 2 пол. листопада,26009580176,state,2576.00,Сичов Ігор Григорович,,фізична особа
РПЛ,"Сумська область, Сумський район, Суми",84,2017-12-05,368,"Заробітна плата, премії","Заробітна плата, лікарняні, вагітності, відрядження, компенсації",123724,Центральний офіс,37279703,Україна,заробітна плата за 2 пол. листопада,26009580176,state,1288.00,Сидоренко Дарʼя Олександрівна,,фізична особа
РПЛ,"Львівська область, Львів",84,2017-12-05,368,"Заробітна плата, премії","Заробітна плата, лікарняні, вагітності, відрядження, компенсації",123723,Центральний офіс,37279703,Україна,заробітна плата за 2 пол. листопада,26009580176,state,1288.00,Сидор Адріана Ігорівна,,фізична особа
РПЛ,"Чернівецька область, Чернівці",84,2017-12-05,368,"Заробітна плата, премії","Заробітна плата, лікарняні, вагітності, відрядження, компенсації",123722,Центральний офіс,37279703,Україна,заробітна плата за 2 пол. листопада,26009580176,state,2576.00,Сербенюк Андрій Альфредович,,фізична особа
РПЛ,"Волинська область, Луцьк",84,2017-12-05,368,"Заробітна плата, премії","Заробітна плата, лікарняні, вагітності, відрядження, компенсації",123721,Центральний офіс,37279703,Україна,заробітна плата за 2 пол. листопада,26009580176,state,2576.00,Семчук Юрій Анатолійович,,фізична особа
РПЛ,"Київ, вулиця Максима Берлинського, 6, 14",84,2017-12-05,368,"Заробітна плата, премії","Заробітна плата, лікарняні, вагітності, відрядження, компенсації",123720,Центральний офіс,37279703,Україна,заробітна плата за 2 пол. листопада,26009580176,state,2576.00,Самсонова Аліна Вікторівна,2947606863,фізична особа
РПЛ,"Закарпатська область, Ужгород",84,2017-12-05,368,"Заробітна плата, премії","Заробітна плата, лікарняні, вагітності, відрядження, компенсації",123719,Центральний офіс,37279703,Україна,заробітна плата за 2 пол. листопада,26009580176,state,2576.00,Рудман Олеся Іванівна,,фізична особа
РПЛ,"Дніпропетровська область, Дніпро́",84,2017-12-05,368,"Заробітна плата, премії","Заробітна плата, лікарняні, вагітності, відрядження, компенсації",123718,Центральний офіс,37279703,Україна,заробітна плата за 2 пол. листопада,26009580176,state,2576.00,Ревенко Юлія Сергіївна,,фізична особа
РПЛ,"Чернівецька область, Чернівці",84,2017-12-05,368,"Заробітна плата, премії","Заробітна плата, лікарняні, вагітності, відрядження, компенсації",123717,Центральний офіс,37279703,Україна,заробітна плата за 2 пол. листопада,26009580176,state,1288.00,Пузема Катерина Володимирівна,,фізична особа
РПЛ,Київ,84,2017-12-05,368,"Заробітна плата, премії","Заробітна плата, лікарняні, вагітності, відрядження, компенсації",123716,Центральний офіс,37279703,Україна,заробітна плата за 2 пол. листопада,26009580176,state,6601.00,Пугачова Ярослава Павлівна,,фізична особа
РПЛ,"Хмельницька область, Красилівський район, Красилів",84,2017-12-05,368,"Заробітна плата, премії","Заробітна плата, лікарняні, вагітності, відрядження, компенсації",123715,Центральний офіс,37279703,Україна,заробітна плата за 2 пол. листопада,26009580176,state,1288.00,Процюк Наталія Юріївна,,фізична особа
РПЛ,Київ,84,2017-12-05,368,"Заробітна плата, премії","Заробітна плата, лікарняні, вагітності, відрядження, компенсації",123714,Центральний офіс,37279703,Україна,заробітна плата за 2 пол. листопада,26009580176,state,6077.75,Приміський Олег Владиславович,,фізична особа
РПЛ,"Київська обл., Обухівський район, Обухів",84,2017-12-05,368,"Заробітна плата, премії","Заробітна плата, лікарняні, вагітності, відрядження, компенсації",123713,Центральний офіс,37279703,Україна,заробітна плата за 2 пол. листопада,26009580176,state,2576.00,Потеряйко Вадим Юрійович,,фізична особа
РПЛ,"Закарпатська область, Ужгород",84,2017-12-05,368,"Заробітна плата, премії","Заробітна плата, лікарняні, вагітності, відрядження, компенсації",123712,Центральний офіс,37279703,Україна,заробітна плата за 2 пол. листопада,26009580176,state,1288.00,Попадюк Надія Іванівна,,фізична особа
РПЛ,Київ,84,2017-12-05,368,"Заробітна плата, премії","Заробітна плата, лікарняні, вагітності, відрядження, компенсації",123711,Центральний офіс,37279703,Україна,заробітна плата за 2 пол. листопада,26009580176,state,4420.18,Поліщук Анна Валентинівна,,фізична особа
РПЛ,"Сумська область, Сумський район, Суми",84,2017-12-05,368,"Заробітна плата, премії","Заробітна плата, лікарняні, вагітності, відрядження, компенсації",123710,Центральний офіс,37279703,Україна,заробітна плата за 2 пол. листопада,26009580176,state,429.34,Пінчук Юрій Петрович,,фізична особа
РПЛ,"Одеська область, Одеса",84,2017-12-05,368,"Заробітна плата, премії","Заробітна плата, лікарняні, вагітності, відрядження, компенсації",123709,Центральний офіс,37279703,Україна,заробітна плата за 2 пол. листопада,26009580176,state,2576.00,Перчеклій Микола Васильович,,фізична особа
РПЛ,Київ,84,2017-12-05,368,"Заробітна плата, премії","Заробітна плата, лікарняні, вагітності, відрядження, компенсації",123708,Центральний офіс,37279703,Україна,заробітна плата за 2 пол. листопада,26009580176,state,2576.00,Пархоменко Аліна Петрівна,,фізична особа
РПЛ,Київ,84,2017-12-05,368,"Заробітна плата, премії","Заробітна плата, лікарняні, вагітності, відрядження, компенсації",123707,Центральний офіс,37279703,Україна,заробітна плата за 2 пол. листопада,26009580176,state,2576.00,Парака Ярослава Володимирівна,,фізична особа
РПЛ,"Київська обл., Васильків",84,2017-12-05,368,"Заробітна плата, премії","Заробітна плата, лікарняні, вагітності, відрядження, компенсації",123706,Центральний офіс,37279703,Україна,заробітна плата за 2 пол. листопада,26009580176,state,6077.75,Падурець Людмила Володимирівна,,фізична особа
РПЛ,"Київська обл., Біла Церква",84,2017-12-05,368,"Заробітна плата, премії","Заробітна плата, лікарняні, вагітності, відрядження, компенсації",123705,Центральний офіс,37279703,Україна,заробітна плата за 2 пол. листопада,26009580176,state,1911.88,Остапенко Сергій Анатолійович,,фізична особа
РПЛ,"Харківська область, Харків",84,2017-12-05,368,"Заробітна плата, премії","Заробітна плата, лікарняні, вагітності, відрядження, компенсації",123704,Центральний офіс,37279703,Україна,заробітна плата за 2 пол. листопада,26009580176,state,2576.00,Олійник Костянтин Михайлович,,фізична особа
РПЛ,"Чернігівська область, Чернігів",84,2017-12-05,368,"Заробітна плата, премії","Заробітна плата, лікарняні, вагітності, відрядження, компенсації",123703,Центральний офіс,37279703,Україна,заробітна плата за 2 пол. листопада,26009580176,state,2576.00,Олексієнко Ярослав Олександрович,,фізична особа
РПЛ,Київ,84,2017-12-05,368,"Заробітна плата, премії","Заробітна плата, лікарняні, вагітності, відрядження, компенсації",123702,Центральний офіс,37279703,Україна,заробітна плата за 2 пол. листопада,26009580176,state,5393.50,Новохацька Олександра Вікторівна,,фізична особа
РПЛ,"Тернопільська область, Тернопіль",84,2017-12-05,368,"Заробітна плата, премії","Заробітна плата, лікарняні, вагітності, відрядження, компенсації",123701,Центральний офіс,37279703,Україна,заробітна плата за 2 пол. листопада,26009580176,state,2576.00,Німко Олег Васильович,,фізична особа
РПЛ,Київ,84,2017-12-05,368,"Заробітна плата, премії","Заробітна плата, лікарняні, вагітності, відрядження, компенсації",123700,Центральний офіс,37279703,Україна,заробітна плата за 2 пол. листопада,26009580176,state,4756.81,Нечипорук Олександр Григорович,,фізична особа
РПЛ,"Рівненська область, Рівне",84,2017-12-05,368,"Заробітна плата, премії","Заробітна плата, лікарняні, вагітності, відрядження, компенсації",123699,Центральний офіс,37279703,Україна,заробітна плата за 2 пол. листопада,26009580176,state,2576.00,Назарчук Юлія Юріївна,,фізична особа
РПЛ,"Запорізька область, Запоріжжя",84,2017-12-05,368,"Заробітна плата, премії","Заробітна плата, лікарняні, вагітності, відрядження, компенсації",123698,Центральний офіс,37279703,Україна,заробітна плата за 2 пол. листопада,26009580176,state,2576.00,Надолинський Ростислав Федорович,,фізична особа
РПЛ,"Полтавська область, Лубенський район, Новооріхівка",84,2017-12-05,368,"Заробітна плата, премії","Заробітна плата, лікарняні, вагітності, відрядження, компенсації",123697,Центральний офіс,37279703,Україна,заробітна плата за 2 пол. листопада,26009580176,state,1288.00,Моренко Лідія Сергіївна,,фізична особа
РПЛ,"Полтавська область, Лубенський район, Новооріхівка",84,2017-12-05,368,"Заробітна плата, премії","Заробітна плата, лікарняні, вагітності, відрядження, компенсації",123696,Центральний офіс,37279703,Україна,заробітна плата за 2 пол. листопада,26009580176,state,1288.00,Мірошниченко Віталій Григорович,,фізична особа
РПЛ,"Львівська область, Львів",84,2017-12-05,368,"Заробітна плата, премії","Заробітна плата, лікарняні, вагітності, відрядження, компенсації",123695,Центральний офіс,37279703,Україна,заробітна плата за 2 пол. листопада,26009580176,state,2576.00,Мигул Олеся Стефанівна,,фізична особа
РПЛ,Київ,84,2017-12-05,368,"Заробітна плата, премії","Заробітна плата, лікарняні, вагітності, відрядження, компенсації",123694,Центральний офіс,37279703,Україна,заробітна плата за 2 пол. листопада,26009580176,state,6721.75,Мелещук Наталія Володимирівна,,фізична особа
РПЛ,"Полтавська область, Полтава",84,2017-12-05,368,"Заробітна плата, премії","Заробітна плата, лікарняні, вагітності, відрядження, компенсації",123693,Центральний офіс,37279703,Україна,заробітна плата за 2 пол. листопада,26009580176,state,6077.75,Матяш Руслан Анатолійович,,фізична особа
РПЛ,"Кіровоградська область, Олександрія",84,2017-12-05,368,"Заробітна плата, премії","Заробітна плата, лікарняні, вагітності, відрядження, компенсації",123692,Центральний офіс,37279703,Україна,заробітна плата за 2 пол. листопада,26009580176,state,3115.20,Матвієць Вікторія Олександрівна,,фізична особа
РПЛ,"Одеська область, Подільськ",84,2017-12-05,368,"Заробітна плата, премії","Заробітна плата, лікарняні, вагітності, відрядження, компенсації",123691,Центральний офіс,37279703,Україна,заробітна плата за 2 пол. листопада,26009580176,state,2576.00,Максимчук Марина Юріївна,,фізична особа
РПЛ,Київ,84,2017-12-05,368,"Заробітна плата, премії","Заробітна плата, лікарняні, вагітності, відрядження, компенсації",123690,Центральний офіс,37279703,Україна,заробітна плата за 2 пол. листопада,26009580176,state,6077.75,Макарова Юлія Миколаївна,,фізична особа
РПЛ,"Івано-Франківська область, Івано-Франківськ",84,2017-12-05,368,"Заробітна плата, премії","Заробітна плата, лікарняні, вагітності, відрядження, компенсації",123689,Центральний офіс,37279703,Україна,заробітна плата за 2 пол. листопада,26009580176,state,2576.00,Мазур Юрій Валентинович,,фізична особа
РПЛ,Київ,84,2017-12-05,368,"Заробітна плата, премії","Заробітна плата, лікарняні, вагітності, відрядження, компенсації",123688,Центральний офіс,37279703,Україна,заробітна плата за 2 пол. листопада,26009580176,state,3763.38,Ляшенко Андрій Віталійович,,фізична особа
РПЛ,"Кіровоградська область, Новомиргородський район, Мартоноша",84,2017-12-05,368,"Заробітна плата, премії","Заробітна плата, лікарняні, вагітності, відрядження, компенсації",123687,Центральний офіс,37279703,Україна,заробітна плата за 2 пол. листопада,26009580176,state,2576.00,Лягур Ірина Василівна,,фізична особа
РПЛ,"Закарпатська область, Ужгородський район, Часлівці",84,2017-12-05,368,"Заробітна плата, премії","Заробітна плата, лікарняні, вагітності, відрядження, компенсації",123686,Центральний офіс,37279703,Україна,заробітна плата за 2 пол. листопада,26009580176,state,1288.00,Лютянський Сергій Іванович,,фізична особа
РПЛ,Київ,84,2017-12-05,368,"Заробітна плата, премії","Заробітна плата, лікарняні, вагітності, відрядження, компенсації",123685,Центральний офіс,37279703,Україна,заробітна плата за 2 пол. листопада,26009580176,state,3823.75,Лінська Віта Юріївна,,фізична особа
РПЛ,"Одеська область, Одеса",84,2017-12-05,368,"Заробітна плата, премії","Заробітна плата, лікарняні, вагітності, відрядження, компенсації",123684,Центральний офіс,37279703,Україна,заробітна плата за 2 пол. листопада,26009580176,state,2576.00,Лисейко Оксана Вікторівна,,фізична особа
РПЛ,"Одеська область, Одеса",84,2017-12-05,368,"Заробітна плата, премії","Заробітна плата, лікарняні, вагітності, відрядження, компенсації",123683,Центральний офіс,37279703,Україна,заробітна плата за 2 пол. листопада,26009580176,state,2576.00,Лисейко Ігор Федорович,,фізична особа
РПЛ,Київ,84,2017-12-05,368,"Заробітна плата, премії","Заробітна плата, лікарняні, вагітності, відрядження, компенсації",123682,Центральний офіс,37279703,Україна,заробітна плата за 2 пол. листопада,26009580176,state,2576.00,Линовицький Ігор Олександрович,,фізична особа
РПЛ,Київ,84,2017-12-05,368,"Заробітна плата, премії","Заробітна плата, лікарняні, вагітності, відрядження, компенсації",123681,Центральний офіс,37279703,Україна,заробітна плата за 2 пол. листопада,26009580176,state,6077.75,Куц Тарас Федорович,,фізична особа
РПЛ,"Черкаська область, Черкаський район, Дубіївка",84,2017-12-05,368,"Заробітна плата, премії","Заробітна плата, лікарняні, вагітності, відрядження, компенсації",123680,Центральний офіс,37279703,Україна,заробітна плата за 2 пол. листопада,26009580176,state,6641.25,Кутілова Вікторія Володимирівна,,фізична особа
РПЛ,"Івано-Франківська область, Тисменицький район, Чукалівка",84,2017-12-05,368,"Заробітна плата, премії","Заробітна плата, лікарняні, вагітності, відрядження, компенсації",123679,Центральний офіс,37279703,Україна,заробітна плата за 2 пол. листопада,26009580176,state,2576.00,Кривченко Тетяна Миколаївна,,фізична особа
РПЛ,"Київська обл., Васильків",84,2017-12-05,368,"Заробітна плата, премії","Заробітна плата, лікарняні, вагітності, відрядження, компенсації",123678,Центральний офіс,37279703,Україна,заробітна плата за 2 пол. листопада,26009580176,state,8050.00,Криворучко Ігор Олегович,,фізична особа
РПЛ,"Чернігівська область, Ічнянський район, Ічня",84,2017-12-05,368,"Заробітна плата, премії","Заробітна плата, лікарняні, вагітності, відрядження, компенсації",123677,Центральний офіс,37279703,Україна,заробітна плата за 2 пол. листопада,26009580176,state,1288.00,Крамаренко Сергій Миколайович,,фізична особа
РПЛ,Київ,84,2017-12-05,368,"Заробітна плата, премії","Заробітна плата, лікарняні, вагітності, відрядження, компенсації",123676,Центральний офіс,37279703,Україна,заробітна плата за 2 пол. листопада,26009580176,state,2807.43,Кравченко Сергій Вікторович,,фізична особа
РПЛ,"Київська обл., Бровари",84,2017-12-05,368,"Заробітна плата, премії","Заробітна плата, лікарняні, вагітності, відрядження, компенсації",123675,Центральний офіс,37279703,Україна,заробітна плата за 2 пол. листопада,26009580176,state,2576.00,Кравченко Олександр Миколайович,,фізична особа
РПЛ,Київ,84,2017-12-05,368,"Заробітна плата, премії","Заробітна плата, лікарняні, вагітності, відрядження, компенсації",123674,Центральний офіс,37279703,Україна,заробітна плата за 2 пол. листопада,26009580176,state,6641.25,Короткий Геннадій Леонідович,,фізична особа
РПЛ,Київ,84,2017-12-05,368,"Заробітна плата, премії","Заробітна плата, лікарняні, вагітності, відрядження, компенсації",123673,Центральний офіс,37279703,Україна,заробітна плата за 2 пол. листопада,26009580176,state,2576.00,Кондюх Андрій Олегович,,фізична особа
РПЛ,"Рівненська область, Рівне",84,2017-12-05,368,"Заробітна плата, премії","Заробітна плата, лікарняні, вагітності, відрядження, компенсації",123672,Центральний офіс,37279703,Україна,заробітна плата за 2 пол. листопада,26009580176,state,1288.00,Конєв Володимир Леонідович,,фізична особа
РПЛ,"Чернігівська область, Городнянський район, Городня",84,2017-12-05,368,"Заробітна плата, премії","Заробітна плата, лікарняні, вагітності, відрядження, компенсації",123671,Центральний офіс,37279703,Україна,заробітна плата за 2 пол. листопада,26009580176,state,1288.00,Климович Тетяна Вікторівна,,фізична особа
РПЛ,Київ,84,2017-12-05,368,"Заробітна плата, премії","Заробітна плата, лікарняні, вагітності, відрядження, компенсації",123670,Центральний офіс,37279703,Україна,заробітна плата за 2 пол. листопада,26009580176,state,2576.00,Кітаєв Роман Русланович,,фізична особа
РПЛ,"Одеська область, Тарутинський район, Тарутине",84,2017-12-05,368,"Заробітна плата, премії","Заробітна плата, лікарняні, вагітності, відрядження, компенсації",123669,Центральний офіс,37279703,Україна,заробітна плата за 2 пол. листопада,26009580176,state,2576.00,Кисса Святослав Вікторович,,фізична особа
РПЛ,м. Кропивницький,84,2017-12-05,368,"Заробітна плата, премії","Заробітна плата, лікарняні, вагітності, відрядження, компенсації",123668,Центральний офіс,37279703,Україна,заробітна плата за 2 пол. листопада,26009580176,state,2576.00,Кашуба Олег Валерійович,,фізична особа
РПЛ,"Закарпатська область, Ужгород",84,2017-12-05,368,"Заробітна плата, премії","Заробітна плата, лікарняні, вагітності, відрядження, компенсації",123667,Центральний офіс,37279703,Україна,заробітна плата за 2 пол. листопада,26009580176,state,1639.27,Іваненко Олександр Володимирович,,фізична особа
РПЛ,Київ,84,2017-12-05,368,"Заробітна плата, премії","Заробітна плата, лікарняні, вагітності, відрядження, компенсації",123666,Центральний офіс,37279703,Україна,заробітна плата за 2 пол. листопада,26009580176,state,6077.75,Євтушенко Наталія Федорівна,,фізична особа
РПЛ,"Запорізька область, Запоріжжя",84,2017-12-05,368,"Заробітна плата, премії","Заробітна плата, лікарняні, вагітності, відрядження, компенсації",123665,Центральний офіс,37279703,Україна,заробітна плата за 2 пол. листопада,26009580176,state,1405.09,Дергачова Ірина Станіславівна,,фізична особа
РПЛ,"Хмельницька область, Хмельницький",84,2017-12-05,368,"Заробітна плата, премії","Заробітна плата, лікарняні, вагітності, відрядження, компенсації",123664,Центральний офіс,37279703,Україна,заробітна плата за 2 пол. листопада,26009580176,state,1288.00,Данілкова Анастасія Юріївна,,фізична особа
РПЛ,"Чернігівська область, Сновський район, Сновськ",84,2017-12-05,368,"Заробітна плата, премії","Заробітна плата, лікарняні, вагітності, відрядження, компенсації",123663,Центральний офіс,37279703,Україна,заробітна плата за 2 пол. листопада,26009580176,state,3360.88,Данильченко Ніна Василівна,,фізична особа
РПЛ,Київ,84,2017-12-05,368,"Заробітна плата, премії","Заробітна плата, лікарняні, вагітності, відрядження, компенсації",123662,Центральний офіс,37279703,Україна,заробітна плата за 2 пол. листопада,26009580176,state,7043.75,Даниленко Антон Олександрович,,фізична особа
РПЛ,"Херсонська область, Херсон",84,2017-12-05,368,"Заробітна плата, премії","Заробітна плата, лікарняні, вагітності, відрядження, компенсації",123661,Центральний офіс,37279703,Україна,заробітна плата за 2 пол. листопада,26009580176,state,2576.00,Грицаєнко Олександр Сергійович,,фізична особа
РПЛ,"Київська обл., Броварський район, Світильня",84,2017-12-05,368,"Заробітна плата, премії","Заробітна плата, лікарняні, вагітності, відрядження, компенсації",123660,Центральний офіс,37279703,Україна,заробітна плата за 2 пол. листопада,26009580176,state,6641.25,Гринчук Тетяна Володимирівна,,фізична особа
РПЛ,Київ,84,2017-12-05,368,"Заробітна плата, премії","Заробітна плата, лікарняні, вагітності, відрядження, компенсації",123659,Центральний офіс,37279703,Україна,заробітна плата за 2 пол. листопада,26009580176,state,4709.25,Грабик Алла Ігорівна,,фізична особа
РПЛ,Київ,84,2017-12-05,368,"Заробітна плата, премії","Заробітна плата, лікарняні, вагітності, відрядження, компенсації",123658,Центральний офіс,37279703,Україна,заробітна плата за 2 пол. листопада,26009580176,state,2576.00,Городенко Ольга Борисівна,,фізична особа
РПЛ,"Дніпропетровська область, Нікополь",84,2017-12-05,368,"Заробітна плата, премії","Заробітна плата, лікарняні, вагітності, відрядження, компенсації",123657,Центральний офіс,37279703,Україна,заробітна плата за 2 пол. листопада,26009580176,state,2576.00,Горобець Сергій Геннадійович,,фізична особа
РПЛ,"Житомирська область, Житомир",84,2017-12-05,368,"Заробітна плата, премії","Заробітна плата, лікарняні, вагітності, відрядження, компенсації",123656,Центральний офіс,37279703,Україна,заробітна плата за 2 пол. листопада,26009580176,state,2576.00,Гнєушев Сергій Вікторович,,фізична особа
РПЛ,Київ,84,2017-12-05,368,"Заробітна плата, премії","Заробітна плата, лікарняні, вагітності, відрядження, компенсації",123655,Центральний офіс,37279703,Україна,заробітна плата за 2 пол. листопада,26009580176,state,6077.75,Герасименко Євгеній Юрійович,,фізична особа
РПЛ,"Волинська область, Рожищенський район, Копачівка",84,2017-12-05,368,"Заробітна плата, премії","Заробітна плата, лікарняні, вагітності, відрядження, компенсації",123654,Центральний офіс,37279703,Україна,заробітна плата за 2 пол. листопада,26009580176,state,2576.00,Воробйова Жанна Миколаївна,,фізична особа
РПЛ,"Вінницька область, Чернівецький район, Шендерівка",84,2017-12-05,368,"Заробітна плата, премії","Заробітна плата, лікарняні, вагітності, відрядження, компенсації",123653,Центральний офіс,37279703,Україна,заробітна плата за 2 пол. листопада,26009580176,state,2576.00,Войцех Юлія Миколаївна,,фізична особа
РПЛ,"Тернопільська область, Тернопіль",84,2017-12-05,368,"Заробітна плата, премії","Заробітна плата, лікарняні, вагітності, відрядження, компенсації",123652,Центральний офіс,37279703,Україна,заробітна плата за 2 пол. листопада,26009580176,state,2576.00,Влізло Ольга Миколаївна,,фізична особа
РПЛ,Київ,84,2017-12-05,368,"Заробітна плата, премії","Заробітна плата, лікарняні, вагітності, відрядження, компенсації",123651,Центральний офіс,37279703,Україна,заробітна плата за 2 пол. листопада,26009580176,state,3360.88,Відмиш Євген Аркадійович,,фізична особа
РПЛ,"Миколаївська область, Миколаїв",84,2017-12-05,368,"Заробітна плата, премії","Заробітна плата, лікарняні, вагітності, відрядження, компенсації",123650,Центральний офіс,37279703,Україна,заробітна плата за 2 пол. листопада,26009580176,state,2576.00,Висоцька Катерина Олександрівна,,фізична особа
РПЛ,"Львівська область, Жидачівський район, Ходорів",84,2017-12-05,368,"Заробітна плата, премії","Заробітна плата, лікарняні, вагітності, відрядження, компенсації",123649,Центральний офіс,37279703,Україна,заробітна плата за 2 пол. листопада,26009580176,state,2576.00,Бутковська Зоряна Богданівна,,фізична особа
РПЛ,Київ,84,2017-12-05,368,"Заробітна плата, премії","Заробітна плата, лікарняні, вагітності, відрядження, компенсації",123648,Центральний офіс,37279703,Україна,заробітна плата за 2 пол. листопада,26009580176,state,5499.61,Бугаєв Сергій Володимирович,,фізична особа
РПЛ,"Хмельницька область, Хмельницький",84,2017-12-05,368,"Заробітна плата, премії","Заробітна плата, лікарняні, вагітності, відрядження, компенсації",123647,Центральний офіс,37279703,Україна,заробітна плата за 2 пол. листопада,26009580176,state,2576.00,Брезденюк Аліна Олегівна,,фізична особа
РПЛ,Київ,84,2017-12-05,368,"Заробітна плата, премії","Заробітна плата, лікарняні, вагітності, відрядження, компенсації",123646,Центральний офіс,37279703,Україна,заробітна плата за 2 пол. листопада,26009580176,state,2576.00,Бондаренко Владислав Юрійович,,фізична особа
РПЛ,м. Кропивницький,84,2017-12-05,368,"Заробітна плата, премії","Заробітна плата, лікарняні, вагітності, відрядження, компенсації",123645,Центральний офіс,37279703,Україна,заробітна плата за 2 пол. листопада,26009580176,state,2576.00,Бойко Сергій Вікторович,,фізична особа
РПЛ,"Рівненська область, Рівне",84,2017-12-05,368,"Заробітна плата, премії","Заробітна плата, лікарняні, вагітності, відрядження, компенсації",123644,Центральний офіс,37279703,Україна,заробітна плата за 2 пол. листопада,26009580176,state,2576.00,Біла Оксана Володимирівна,,фізична особа
РПЛ,Київ,84,2017-12-05,368,"Заробітна плата, премії","Заробітна плата, лікарняні, вагітності, відрядження, компенсації",123643,Центральний офіс,37279703,Україна,заробітна плата за 2 пол. листопада,26009580176,state,3038.88,Бистрякова Юлія Ігорівна,,фізична особа
РПЛ,"Чернівецька область, Чернівці",84,2017-12-05,368,"Заробітна плата, премії","Заробітна плата, лікарняні, вагітності, відрядження, компенсації",123642,Центральний офіс,37279703,Україна,заробітна плата за 2 пол. листопада,26009580176,state,2576.00,Беркещук Катерина Володимирівна,,фізична особа
РПЛ,"Харківська область, Харків",84,2017-12-05,368,"Заробітна плата, премії","Заробітна плата, лікарняні, вагітності, відрядження, компенсації",123641,Центральний офіс,37279703,Україна,заробітна плата за 2 пол. листопада,26009580176,state,2576.00,Беляєва Анна Ігорівна,,фізична особа
РПЛ,"Черкаська область, Черкаси",84,2017-12-05,368,"Заробітна плата, премії","Заробітна плата, лікарняні, вагітності, відрядження, компенсації",123640,Центральний офіс,37279703,Україна,заробітна плата за 2 пол. листопада,26009580176,state,2576.00,Белінська Тетяна Миколаївна,,фізична особа
РПЛ,"Чернівецька область, Глибоцький район, Коровія",84,2017-12-05,368,"Заробітна плата, премії","Заробітна плата, лікарняні, вагітності, відрядження, компенсації",123639,Центральний офіс,37279703,Україна,заробітна плата за 2 пол. листопада,26009580176,state,5433.75,Бауер Марія Василівна,,фізична особа
РПЛ,"Київська обл., Бородянський район, Шибене",84,2017-12-05,368,"Заробітна плата, премії","Заробітна плата, лікарняні, вагітності, відрядження, компенсації",123638,Центральний офіс,37279703,Україна,заробітна плата за 2 пол. листопада,26009580176,state,6762.00,Бардаш Олег Миколайович,,фізична особа
РПЛ,"Тернопільська область, Лановецький район, Ланівці",84,2017-12-05,368,"Заробітна плата, премії","Заробітна плата, лікарняні, вагітності, відрядження, компенсації",123637,Центральний офіс,37279703,Україна,заробітна плата за 2 пол. листопада,26009580176,state,2576.00,Барва Ярослав Ігорович,,фізична особа
РПЛ,"Київська обл., Обухівський район, Українка",84,2017-12-05,368,"Заробітна плата, премії","Заробітна плата, лікарняні, вагітності, відрядження, компенсації",123636,Центральний офіс,37279703,Україна,заробітна плата за 2 пол. листопада,26009580176,state,2576.00,Байбула Юрій Михайлович,,фізична особа
РПЛ,"Харківська область, Харків",84,2017-12-05,368,"Заробітна плата, премії","Заробітна плата, лікарняні, вагітності, відрядження, компенсації",123635,Центральний офіс,37279703,Україна,заробітна плата за 2 пол. листопада,26009580176,state,2576.00,Андрейченко Андрій Юрійович,,фізична особа
РПЛ,"Миколаївська область, Миколаїв",84,2017-12-05,368,"Заробітна плата, премії","Заробітна плата, лікарняні, вагітності, відрядження, компенсації",123634,Центральний офіс,37279703,Україна,заробітна плата за 2 пол. листопада,26009580176,state,2576.00,Алєксєєв Антон Леонідович,,фізична особа
РПЛ,"Київська обл., Бориспіль",83,2017-12-05,366,"Виплати працівникам (не зарплата): лікарняні, вагітності, відрядження, компенсації ","Заробітна плата, лікарняні, вагітності, відрядження, компенсації",123633,Центральний офіс,37279703,Україна,Аванс на відрядження,26009580176,state,936.00,Федун Юрій Степанович,,фізична особа
РПЛ,"Вінницька область, Вінниця",83,2017-12-05,364,"Виплати працівникам (не зарплата): лікарняні, вагітності, відрядження, компенсації ","Заробітна плата, лікарняні, вагітності, відрядження, компенсації",123632,Центральний офіс,37279703,Україна,Відпускні за грудень,26009580176,state,4210.93,Федорова Ольга Іванівна,,фізична особа
РПЛ,"Сумська область, Білопільський район, Улянівка",84,2017-12-05,350,"Заробітна плата, премії","Заробітна плата, лікарняні, вагітності, відрядження, компенсації",123631,Центральний офіс,37279703,Україна,Аліменти утримані із з/плати Пінчук Ю.П.,26009580176,state,858.66,Пінчук Аліна Євгеніївна,,фізична особа
РПЛ,"Київ, вулиця Ентузіастів, 31/1",69,2017-12-05,373,Організація заходів та інші організаційні послуги,Організація заходів та інші організаційні послуги,121158,Центральний офіс,37279703,Україна,За користування конференц-залом,26009580176,state,10500.00,Глазунова Євгенія Вікторівна,2894905248,фізична особа
РПЛ,"Черкаська область, Звенигородський район, Звенигородка, провулок Островського, 1",43,2017-12-05,351,Інші витрати,Інші витрати,121039,Центральний офіс,37279703,Україна,Відрахування із з/плати Хоменко К.М. згідно виконавчого листа,26009580176,state,711.00,Звенигородський міськрайонний ВДВС ГТУ,40291673,юридична особа
РПЛ,"Хмельницька область, Хмельницький, вулиця Грушевського, 59",72,2017-12-05,353,"Придбання, ремонт офісної техніки та програмного забезпечення (Бухгалтерські програми, Ліга.закон, домени)",Придбання офісної техніки та програмного забезпечення,121027,Центральний офіс,37279703,Україна,"Стержні, зажим, кріплення",26009580176,state,268.80,"ТОВ ""27""",40063820,юридична особа
РПЛ,"Київ, вулиця Бориспільська, 11А",58,2017-12-05,357,"Виготовлення друкованих матеріалів (плакатів, листівок, буклетів та інших агітаційних матеріалів)",Друкована агітація,120968,Центральний офіс,37279703,Україна,Листівки А4,26009580176,state,28200.00,"ТОВ ""АРТАЛЕКО ГІФТС""",39677993,юридична особа
РПЛ,"Київ, вулиця Багговутівська, 26",62,2017-12-05,361,Сплата ЄСВ,Податкові платежі,120933,Центральний офіс,37279703,Україна,Єдиний соціальний внесок,26009580176,state,1150.81,ДПІ у Шевченківському районі у м. Києві,38728711,юридична особа
РПЛ,"Київ, вулиця Багговутівська, 26",62,2017-12-05,341,Сплата ЄСВ,Податкові платежі,120932,Центральний офіс,37279703,Україна,Єдиний соціальний внесок,26009580176,state,115100.00,ДПІ у Шевченківському районі у м. Києві,38728711,юридична особа
РПЛ,"Київ, вулиця Академіка Туполєва, 28А",63,2017-12-05,342,Податок на доходи,Податкові платежі,120864,Центральний офіс,37279703,Україна,Податок на доходи фізичних осіб,26009580176,state,88566.00,УДКСУ у Шевченківському районі м. Києва,37995466,юридична особа
РПЛ,"Київ, вулиця Академіка Туполєва, 28А",63,2017-12-05,363,Податок на доходи,Податкові платежі,120863,Центральний офіс,37279703,Україна,Податок на доходи фізичних осіб,26009580176,state,941.57,УДКСУ у Шевченківському районі м. Києва,37995466,юридична особа
РПЛ,"Київ, вулиця Академіка Туполєва, 28А",61,2017-12-05,362,Військовий збір,Податкові платежі,120862,Центральний офіс,37279703,Україна,Військовий збір,26009580176,state,78.46,УДКСУ у Шевченківському районі м. Києва,37995466,юридична особа
РПЛ,"Київ, вулиця Академіка Туполєва, 28А",61,2017-12-05,343,Військовий збір,Податкові платежі,120861,Центральний офіс,37279703,Україна,Військовий збір нарахований на доходи громадян за 1пол.листопада,26009580176,state,7376.30,УДКСУ у Шевченківському районі м. Києва,37995466,юридична особа
РПЛ,"Рівненська область, Рівне, вулиця Замкова, 22",43,2017-12-05,348,Інші витрати,Інші витрати,120647,Центральний офіс,37279703,Україна,Відрахування із з/плати Конєва В.Л.згідно виконавчого листа,26009580176,state,21.00,Рівненський міський відділ ДВС ГТУЮ у Рівненській обл.,35007146,юридична особа
РПЛ,"Рівненська область, Рівне, вулиця Замкова, 22",43,2017-12-05,347,Інші витрати,Інші витрати,120646,Центральний офіс,37279703,Україна,Відрахування із з/плати Конєва В.Л.згідно виконавчого листа,26009580176,state,688.00,Рівненський міський відділ ДВС ГТУЮ у Рівненській обл.,35007146,юридична особа
РПЛ,"Рівненська область, Рівне, вулиця Замкова, 22",43,2017-12-05,346,Інші витрати,Інші витрати,120645,Центральний офіс,37279703,Україна,Відрахування із з/плати Конєва В.Л.згідно виконавчого листа,26009580176,state,1175.00,Рівненський міський відділ ДВС ГТУЮ у Рівненській обл.,35007146,юридична особа
РПЛ,"Рівненська область, Рівне, вулиця Замкова, 22",43,2017-12-05,345,Інші витрати,Інші витрати,120644,Центральний офіс,37279703,Україна,Відрахування із з/плати Конєва В.Л.згідно виконавчого листа,26009580176,state,5.00,Рівненський міський відділ ДВС ГТУЮ у Рівненській обл.,35007146,юридична особа
РПЛ,"Рівненська область, Рівне, вулиця Замкова, 22",43,2017-12-05,349,Інші витрати,Інші витрати,120643,Центральний офіс,37279703,Україна,Відрахування із з/плати Конєва В.Л.згідно виконавчого листа,26009580176,state,21.00,Рівненський міський відділ ДВС ГТУЮ у Рівненській обл.,35007146,юридична особа
РПЛ,"Рівненська область, Рівне, вулиця Замкова, 22",43,2017-12-05,344,Інші витрати,Інші витрати,120642,Центральний офіс,37279703,Україна,Відрахування із з/плати Конєва В.Л.згідно виконавчого листа,26009580176,state,666.00,Рівненський міський відділ ДВС ГТУЮ у Рівненській обл.,35007146,юридична особа
РПЛ,"Київ, Кільцева дорога, 1Б",73,2017-12-05,354,Придбання меблів,Придбання меблів,120535,Центральний офіс,37279703,Україна,"Стелаж, вішалки, мішки д/сміття",26009580176,state,3045.48,"ТОВ ""Епіцентр К""",32490244,юридична особа
РПЛ,"Київ, Кільцева дорога, 1Б",73,2017-12-05,356,Придбання меблів,Придбання меблів,120534,Центральний офіс,37279703,Україна,За стілець,26009580176,state,942.00,"ТОВ ""Епіцентр К""",32490244,юридична особа
РПЛ,"Київ, вулиця Братиславська, 11",74,2017-12-05,355,"Придбання канцтоварів, паперу, інших предметів і матеріалів, а також госп товари",Придбання канцтоварів та госп. товарів,120532,Центральний офіс,37279703,Україна,Столове приладдя,26006580179,current,439.92,"ТОВ ""Епіцентр К""",32490244,юридична особа
РПЛ,"Полтавська область, Полтава, вулиця Європейська, 57",75,2017-12-05,352,Поштові послуги та поширення друкованих матеріалів,Поштові послуги та поширення друкованих матеріалів,120510,Центральний офіс,37279703,Україна,Організація перевезень відправлень,26009580176,state,41852.25,"ТОВ ""Нова пошта""",31316718,юридична особа
РПЛ,"Київ, Бехтеревський провулок, 14",79,2017-12-05,360,"Оренда будинків і приміщень та експлуатаційні витрати (прибирання, страхування орендованих будинків, охорона, сигналізація, ремонт, вивіз сміття, тощо)",Оренда нерухомості,120472,Центральний офіс,37279703,Україна,Опалення КЕ за листопад,26009580176,state,1011.04,"ТОВ ""Житло-Сервіс""",30167045,юридична особа
РПЛ,"Київ, Бехтеревський провулок, 14",79,2017-12-05,359,"Оренда будинків і приміщень та експлуатаційні витрати (прибирання, страхування орендованих будинків, охорона, сигналізація, ремонт, вивіз сміття, тощо)",Оренда нерухомості,120471,Центральний офіс,37279703,Україна,Відшкодування витрат за користування ел.мережами,26009580176,state,4508.74,"ТОВ ""Житло-Сервіс""",30167045,юридична особа
РПЛ,"Київ, Бехтеревський провулок, 14",79,2017-12-05,358,"Оренда будинків і приміщень та експлуатаційні витрати (прибирання, страхування орендованих будинків, охорона, сигналізація, ремонт, вивіз сміття, тощо)",Оренда нерухомості,120470,Центральний офіс,37279703,Україна,"Обслуговування і утримання будинку Кловський узвіз, 7",26009580176,state,1113.25,"ТОВ ""Житло-Сервіс""",30167045,юридична особа
РПЛ,"Київ, вулиця Миколи Лєскова, 9",70,2017-12-05,367,Банківські послуги,Інші витрати,120402,Центральний офіс,37279703,Україна,Комісія банку за зарахування коштів на СКР працівників,26009580176,state,1.87,"АТ ""Райффайзен банк Аваль""",14305909,юридична особа
РПЛ,"Київ, вулиця Миколи Лєскова, 9",70,2017-12-05,365,Банківські послуги,Інші витрати,120401,Центральний офіс,37279703,Україна,Комісія банку за зарахування коштів на СКР працівників,26009580176,state,8.42,"АТ ""Райффайзен банк Аваль""",14305909,юридична особа
РПЛ,"Київ, вулиця Миколи Лєскова, 9",70,2017-12-05,369,Банківські послуги,Інші витрати,120400,Центральний офіс,37279703,Україна,Комісія банку за зарахування коштів на СКР працівників,26009580176,state,770.79,"АТ ""Райффайзен банк Аваль""",14305909,юридична особа
РПЛ,"Київ, Кловський узвіз, 7, 39",82,2017-12-01,340,"Гонорари, в тому числі за надані консультаційні послуги","Гонорари, в тому числі за надані консультаційні послуги",121129,Центральний офіс,37279703,Україна,Нотаріальні послуги,26009580176,state,1000.00,Авершина І В,2684300807,фізична особа
РПЛ,"Київ, бульвар Вацлава Гавела, 36Б, 104",79,2017-11-30,339,"Оренда будинків і приміщень та експлуатаційні витрати (прибирання, страхування орендованих будинків, охорона, сигналізація, ремонт, вивіз сміття, тощо)",Оренда нерухомості,121161,Центральний офіс,37279703,Україна,Картки пропуску,26009580176,state,900.00,Курмис Вікторія Михайлівна,2942903621,фізична особа
РПЛ,"Київ, Харківське шосе, 144Б, 208",74,2017-11-30,338,"Придбання канцтоварів, паперу, інших предметів і матеріалів, а також госп товари",Придбання канцтоварів та госп. товарів,120703,Центральний офіс,37279703,Україна,"Елемент живлення, реєстратор",26009580176,state,2311.20,"ПП ""Універсалторг-сервіс""",36214844,юридична особа
РПЛ,"Дніпропетровська область, Дніпро́, вулиця Калинова, 43",79,2017-11-30,337,"Оренда будинків і приміщень та експлуатаційні витрати (прибирання, страхування орендованих будинків, охорона, сигналізація, ремонт, вивіз сміття, тощо)",Оренда нерухомості,120627,Центральний офіс,37279703,Україна,"Спільне використання технологічних мереж, комп. витрат за корист водою",26009580176,state,4789.46,"ТОВ ""Наутилус-Інвест 2006""",34823774,юридична особа
РПЛ,"Дніпропетровська область, Дніпро́, вулиця Калинова, 43",79,2017-11-30,336,"Оренда будинків і приміщень та експлуатаційні витрати (прибирання, страхування орендованих будинків, охорона, сигналізація, ремонт, вивіз сміття, тощо)",Оренда нерухомості,120626,Центральний офіс,37279703,Україна,"Спільне використання технологічних мереж, комп. витрат за корист водою",26009580176,state,3248.25,"ТОВ ""Наутилус-Інвест 2006""",34823774,юридична особа
РПЛ,"Вінницька область, Вінниця, вулиця Академіка Янгеля, 45",79,2017-11-30,334,"Оренда будинків і приміщень та експлуатаційні витрати (прибирання, страхування орендованих будинків, охорона, сигналізація, ремонт, вивіз сміття, тощо)",Оренда нерухомості,120523,Центральний офіс,37279703,Україна,Вода питна,26006580179,current,200.00,"ТОВ ""Еко-сфера""",32320552,юридична особа
РПЛ,"Полтавська область, Полтава, вулиця Європейська, 57",75,2017-11-30,335,Поштові послуги та поширення друкованих матеріалів,Поштові послуги та поширення друкованих матеріалів,120509,Центральний офіс,37279703,Україна,Організація перевезень відправлень,26009580176,state,2159.00,"ТОВ ""Нова пошта""",31316718,юридична особа
РПЛ,"Київ, вулиця Миколи Лєскова, 9",70,2017-11-30,bn,Банківські послуги,Інші витрати,120399,Центральний офіс,37279703,Україна,Комісія банку за вих.перекази в нацвалюті,26009580176,state,184.00,"АТ ""Райффайзен банк Аваль""",14305909,юридична особа
РПЛ,"Київ, вулиця Миколи Лєскова, 9",70,2017-11-30,bn,Банківські послуги,Інші витрати,120329,Центральний офіс,37279703,Україна,Комісія за вих. Перекази в нацвалюті,26006580179,current,250.00,"АТ ""Райффайзен банк Аваль""",14305909,юридична особа
РПЛ,"Київ, вулиця Миколи Лєскова, 9",70,2017-11-30,bn,Банківські послуги,Інші витрати,120328,Центральний офіс,37279703,Україна,Комісія за вих. Перекази в нацвалюті,26006580179,current,24.00,"АТ ""Райффайзен банк Аваль""",14305909,юридична особа
РПЛ,"Кіровоградська область, Олександрія",83,2017-11-27,329,"Виплати працівникам (не зарплата): лікарняні, вагітності, відрядження, компенсації ","Заробітна плата, лікарняні, вагітності, відрядження, компенсації",123630,Центральний офіс,37279703,Україна,Відпускні за листопад,26009580176,state,1585.15,Матвієць Вікторія Олександрівна,,фізична особа
РПЛ,"Чернігівська область, Корюківський район, Корюківка",83,2017-11-27,329,"Виплати працівникам (не зарплата): лікарняні, вагітності, відрядження, компенсації ","Заробітна плата, лікарняні, вагітності, відрядження, компенсації",123629,Центральний офіс,37279703,Україна,Відпускні за листопад,26009580176,state,1127.02,Стукало Світлана Анатоліївна,,фізична особа
РПЛ,"Полтавська область, Лубенський район, Новооріхівка",83,2017-11-27,331,"Виплати працівникам (не зарплата): лікарняні, вагітності, відрядження, компенсації ","Заробітна плата, лікарняні, вагітності, відрядження, компенсації",123628,Центральний офіс,37279703,Україна,Аванс на відрядження,26009580176,state,480.00,Мірошниченко Віталій Григорович,,фізична особа
РПЛ,"Київ, вулиця Багговутівська, 26",62,2017-11-27,327,Сплата ЄСВ,Податкові платежі,120931,Центральний офіс,37279703,Україна,Єдиний соціальний внесок,26009580176,state,741.21,ДПІ у Шевченківському районі у м. Києві,38728711,юридична особа
РПЛ,"Київ, вулиця Академіка Туполєва, 28А",61,2017-11-27,328,Військовий збір,Податкові платежі,120860,Центральний офіс,37279703,Україна,Військовий збір,26009580176,state,50.54,УДКСУ у Шевченківському районі м. Києва,37995466,юридична особа
РПЛ,"Київ, вулиця Академіка Туполєва, 28А",63,2017-11-27,326,Податок на доходи,Податкові платежі,120859,Центральний офіс,37279703,Україна,Податок на доходи фізичних осіб,26009580176,state,606.46,УДКСУ у Шевченківському районі м. Києва,37995466,юридична особа
РПЛ,"Київська обл., Білоцерківський район, Узин, вулиця Незалежності, 16",59,2017-11-27,324,Грошова застава,Грошова застава,120588,Центральний офіс,37279703,Україна,"Грошова застава місцевої організації ПП ""РПЛ""",26006580179,current,1859.00,Узинська міська виборча комісія,34162941,юридична особа
РПЛ,"Чернігівська область, Городнянський район, Городня",59,2017-11-27,323,Грошова застава,Грошова застава,120567,Центральний офіс,37279703,Україна,"Грошова застава місцевої організації ПП ""РПЛ""",26006580179,current,2015.00,Городнянська міська виборча комісія Городнянського району Чернігівської області,34090605,юридична особа
РПЛ,"Київська обл., Тетіївський район, Тетіїв",59,2017-11-27,325,Грошова застава,Грошова застава,120552,Центральний офіс,37279703,Україна,"Грошова застава місцевої організації ПП ""РПЛ""",26006580179,current,2328.00,Тетіївська міська виборча комісія,33877640,юридична особа
РПЛ,"Київ, вулиця Миколи Лєскова, 9",70,2017-11-27,332,Банківські послуги,Інші витрати,120398,Центральний офіс,37279703,Україна,Комісія банку за зарахування коштів на СКР працівників,26009580176,state,0.96,"АТ ""Райффайзен банк Аваль""",14305909,юридична особа
РПЛ,"Київ, вулиця Миколи Лєскова, 9",70,2017-11-27,330,Банківські послуги,Інші витрати,120397,Центральний офіс,37279703,Україна,Комісія банку за зарахування коштів на СКР працівників,26009580176,state,5.42,"АТ ""Райффайзен банк Аваль""",14305909,юридична особа
РПЛ,"Чернігівська область, Сновський район, Сновськ, вулиця Декабристів, 11",74,2017-11-24,321,"Придбання канцтоварів, паперу, інших предметів і матеріалів, а також госп товари",Придбання канцтоварів та госп. товарів,121103,Центральний офіс,37279703,Україна,Папір офісний А4,26009580176,state,188.00,Анищенко Т В,2488913769,фізична особа
РПЛ,"Київська обл., Києво-Святошинський район, Тарасівка, вулиця Шкільна, 6А, 16",73,2017-11-24,320,Придбання меблів,Придбання меблів,121029,Центральний офіс,37279703,Україна,Меблі офісні,26009580176,state,1541.00,"ТОВ ""ФАВОРИТ МЕБЛІ""",40152538,юридична особа
РПЛ,"Чернівецька область, Новоселицький район, Новоселиця, вулиця Чкалова, 3",59,2017-11-24,322,Грошова застава,Грошова застава,120591,Центральний офіс,37279703,Україна,"Грошова застава місцевої організації ПП ""РПЛ""",26006580179,current,1999.00,Новоселецька міська виборча комісія,34208336,юридична особа
РПЛ,"Львівська область, Львів",84,2017-11-23,317,"Заробітна плата, премії","Заробітна плата, лікарняні, вагітності, відрядження, компенсації",123627,Центральний офіс,37279703,Україна,заробітна плата за 1 пол. листопада,26009580176,state,5368.84,Басараб Микола Іванович,,фізична особа
РПЛ,"Київ, вулиця Московська, 41/8, 108",58,2017-11-23,310,"Виготовлення друкованих матеріалів (плакатів, листівок, буклетів та інших агітаційних матеріалів)",Друкована агітація,121134,Центральний офіс,37279703,Україна,Єврофлаєр,26009580176,state,5820.00,Мазур Вадим Павлович,2691511079,фізична особа
РПЛ,"Київська обл., Києво-Святошинський район, Тарасівка, вулиця Шкільна, 6А, 16",73,2017-11-23,319,Придбання меблів,Придбання меблів,121028,Центральний офіс,37279703,Україна,Меблі офісні,26009580176,state,3496.00,"ТОВ ""ФАВОРИТ МЕБЛІ""",40152538,юридична особа
РПЛ,"Київ, вулиця Багговутівська, 26",62,2017-11-23,316,Сплата ЄСВ,Податкові платежі,120930,Центральний офіс,37279703,Україна,Єдиний соціальний внесок нарахований на з/плату за 1пол.листопада,26009580176,state,1467.26,ДПІ у Шевченківському районі у м. Києві,38728711,юридична особа
РПЛ,"Київ, вулиця Академіка Туполєва, 28А",61,2017-11-23,315,Військовий збір,Податкові платежі,120858,Центральний офіс,37279703,Україна,Військовий збір нарахований на доходи громадян за 1пол.листопада,26009580176,state,100.04,УДКСУ у Шевченківському районі м. Києва,37995466,юридична особа
РПЛ,"Київ, вулиця Академіка Туполєва, 28А",63,2017-11-23,314,Податок на доходи,Податкові платежі,120857,Центральний офіс,37279703,Україна,Податок на доходи фізичних осіб за 1пол.листопада,26009580176,state,1200.48,УДКСУ у Шевченківському районі м. Києва,37995466,юридична особа
РПЛ,"Київ, вулиця Парково-Сирецька, 15, 1",74,2017-11-23,309,"Придбання канцтоварів, паперу, інших предметів і матеріалів, а також госп товари",Придбання канцтоварів та госп. товарів,120725,Центральний офіс,37279703,Україна,Вогнегасники,26009580176,state,1669.80,"ПП ""НПП ЄВРОСЕРВІС""",37406403,юридична особа
РПЛ,"Київ, Харківське шосе, 144Б, 208",74,2017-11-23,311,"Придбання канцтоварів, паперу, інших предметів і матеріалів, а також госп товари",Придбання канцтоварів та госп. товарів,120702,Центральний офіс,37279703,Україна,"Ручки гелові, рушники рулонні, реєстратор",26009580176,state,3897.46,"ПП ""Універсалторг-сервіс""",36214844,юридична особа
РПЛ,"Київ, вулиця Світла, 6А",74,2017-11-23,312,"Придбання канцтоварів, паперу, інших предметів і матеріалів, а також госп товари",Придбання канцтоварів та госп. товарів,120699,Центральний офіс,37279703,Україна,"Серветки столові, стакани, тарілки разові та інше",26006580179,current,1517.08,"ПП ""Універсалторг-сервіс""",36214844,юридична особа
РПЛ,"Вінницька область, Вінниця, вулиця Академіка Янгеля, 45",79,2017-11-23,313,"Оренда будинків і приміщень та експлуатаційні витрати (прибирання, страхування орендованих будинків, охорона, сигналізація, ремонт, вивіз сміття, тощо)",Оренда нерухомості,120522,Центральний офіс,37279703,Україна,Вода питна,26006580179,current,320.00,"ТОВ ""Еко-сфера""",32320552,юридична особа
РПЛ,"Київ, вулиця Миколи Лєскова, 9",70,2017-11-23,318,Банківські послуги,Інші витрати,120396,Центральний офіс,37279703,Україна,Комісія банку за зарахування коштів на СКР працівників,26009580176,state,10.74,"АТ ""Райффайзен банк Аваль""",14305909,юридична особа
РПЛ,"Вінницька область, Вінниця",74,2017-11-22,303,"Придбання канцтоварів, паперу, інших предметів і матеріалів, а також госп товари",Придбання канцтоварів та госп. товарів,123898,Центральний офіс,37279703,Україна,Візок ручний,26009580176,state,2580.00,Стецишин Юрій Володимирович,,фізична особа
РПЛ,"Запорізька область, Запоріжжя",84,2017-11-22,307,"Заробітна плата, премії","Заробітна плата, лікарняні, вагітності, відрядження, компенсації",123626,Центральний офіс,37279703,Україна,заробітна плата за 1 пол. листопада,26009580176,state,1225.13,Дергачова Ірина Станіславівна,,фізична особа
РПЛ,"Запорізька область, Запоріжжя",84,2017-11-22,307,"Заробітна плата, премії","Заробітна плата, лікарняні, вагітності, відрядження, компенсації",123625,Центральний офіс,37279703,Україна,заробітна плата за 1 пол. листопада,26009580176,state,1226.08,Хохлов Юрій Станіславович,,фізична особа
РПЛ,"Київ, вулиця Багговутівська, 26",62,2017-11-22,305,Сплата ЄСВ,Податкові платежі,120929,Центральний офіс,37279703,Україна,Єдиний соціальний внесок нарахований на з/плату за 1пол.листопада,26009580176,state,669.90,ДПІ у Шевченківському районі у м. Києві,38728711,юридична особа
РПЛ,"Київ, вулиця Академіка Туполєва, 28А",61,2017-11-22,306,Військовий збір,Податкові платежі,120856,Центральний офіс,37279703,Україна,Військовий збір нарахований на доходи громадян за 1пол.листопада,26009580176,state,45.68,УДКСУ у Шевченківському районі м. Києва,37995466,юридична особа
РПЛ,"Київ, вулиця Академіка Туполєва, 28А",63,2017-11-22,304,Податок на доходи,Податкові платежі,120855,Центральний офіс,37279703,Україна,Податок на доходи фізичних осіб за 1пол.листопада,26009580176,state,548.10,УДКСУ у Шевченківському районі м. Києва,37995466,юридична особа
РПЛ,"Київ, вулиця Миколи Лєскова, 9",70,2017-11-22,308,Банківські послуги,Інші витрати,120395,Центральний офіс,37279703,Україна,Комісія банку за зарахування коштів на СКР працівників,26009580176,state,4.90,"АТ ""Райффайзен банк Аваль""",14305909,юридична особа
РПЛ,"Київська обл., Києво-Святошинський район, Святопетрівське, вулиця Святомихайлівська, 15, 3",57,2017-11-21,299,Виготовлення брендованої продукції,"Виготовлення брендованої продукції (футболки, кепки, парасольки)",121212,Центральний офіс,37279703,Україна,М`ячі з логотипом,26009580176,state,35750.00,Вілінська Анастасія Петрівна,3059800329,фізична особа
РПЛ,"Полтавська область, Полтава",74,2017-11-21,300,"Придбання канцтоварів, паперу, інших предметів і матеріалів, а також госп товари",Придбання канцтоварів та госп. товарів,121106,Центральний офіс,37279703,Україна,"Печатка кругла, оснастка",26009580176,state,300.00,Малік Валерій Олександрович,2503713793,фізична особа
РПЛ,"Хмельницька область, Хмельницький, вулиця Грушевського, 59",72,2017-11-21,298,"Придбання, ремонт офісної техніки та програмного забезпечення (Бухгалтерські програми, Ліга.закон, домени)",Придбання офісної техніки та програмного забезпечення,121026,Центральний офіс,37279703,Україна,М`ячі футбольні,26009580176,state,14864.24,"ТОВ ""27""",40063820,юридична особа
РПЛ,"Дніпропетровська область, Дніпро́, вулиця Калинова, 43",79,2017-11-21,302,"Оренда будинків і приміщень та експлуатаційні витрати (прибирання, страхування орендованих будинків, охорона, сигналізація, ремонт, вивіз сміття, тощо)",Оренда нерухомості,120625,Центральний офіс,37279703,Україна,"Суборенда нежитлового прим., компенсація витрат з утр. Буд. І споруд",26009580176,state,115839.22,"ТОВ ""Наутилус-Інвест 2006""",34823774,юридична особа
РПЛ,"Дніпропетровська область, Дніпро́, вулиця Воскресенська, 14",51,2017-11-21,301,Оплата ефірного часу на ТБ,Телереклама,120349,Центральний офіс,37279703,Україна,Розміщення відеоматеріалу на 34 телеканалі,26009580176,state,6400.00,"ПрАТ ""Телевізійна служба Дніпропетровська""",20264089,юридична особа
РПЛ,Київ,84,2017-11-20,294,"Заробітна плата, премії","Заробітна плата, лікарняні, вагітності, відрядження, компенсації",123624,Центральний офіс,37279703,Україна,заробітна плата за 1 пол. листопада,26009580176,state,1288.00,Нагорська Марина Володимирівна,,фізична особа
РПЛ,Київ,84,2017-11-20,295,"Заробітна плата, премії","Заробітна плата, лікарняні, вагітності, відрядження, компенсації",123623,Центральний офіс,37279703,Україна,заробітна плата за 1 пол. листопада,26009580176,state,6641.25,Мєдвєдєв Олександр Леонідович,,фізична особа
РПЛ,"Одеська область, Одеса",84,2017-11-20,293,"Заробітна плата, премії","Заробітна плата, лікарняні, вагітності, відрядження, компенсації",123622,Центральний офіс,37279703,Україна,заробітна плата за 1 пол. листопада,26009580176,state,2576.00,Щербініна Валентина Леонідівна,,фізична особа
РПЛ,"Київська обл., Бориспіль",83,2017-11-20,296,"Виплати працівникам (не зарплата): лікарняні, вагітності, відрядження, компенсації ","Заробітна плата, лікарняні, вагітності, відрядження, компенсації",123621,Центральний офіс,37279703,Україна,Аванс на відрядження,26009580176,state,1285.12,Федун Юрій Степанович,,фізична особа
РПЛ,Київ,84,2017-11-20,291,"Заробітна плата, премії","Заробітна плата, лікарняні, вагітності, відрядження, компенсації",123620,Центральний офіс,37279703,Україна,заробітна плата за 1 пол. листопада,26009580176,state,3521.87,Яковлєва Вероніка Павлівна,,фізична особа
РПЛ,Київ,84,2017-11-20,291,"Заробітна плата, премії","Заробітна плата, лікарняні, вагітності, відрядження, компенсації",123619,Центральний офіс,37279703,Україна,заробітна плата за 1 пол. листопада,26009580176,state,4709.25,Якименко Оксана Сергіївна,,фізична особа
РПЛ,"Дніпропетровська область, Дніпро́",84,2017-11-20,291,"Заробітна плата, премії","Заробітна плата, лікарняні, вагітності, відрядження, компенсації",123618,Центральний офіс,37279703,Україна,заробітна плата за 1 пол. листопада,26009580176,state,2576.00,Штогрін Тетяна Миколаївна,,фізична особа
РПЛ,Київ,84,2017-11-20,291,"Заробітна плата, премії","Заробітна плата, лікарняні, вагітності, відрядження, компенсації",123617,Центральний офіс,37279703,Україна,заробітна плата за 1 пол. листопада,26009580176,state,2737.00,Шищенко Наталка Олександрівна,,фізична особа
РПЛ,Київ,84,2017-11-20,291,"Заробітна плата, премії","Заробітна плата, лікарняні, вагітності, відрядження, компенсації",123616,Центральний офіс,37279703,Україна,заробітна плата за 1 пол. листопада,26009580176,state,6721.75,Шаян Євген Леонідович,,фізична особа
РПЛ,"Донецька область, Донецьк",84,2017-11-20,291,"Заробітна плата, премії","Заробітна плата, лікарняні, вагітності, відрядження, компенсації",123615,Центральний офіс,37279703,Україна,заробітна плата за 1 пол. листопада,26009580176,state,6077.75,Чухляк Ольга Олегівна,,фізична особа
РПЛ,"Вінницька область, Вінниця",84,2017-11-20,291,"Заробітна плата, премії","Заробітна плата, лікарняні, вагітності, відрядження, компенсації",123614,Центральний офіс,37279703,Україна,заробітна плата за 1 пол. листопада,26009580176,state,2576.00,Чонка Софія Миколаївна,,фізична особа
РПЛ,"Дніпропетровська область, Синельникове",84,2017-11-20,291,"Заробітна плата, премії","Заробітна плата, лікарняні, вагітності, відрядження, компенсації",123613,Центральний офіс,37279703,Україна,заробітна плата за 1 пол. листопада,26009580176,state,2576.00,Чернова Катерина Валеріївна,,фізична особа
РПЛ,"Тернопільська область, Збаразький район, Збараж",84,2017-11-20,291,"Заробітна плата, премії","Заробітна плата, лікарняні, вагітності, відрядження, компенсації",123612,Центральний офіс,37279703,Україна,заробітна плата за 1 пол. листопада,26009580176,state,2576.00,Чернета Роман Іванович,,фізична особа
РПЛ,"Житомирська область, Житомир",84,2017-11-20,291,"Заробітна плата, премії","Заробітна плата, лікарняні, вагітності, відрядження, компенсації",123611,Центральний офіс,37279703,Україна,заробітна плата за 1 пол. листопада,26009580176,state,2576.00,Цивінський Павло Васильович,,фізична особа
РПЛ,"Дніпропетровська область, Дніпро́",84,2017-11-20,291,"Заробітна плата, премії","Заробітна плата, лікарняні, вагітності, відрядження, компенсації",123610,Центральний офіс,37279703,Україна,заробітна плата за 1 пол. листопада,26009580176,state,2576.00,Цаплін Євген Костянтинович,,фізична особа
РПЛ,"Запорізька область, Запоріжжя",84,2017-11-20,291,"Заробітна плата, премії","Заробітна плата, лікарняні, вагітності, відрядження, компенсації",123609,Центральний офіс,37279703,Україна,заробітна плата за 1 пол. листопада,26009580176,state,2576.00,Хохлов Юрій Станіславович,,фізична особа
РПЛ,Київ,84,2017-11-20,291,"Заробітна плата, премії","Заробітна плата, лікарняні, вагітності, відрядження, компенсації",123608,Центральний офіс,37279703,Україна,заробітна плата за 1 пол. листопада,26009580176,state,2576.00,Хоменко Клим Миколайович,,фізична особа
РПЛ,"Київська обл., Бориспіль",84,2017-11-20,291,"Заробітна плата, премії","Заробітна плата, лікарняні, вагітності, відрядження, компенсації",123607,Центральний офіс,37279703,Україна,заробітна плата за 1 пол. листопада,26009580176,state,6601.00,Федун Юрій Степанович,,фізична особа
РПЛ,"Вінницька область, Вінниця",84,2017-11-20,291,"Заробітна плата, премії","Заробітна плата, лікарняні, вагітності, відрядження, компенсації",123606,Центральний офіс,37279703,Україна,заробітна плата за 1 пол. листопада,26009580176,state,2576.00,Федорова Ольга Іванівна,,фізична особа
РПЛ,"Чернігівська область, Чернігів",84,2017-11-20,291,"Заробітна плата, премії","Заробітна плата, лікарняні, вагітності, відрядження, компенсації",123605,Центральний офіс,37279703,Україна,заробітна плата за 1 пол. листопада,26009580176,state,2576.00,Урожай Аліна Вікторівна,,фізична особа
РПЛ,"Луганська область, Борівське",84,2017-11-20,291,"Заробітна плата, премії","Заробітна плата, лікарняні, вагітності, відрядження, компенсації",123604,Центральний офіс,37279703,Україна,заробітна плата за 1 пол. листопада,26009580176,state,2576.00,Троценко Ольга Анатоліївна,,фізична особа
РПЛ,"Волинська область, Ратнівський район, Ратне",84,2017-11-20,291,"Заробітна плата, премії","Заробітна плата, лікарняні, вагітності, відрядження, компенсації",123603,Центральний офіс,37279703,Україна,заробітна плата за 1 пол. листопада,26009580176,state,2576.00,Трикош Ірина Олександрівна,,фізична особа
РПЛ,Київ,84,2017-11-20,291,"Заробітна плата, премії","Заробітна плата, лікарняні, вагітності, відрядження, компенсації",123602,Центральний офіс,37279703,Україна,заробітна плата за 1 пол. листопада,26009580176,state,7043.75,Торговець Юлія Василівна,,фізична особа
РПЛ,Київ,84,2017-11-20,291,"Заробітна плата, премії","Заробітна плата, лікарняні, вагітності, відрядження, компенсації",123601,Центральний офіс,37279703,Україна,заробітна плата за 1 пол. листопада,26009580176,state,1288.00,Ткаченко Катерина Станіславівна,,фізична особа
РПЛ,"Київська обл., Володарський район, Володарка",84,2017-11-20,291,"Заробітна плата, премії","Заробітна плата, лікарняні, вагітності, відрядження, компенсації",123600,Центральний офіс,37279703,Україна,заробітна плата за 1 пол. листопада,26009580176,state,2576.00,Тихонова Світлана Ігорівна,,фізична особа
РПЛ,"Сумська область, Сумський район, Суми",84,2017-11-20,291,"Заробітна плата, премії","Заробітна плата, лікарняні, вагітності, відрядження, компенсації",123599,Центральний офіс,37279703,Україна,заробітна плата за 1 пол. листопада,26009580176,state,1288.00,Тихенко Володимир Сергійович,,фізична особа
РПЛ,"Чернігівська область, Корюківський район, Корюківка",84,2017-11-20,291,"Заробітна плата, премії","Заробітна плата, лікарняні, вагітності, відрядження, компенсації",123598,Центральний офіс,37279703,Україна,заробітна плата за 1 пол. листопада,26009580176,state,4709.25,Стукало Світлана Анатоліївна,,фізична особа
РПЛ,"Луганська область, Луганськ",84,2017-11-20,291,"Заробітна плата, премії","Заробітна плата, лікарняні, вагітності, відрядження, компенсації",123597,Центральний офіс,37279703,Україна,заробітна плата за 1 пол. листопада,26009580176,state,2576.00,Старицький Владислав Олександрович,,фізична особа
РПЛ,"Чернігівська область, Чернігів",84,2017-11-20,291,"Заробітна плата, премії","Заробітна плата, лікарняні, вагітності, відрядження, компенсації",123596,Центральний офіс,37279703,Україна,заробітна плата за 1 пол. листопада,26009580176,state,6601.00,Соколова Анжеліка Артурівна,,фізична особа
РПЛ,"Львівська область, Городоцький район, Городок",84,2017-11-20,291,"Заробітна плата, премії","Заробітна плата, лікарняні, вагітності, відрядження, компенсації",123595,Центральний офіс,37279703,Україна,заробітна плата за 1 пол. листопада,26009580176,state,2576.00,Снігур Христина Іванівна,,фізична особа
РПЛ,"Сумська область, Сумський район, Суми",84,2017-11-20,291,"Заробітна плата, премії","Заробітна плата, лікарняні, вагітності, відрядження, компенсації",123594,Центральний офіс,37279703,Україна,заробітна плата за 1 пол. листопада,26009580176,state,2576.00,Скляров Олександр Павлович,,фізична особа
РПЛ,"Черкаська область, Черкаси",84,2017-11-20,291,"Заробітна плата, премії","Заробітна плата, лікарняні, вагітності, відрядження, компенсації",123593,Центральний офіс,37279703,Україна,заробітна плата за 1 пол. листопада,26009580176,state,2576.00,Сичов Ігор Григорович,,фізична особа
РПЛ,"Сумська область, Сумський район, Суми",84,2017-11-20,291,"Заробітна плата, премії","Заробітна плата, лікарняні, вагітності, відрядження, компенсації",123592,Центральний офіс,37279703,Україна,заробітна плата за 1 пол. листопада,26009580176,state,1288.00,Сидоренко Дарʼя Олександрівна,,фізична особа
РПЛ,"Львівська область, Львів",84,2017-11-20,291,"Заробітна плата, премії","Заробітна плата, лікарняні, вагітності, відрядження, компенсації",123591,Центральний офіс,37279703,Україна,заробітна плата за 1 пол. листопада,26009580176,state,1288.00,Сидор Адріана Ігорівна,,фізична особа
РПЛ,"Чернівецька область, Чернівці",84,2017-11-20,291,"Заробітна плата, премії","Заробітна плата, лікарняні, вагітності, відрядження, компенсації",123590,Центральний офіс,37279703,Україна,заробітна плата за 1 пол. листопада,26009580176,state,2576.00,Сербенюк Андрій Альфредович,,фізична особа
РПЛ,"Волинська область, Луцьк",84,2017-11-20,291,"Заробітна плата, премії","Заробітна плата, лікарняні, вагітності, відрядження, компенсації",123589,Центральний офіс,37279703,Україна,заробітна плата за 1 пол. листопада,26009580176,state,2576.00,Семчук Юрій Анатолійович,,фізична особа
РПЛ,"Київ, вулиця Максима Берлинського, 6, 14",84,2017-11-20,291,"Заробітна плата, премії","Заробітна плата, лікарняні, вагітності, відрядження, компенсації",123588,Центральний офіс,37279703,Україна,заробітна плата за 1 пол. листопада,26009580176,state,2576.00,Самсонова Аліна Вікторівна,2947606863,фізична особа
РПЛ,"Закарпатська область, Ужгород",84,2017-11-20,291,"Заробітна плата, премії","Заробітна плата, лікарняні, вагітності, відрядження, компенсації",123587,Центральний офіс,37279703,Україна,заробітна плата за 1 пол. листопада,26009580176,state,2576.00,Рудман Олеся Іванівна,,фізична особа
РПЛ,"Дніпропетровська область, Дніпро́",84,2017-11-20,291,"Заробітна плата, премії","Заробітна плата, лікарняні, вагітності, відрядження, компенсації",123586,Центральний офіс,37279703,Україна,заробітна плата за 1 пол. листопада,26009580176,state,2576.00,Ревенко Юлія Сергіївна,,фізична особа
РПЛ,"Чернівецька область, Чернівці",84,2017-11-20,291,"Заробітна плата, премії","Заробітна плата, лікарняні, вагітності, відрядження, компенсації",123585,Центральний офіс,37279703,Україна,заробітна плата за 1 пол. листопада,26009580176,state,1288.00,Пузема Катерина Володимирівна,,фізична особа
РПЛ,Київ,84,2017-11-20,291,"Заробітна плата, премії","Заробітна плата, лікарняні, вагітності, відрядження, компенсації",123584,Центральний офіс,37279703,Україна,заробітна плата за 1 пол. листопада,26009580176,state,6601.00,Пугачова Ярослава Павлівна,,фізична особа
РПЛ,"Хмельницька область, Красилівський район, Красилів",84,2017-11-20,291,"Заробітна плата, премії","Заробітна плата, лікарняні, вагітності, відрядження, компенсації",123583,Центральний офіс,37279703,Україна,заробітна плата за 1 пол. листопада,26009580176,state,1288.00,Процюк Наталія Юріївна,,фізична особа
РПЛ,Київ,84,2017-11-20,291,"Заробітна плата, премії","Заробітна плата, лікарняні, вагітності, відрядження, компенсації",123582,Центральний офіс,37279703,Україна,заробітна плата за 1 пол. листопада,26009580176,state,6077.75,Приміський Олег Владиславович,,фізична особа
РПЛ,"Київська обл., Обухівський район, Обухів",84,2017-11-20,291,"Заробітна плата, премії","Заробітна плата, лікарняні, вагітності, відрядження, компенсації",123581,Центральний офіс,37279703,Україна,заробітна плата за 1 пол. листопада,26009580176,state,2576.00,Потеряйко Вадим Юрійович,,фізична особа
РПЛ,"Закарпатська область, Ужгород",84,2017-11-20,291,"Заробітна плата, премії","Заробітна плата, лікарняні, вагітності, відрядження, компенсації",123580,Центральний офіс,37279703,Україна,заробітна плата за 1 пол. листопада,26009580176,state,1288.00,Попадюк Надія Іванівна,,фізична особа
РПЛ,Київ,84,2017-11-20,291,"Заробітна плата, премії","Заробітна плата, лікарняні, вагітності, відрядження, компенсації",123579,Центральний офіс,37279703,Україна,заробітна плата за 1 пол. листопада,26009580176,state,4420.19,Поліщук Анна Валентинівна,,фізична особа
РПЛ,"Сумська область, Сумський район, Суми",84,2017-11-20,291,"Заробітна плата, премії","Заробітна плата, лікарняні, вагітності, відрядження, компенсації",123578,Центральний офіс,37279703,Україна,заробітна плата за 1 пол. листопада,26009580176,state,1288.00,Пінчук Юрій Петрович,,фізична особа
РПЛ,"Одеська область, Одеса",84,2017-11-20,291,"Заробітна плата, премії","Заробітна плата, лікарняні, вагітності, відрядження, компенсації",123577,Центральний офіс,37279703,Україна,заробітна плата за 1 пол. листопада,26009580176,state,2576.00,Перчеклій Микола Васильович,,фізична особа
РПЛ,Київ,84,2017-11-20,291,"Заробітна плата, премії","Заробітна плата, лікарняні, вагітності, відрядження, компенсації",123576,Центральний офіс,37279703,Україна,заробітна плата за 1 пол. листопада,26009580176,state,2576.00,Пархоменко Аліна Петрівна,,фізична особа
РПЛ,Київ,84,2017-11-20,291,"Заробітна плата, премії","Заробітна плата, лікарняні, вагітності, відрядження, компенсації",123575,Центральний офіс,37279703,Україна,заробітна плата за 1 пол. листопада,26009580176,state,2576.00,Парака Ярослава Володимирівна,,фізична особа
РПЛ,"Київська обл., Васильків",84,2017-11-20,291,"Заробітна плата, премії","Заробітна плата, лікарняні, вагітності, відрядження, компенсації",123574,Центральний офіс,37279703,Україна,заробітна плата за 1 пол. листопада,26009580176,state,6077.75,Падурець Людмила Володимирівна,,фізична особа
РПЛ,"Київська обл., Біла Церква",84,2017-11-20,291,"Заробітна плата, премії","Заробітна плата, лікарняні, вагітності, відрядження, компенсації",123573,Центральний офіс,37279703,Україна,заробітна плата за 1 пол. листопада,26009580176,state,1911.87,Остапенко Сергій Анатолійович,,фізична особа
РПЛ,"Харківська область, Харків",84,2017-11-20,291,"Заробітна плата, премії","Заробітна плата, лікарняні, вагітності, відрядження, компенсації",123572,Центральний офіс,37279703,Україна,заробітна плата за 1 пол. листопада,26009580176,state,2576.00,Олійник Костянтин Михайлович,,фізична особа
РПЛ,"Чернігівська область, Чернігів",84,2017-11-20,291,"Заробітна плата, премії","Заробітна плата, лікарняні, вагітності, відрядження, компенсації",123571,Центральний офіс,37279703,Україна,заробітна плата за 1 пол. листопада,26009580176,state,2576.00,Олексієнко Ярослав Олександрович,,фізична особа
РПЛ,Київ,84,2017-11-20,291,"Заробітна плата, премії","Заробітна плата, лікарняні, вагітності, відрядження, компенсації",123570,Центральний офіс,37279703,Україна,заробітна плата за 1 пол. листопада,26009580176,state,5393.50,Новохацька Олександра Вікторівна,,фізична особа
РПЛ,"Тернопільська область, Тернопіль",84,2017-11-20,291,"Заробітна плата, премії","Заробітна плата, лікарняні, вагітності, відрядження, компенсації",123569,Центральний офіс,37279703,Україна,заробітна плата за 1 пол. листопада,26009580176,state,2576.00,Німко Олег Васильович,,фізична особа
РПЛ,Київ,84,2017-11-20,291,"Заробітна плата, премії","Заробітна плата, лікарняні, вагітності, відрядження, компенсації",123568,Центральний офіс,37279703,Україна,заробітна плата за 1 пол. листопада,26009580176,state,4025.00,Нечипорук Олександр Григорович,,фізична особа
РПЛ,"Рівненська область, Рівне",84,2017-11-20,291,"Заробітна плата, премії","Заробітна плата, лікарняні, вагітності, відрядження, компенсації",123567,Центральний офіс,37279703,Україна,заробітна плата за 1 пол. листопада,26009580176,state,2576.00,Назарчук Юлія Юріївна,,фізична особа
РПЛ,"Запорізька область, Запоріжжя",84,2017-11-20,291,"Заробітна плата, премії","Заробітна плата, лікарняні, вагітності, відрядження, компенсації",123566,Центральний офіс,37279703,Україна,заробітна плата за 1 пол. листопада,26009580176,state,2576.00,Надолинський Ростислав Федорович,,фізична особа
РПЛ,"Полтавська область, Лубенський район, Новооріхівка",84,2017-11-20,291,"Заробітна плата, премії","Заробітна плата, лікарняні, вагітності, відрядження, компенсації",123565,Центральний офіс,37279703,Україна,заробітна плата за 1 пол. листопада,26009580176,state,1288.00,Моренко Лідія Сергіївна,,фізична особа
РПЛ,"Полтавська область, Лубенський район, Новооріхівка",84,2017-11-20,291,"Заробітна плата, премії","Заробітна плата, лікарняні, вагітності, відрядження, компенсації",123564,Центральний офіс,37279703,Україна,заробітна плата за 1 пол. листопада,26009580176,state,1288.00,Мірошниченко Віталій Григорович,,фізична особа
РПЛ,"Львівська область, Львів",84,2017-11-20,291,"Заробітна плата, премії","Заробітна плата, лікарняні, вагітності, відрядження, компенсації",123563,Центральний офіс,37279703,Україна,заробітна плата за 1 пол. листопада,26009580176,state,2576.00,Мигул Олеся Стефанівна,,фізична особа
РПЛ,Київ,84,2017-11-20,291,"Заробітна плата, премії","Заробітна плата, лікарняні, вагітності, відрядження, компенсації",123562,Центральний офіс,37279703,Україна,заробітна плата за 1 пол. листопада,26009580176,state,6721.75,Мелещук Наталія Володимирівна,,фізична особа
РПЛ,"Полтавська область, Полтава",84,2017-11-20,291,"Заробітна плата, премії","Заробітна плата, лікарняні, вагітності, відрядження, компенсації",123561,Центральний офіс,37279703,Україна,заробітна плата за 1 пол. листопада,26009580176,state,6077.75,Матяш Руслан Анатолійович,,фізична особа
РПЛ,"Кіровоградська область, Олександрія",84,2017-11-20,291,"Заробітна плата, премії","Заробітна плата, лікарняні, вагітності, відрядження, компенсації",123560,Центральний офіс,37279703,Україна,заробітна плата за 1 пол. листопада,26009580176,state,5393.50,Матвієць Вікторія Олександрівна,,фізична особа
РПЛ,"Одеська область, Подільськ",84,2017-11-20,291,"Заробітна плата, премії","Заробітна плата, лікарняні, вагітності, відрядження, компенсації",123559,Центральний офіс,37279703,Україна,заробітна плата за 1 пол. листопада,26009580176,state,2576.00,Максимчук Марина Юріївна,,фізична особа
РПЛ,Київ,84,2017-11-20,291,"Заробітна плата, премії","Заробітна плата, лікарняні, вагітності, відрядження, компенсації",123558,Центральний офіс,37279703,Україна,заробітна плата за 1 пол. листопада,26009580176,state,6077.75,Макарова Юлія Миколаївна,,фізична особа
РПЛ,"Івано-Франківська область, Івано-Франківськ",84,2017-11-20,291,"Заробітна плата, премії","Заробітна плата, лікарняні, вагітності, відрядження, компенсації",123557,Центральний офіс,37279703,Україна,заробітна плата за 1 пол. листопада,26009580176,state,2576.00,Мазур Юрій Валентинович,,фізична особа
РПЛ,Київ,84,2017-11-20,291,"Заробітна плата, премії","Заробітна плата, лікарняні, вагітності, відрядження, компенсації",123556,Центральний офіс,37279703,Україна,заробітна плата за 1 пол. листопада,26009580176,state,3763.37,Ляшенко Андрій Віталійович,,фізична особа
РПЛ,"Кіровоградська область, Новомиргородський район, Мартоноша",84,2017-11-20,291,"Заробітна плата, премії","Заробітна плата, лікарняні, вагітності, відрядження, компенсації",123555,Центральний офіс,37279703,Україна,заробітна плата за 1 пол. листопада,26009580176,state,2576.00,Лягур Ірина Василівна,,фізична особа
РПЛ,"Закарпатська область, Ужгородський район, Часлівці",84,2017-11-20,291,"Заробітна плата, премії","Заробітна плата, лікарняні, вагітності, відрядження, компенсації",123554,Центральний офіс,37279703,Україна,заробітна плата за 1 пол. листопада,26009580176,state,1288.00,Лютянський Сергій Іванович,,фізична особа
РПЛ,Київ,84,2017-11-20,291,"Заробітна плата, премії","Заробітна плата, лікарняні, вагітності, відрядження, компенсації",123553,Центральний офіс,37279703,Україна,заробітна плата за 1 пол. листопада,26009580176,state,3823.75,Лінська Віта Юріївна,,фізична особа
РПЛ,"Одеська область, Одеса",84,2017-11-20,291,"Заробітна плата, премії","Заробітна плата, лікарняні, вагітності, відрядження, компенсації",123552,Центральний офіс,37279703,Україна,заробітна плата за 1 пол. листопада,26009580176,state,2576.00,Лисейко Оксана Вікторівна,,фізична особа
РПЛ,"Одеська область, Одеса",84,2017-11-20,291,"Заробітна плата, премії","Заробітна плата, лікарняні, вагітності, відрядження, компенсації",123551,Центральний офіс,37279703,Україна,заробітна плата за 1 пол. листопада,26009580176,state,2576.00,Лисейко Ігор Федорович,,фізична особа
РПЛ,Київ,84,2017-11-20,291,"Заробітна плата, премії","Заробітна плата, лікарняні, вагітності, відрядження, компенсації",123550,Центральний офіс,37279703,Україна,заробітна плата за 1 пол. листопада,26009580176,state,2576.00,Линовицький Ігор Олександрович,,фізична особа
РПЛ,Київ,84,2017-11-20,291,"Заробітна плата, премії","Заробітна плата, лікарняні, вагітності, відрядження, компенсації",123549,Центральний офіс,37279703,Україна,заробітна плата за 1 пол. листопада,26009580176,state,6077.75,Куц Тарас Федорович,,фізична особа
РПЛ,"Черкаська область, Черкаський район, Дубіївка",84,2017-11-20,291,"Заробітна плата, премії","Заробітна плата, лікарняні, вагітності, відрядження, компенсації",123548,Центральний офіс,37279703,Україна,заробітна плата за 1 пол. листопада,26009580176,state,6641.25,Кутілова Вікторія Володимирівна,,фізична особа
РПЛ,"Івано-Франківська область, Тисменицький район, Чукалівка",84,2017-11-20,291,"Заробітна плата, премії","Заробітна плата, лікарняні, вагітності, відрядження, компенсації",123547,Центральний офіс,37279703,Україна,заробітна плата за 1 пол. листопада,26009580176,state,2576.00,Кривченко Тетяна Миколаївна,,фізична особа
РПЛ,"Чернігівська область, Ічнянський район, Ічня",84,2017-11-20,291,"Заробітна плата, премії","Заробітна плата, лікарняні, вагітності, відрядження, компенсації",123546,Центральний офіс,37279703,Україна,заробітна плата за 1 пол. листопада,26009580176,state,1288.00,Крамаренко Сергій Миколайович,,фізична особа
РПЛ,Київ,84,2017-11-20,291,"Заробітна плата, премії","Заробітна плата, лікарняні, вагітності, відрядження, компенсації",123545,Центральний офіс,37279703,Україна,заробітна плата за 1 пол. листопада,26009580176,state,2807.44,Кравченко Сергій Вікторович,,фізична особа
РПЛ,"Київська обл., Бровари",84,2017-11-20,291,"Заробітна плата, премії","Заробітна плата, лікарняні, вагітності, відрядження, компенсації",123544,Центральний офіс,37279703,Україна,заробітна плата за 1 пол. листопада,26009580176,state,2576.00,Кравченко Олександр Миколайович,,фізична особа
РПЛ,Київ,84,2017-11-20,291,"Заробітна плата, премії","Заробітна плата, лікарняні, вагітності, відрядження, компенсації",123543,Центральний офіс,37279703,Україна,заробітна плата за 1 пол. листопада,26009580176,state,6641.25,Короткий Геннадій Леонідович,,фізична особа
РПЛ,Київ,84,2017-11-20,291,"Заробітна плата, премії","Заробітна плата, лікарняні, вагітності, відрядження, компенсації",123542,Центральний офіс,37279703,Україна,заробітна плата за 1 пол. листопада,26009580176,state,2576.00,Кондюх Андрій Олегович,,фізична особа
РПЛ,"Рівненська область, Рівне",84,2017-11-20,291,"Заробітна плата, премії","Заробітна плата, лікарняні, вагітності, відрядження, компенсації",123541,Центральний офіс,37279703,Україна,заробітна плата за 1 пол. листопада,26009580176,state,1288.00,Конєв Володимир Леонідович,,фізична особа
РПЛ,"Чернігівська область, Городнянський район, Городня",84,2017-11-20,291,"Заробітна плата, премії","Заробітна плата, лікарняні, вагітності, відрядження, компенсації",123540,Центральний офіс,37279703,Україна,заробітна плата за 1 пол. листопада,26009580176,state,1288.00,Климович Тетяна Вікторівна,,фізична особа
РПЛ,Київ,84,2017-11-20,291,"Заробітна плата, премії","Заробітна плата, лікарняні, вагітності, відрядження, компенсації",123539,Центральний офіс,37279703,Україна,заробітна плата за 1 пол. листопада,26009580176,state,2576.00,Кітаєв Роман Русланович,,фізична особа
РПЛ,"Одеська область, Тарутинський район, Тарутине",84,2017-11-20,291,"Заробітна плата, премії","Заробітна плата, лікарняні, вагітності, відрядження, компенсації",123538,Центральний офіс,37279703,Україна,заробітна плата за 1 пол. листопада,26009580176,state,2576.00,Кисса Святослав Вікторович,,фізична особа
РПЛ,м. Кропивницький,84,2017-11-20,291,"Заробітна плата, премії","Заробітна плата, лікарняні, вагітності, відрядження, компенсації",123537,Центральний офіс,37279703,Україна,заробітна плата за 1 пол. листопада,26009580176,state,2576.00,Кашуба Олег Валерійович,,фізична особа
РПЛ,Київ,84,2017-11-20,291,"Заробітна плата, премії","Заробітна плата, лікарняні, вагітності, відрядження, компенсації",123536,Центральний офіс,37279703,Україна,заробітна плата за 1 пол. листопада,26009580176,state,6077.75,Євтушенко Наталія Федорівна,,фізична особа
РПЛ,"Запорізька область, Запоріжжя",84,2017-11-20,291,"Заробітна плата, премії","Заробітна плата, лікарняні, вагітності, відрядження, компенсації",123535,Центральний офіс,37279703,Україна,заробітна плата за 1 пол. листопада,26009580176,state,2576.00,Дергачова Ірина Станіславівна,,фізична особа
РПЛ,"Хмельницька область, Хмельницький",84,2017-11-20,291,"Заробітна плата, премії","Заробітна плата, лікарняні, вагітності, відрядження, компенсації",123534,Центральний офіс,37279703,Україна,заробітна плата за 1 пол. листопада,26009580176,state,1288.00,Данілкова Анастасія Юріївна,,фізична особа
РПЛ,"Чернігівська область, Сновський район, Сновськ",84,2017-11-20,291,"Заробітна плата, премії","Заробітна плата, лікарняні, вагітності, відрядження, компенсації",123533,Центральний офіс,37279703,Україна,заробітна плата за 1 пол. листопада,26009580176,state,3360.87,Данильченко Ніна Василівна,,фізична особа
РПЛ,Київ,84,2017-11-20,291,"Заробітна плата, премії","Заробітна плата, лікарняні, вагітності, відрядження, компенсації",123532,Центральний офіс,37279703,Україна,заробітна плата за 1 пол. листопада,26009580176,state,7043.75,Даниленко Антон Олександрович,,фізична особа
РПЛ,"Херсонська область, Херсон",84,2017-11-20,291,"Заробітна плата, премії","Заробітна плата, лікарняні, вагітності, відрядження, компенсації",123531,Центральний офіс,37279703,Україна,заробітна плата за 1 пол. листопада,26009580176,state,2576.00,Грицаєнко Олександр Сергійович,,фізична особа
РПЛ,"Київська обл., Броварський район, Світильня",84,2017-11-20,291,"Заробітна плата, премії","Заробітна плата, лікарняні, вагітності, відрядження, компенсації",123530,Центральний офіс,37279703,Україна,заробітна плата за 1 пол. листопада,26009580176,state,6641.25,Гринчук Тетяна Володимирівна,,фізична особа
РПЛ,Київ,84,2017-11-20,291,"Заробітна плата, премії","Заробітна плата, лікарняні, вагітності, відрядження, компенсації",123529,Центральний офіс,37279703,Україна,заробітна плата за 1 пол. листопада,26009580176,state,4709.25,Грабик Алла Ігорівна,,фізична особа
РПЛ,Київ,84,2017-11-20,291,"Заробітна плата, премії","Заробітна плата, лікарняні, вагітності, відрядження, компенсації",123528,Центральний офіс,37279703,Україна,заробітна плата за 1 пол. листопада,26009580176,state,2576.00,Городенко Ольга Борисівна,,фізична особа
РПЛ,"Дніпропетровська область, Нікополь",84,2017-11-20,291,"Заробітна плата, премії","Заробітна плата, лікарняні, вагітності, відрядження, компенсації",123527,Центральний офіс,37279703,Україна,заробітна плата за 1 пол. листопада,26009580176,state,2576.00,Горобець Сергій Геннадійович,,фізична особа
РПЛ,"Житомирська область, Житомир",84,2017-11-20,291,"Заробітна плата, премії","Заробітна плата, лікарняні, вагітності, відрядження, компенсації",123526,Центральний офіс,37279703,Україна,заробітна плата за 1 пол. листопада,26009580176,state,2576.00,Гнєушев Сергій Вікторович,,фізична особа
РПЛ,Київ,84,2017-11-20,291,"Заробітна плата, премії","Заробітна плата, лікарняні, вагітності, відрядження, компенсації",123525,Центральний офіс,37279703,Україна,заробітна плата за 1 пол. листопада,26009580176,state,6077.75,Герасименко Євгеній Юрійович,,фізична особа
РПЛ,"Волинська область, Рожищенський район, Копачівка",84,2017-11-20,291,"Заробітна плата, премії","Заробітна плата, лікарняні, вагітності, відрядження, компенсації",123524,Центральний офіс,37279703,Україна,заробітна плата за 1 пол. листопада,26009580176,state,2576.00,Воробйова Жанна Миколаївна,,фізична особа
РПЛ,"Вінницька область, Чернівецький район, Шендерівка",84,2017-11-20,291,"Заробітна плата, премії","Заробітна плата, лікарняні, вагітності, відрядження, компенсації",123523,Центральний офіс,37279703,Україна,заробітна плата за 1 пол. листопада,26009580176,state,2576.00,Войцех Юлія Миколаївна,,фізична особа
РПЛ,"Тернопільська область, Тернопіль",84,2017-11-20,291,"Заробітна плата, премії","Заробітна плата, лікарняні, вагітності, відрядження, компенсації",123522,Центральний офіс,37279703,Україна,заробітна плата за 1 пол. листопада,26009580176,state,2576.00,Влізло Ольга Миколаївна,,фізична особа
РПЛ,Київ,84,2017-11-20,291,"Заробітна плата, премії","Заробітна плата, лікарняні, вагітності, відрядження, компенсації",123521,Центральний офіс,37279703,Україна,заробітна плата за 1 пол. листопада,26009580176,state,3360.87,Відмиш Євген Аркадійович,,фізична особа
РПЛ,"Миколаївська область, Миколаїв",84,2017-11-20,291,"Заробітна плата, премії","Заробітна плата, лікарняні, вагітності, відрядження, компенсації",123520,Центральний офіс,37279703,Україна,заробітна плата за 1 пол. листопада,26009580176,state,2576.00,Висоцька Катерина Олександрівна,,фізична особа
РПЛ,"Львівська область, Жидачівський район, Ходорів",84,2017-11-20,291,"Заробітна плата, премії","Заробітна плата, лікарняні, вагітності, відрядження, компенсації",123519,Центральний офіс,37279703,Україна,заробітна плата за 1 пол. листопада,26009580176,state,2576.00,Бутковська Зоряна Богданівна,,фізична особа
РПЛ,Київ,84,2017-11-20,291,"Заробітна плата, премії","Заробітна плата, лікарняні, вагітності, відрядження, компенсації",123518,Центральний офіс,37279703,Україна,заробітна плата за 1 пол. листопада,26009580176,state,4888.55,Бугаєв Сергій Володимирович,,фізична особа
РПЛ,"Хмельницька область, Хмельницький",84,2017-11-20,291,"Заробітна плата, премії","Заробітна плата, лікарняні, вагітності, відрядження, компенсації",123517,Центральний офіс,37279703,Україна,заробітна плата за 1 пол. листопада,26009580176,state,2576.00,Брезденюк Аліна Олегівна,,фізична особа
РПЛ,Київ,84,2017-11-20,291,"Заробітна плата, премії","Заробітна плата, лікарняні, вагітності, відрядження, компенсації",123516,Центральний офіс,37279703,Україна,заробітна плата за 1 пол. листопада,26009580176,state,2576.00,Бондаренко Владислав Юрійович,,фізична особа
РПЛ,м. Кропивницький,84,2017-11-20,291,"Заробітна плата, премії","Заробітна плата, лікарняні, вагітності, відрядження, компенсації",123515,Центральний офіс,37279703,Україна,заробітна плата за 1 пол. листопада,26009580176,state,2576.00,Бойко Сергій Вікторович,,фізична особа
РПЛ,"Рівненська область, Рівне",84,2017-11-20,291,"Заробітна плата, премії","Заробітна плата, лікарняні, вагітності, відрядження, компенсації",123514,Центральний офіс,37279703,Україна,заробітна плата за 1 пол. листопада,26009580176,state,2576.00,Біла Оксана Володимирівна,,фізична особа
РПЛ,Київ,84,2017-11-20,291,"Заробітна плата, премії","Заробітна плата, лікарняні, вагітності, відрядження, компенсації",123513,Центральний офіс,37279703,Україна,заробітна плата за 1 пол. листопада,26009580176,state,3038.87,Бистрякова Юлія Ігорівна,,фізична особа
РПЛ,"Чернівецька область, Чернівці",84,2017-11-20,291,"Заробітна плата, премії","Заробітна плата, лікарняні, вагітності, відрядження, компенсації",123512,Центральний офіс,37279703,Україна,заробітна плата за 1 пол. листопада,26009580176,state,2576.00,Беркещук Катерина Володимирівна,,фізична особа
РПЛ,"Харківська область, Харків",84,2017-11-20,291,"Заробітна плата, премії","Заробітна плата, лікарняні, вагітності, відрядження, компенсації",123511,Центральний офіс,37279703,Україна,заробітна плата за 1 пол. листопада,26009580176,state,2576.00,Беляєва Анна Ігорівна,,фізична особа
РПЛ,"Черкаська область, Черкаси",84,2017-11-20,291,"Заробітна плата, премії","Заробітна плата, лікарняні, вагітності, відрядження, компенсації",123510,Центральний офіс,37279703,Україна,заробітна плата за 1 пол. листопада,26009580176,state,2576.00,Белінська Тетяна Миколаївна,,фізична особа
РПЛ,"Чернівецька область, Глибоцький район, Коровія",84,2017-11-20,291,"Заробітна плата, премії","Заробітна плата, лікарняні, вагітності, відрядження, компенсації",123509,Центральний офіс,37279703,Україна,заробітна плата за 1 пол. листопада,26009580176,state,6641.25,Бауер Марія Василівна,,фізична особа
РПЛ,"Львівська область, Львів",84,2017-11-20,291,"Заробітна плата, премії","Заробітна плата, лікарняні, вагітності, відрядження, компенсації",123508,Центральний офіс,37279703,Україна,заробітна плата за 1 пол. листопада,26009580176,state,2576.00,Басараб Микола Іванович,,фізична особа
РПЛ,"Київська обл., Бородянський район, Шибене",84,2017-11-20,291,"Заробітна плата, премії","Заробітна плата, лікарняні, вагітності, відрядження, компенсації",123507,Центральний офіс,37279703,Україна,заробітна плата за 1 пол. листопада,26009580176,state,6762.00,Бардаш Олег Миколайович,,фізична особа
РПЛ,"Тернопільська область, Лановецький район, Ланівці",84,2017-11-20,291,"Заробітна плата, премії","Заробітна плата, лікарняні, вагітності, відрядження, компенсації",123506,Центральний офіс,37279703,Україна,заробітна плата за 1 пол. листопада,26009580176,state,2576.00,Барва Ярослав Ігорович,,фізична особа
РПЛ,"Київська обл., Обухівський район, Українка",84,2017-11-20,291,"Заробітна плата, премії","Заробітна плата, лікарняні, вагітності, відрядження, компенсації",123505,Центральний офіс,37279703,Україна,заробітна плата за 1 пол. листопада,26009580176,state,2576.00,Байбула Юрій Михайлович,,фізична особа
РПЛ,"Харківська область, Харків",84,2017-11-20,291,"Заробітна плата, премії","Заробітна плата, лікарняні, вагітності, відрядження, компенсації",123504,Центральний офіс,37279703,Україна,заробітна плата за 1 пол. листопада,26009580176,state,2576.00,Андрейченко Андрій Юрійович,,фізична особа
РПЛ,"Миколаївська область, Миколаїв",84,2017-11-20,291,"Заробітна плата, премії","Заробітна плата, лікарняні, вагітності, відрядження, компенсації",123503,Центральний офіс,37279703,Україна,заробітна плата за 1 пол. листопада,26009580176,state,2576.00,Алєксєєв Антон Леонідович,,фізична особа
РПЛ,"Київ, вулиця Багговутівська, 26",62,2017-11-20,288,Сплата ЄСВ,Податкові платежі,120928,Центральний офіс,37279703,Україна,Єдиний соціальний внесок нарахований на з/плату за 1пол.листопада,26009580176,state,109549.25,ДПІ у Шевченківському районі у м. Києві,38728711,юридична особа
РПЛ,"Київ, вулиця Академіка Туполєва, 28А",61,2017-11-20,290,Військовий збір,Податкові платежі,120854,Центральний офіс,37279703,Україна,Військовий збір нарахований на доходи громадян за 1пол.листопада,26009580176,state,7469.27,УДКСУ у Шевченківському районі м. Києва,37995466,юридична особа
РПЛ,"Київ, вулиця Академіка Туполєва, 28А",63,2017-11-20,289,Податок на доходи,Податкові платежі,120853,Центральний офіс,37279703,Україна,Податок на доходи фізичних осіб за 1пол.листопада,26009580176,state,89631.21,УДКСУ у Шевченківському районі м. Києва,37995466,юридична особа
РПЛ,"Київ, вулиця Миколи Лєскова, 9",70,2017-11-20,297,Банківські послуги,Інші витрати,120394,Центральний офіс,37279703,Україна,Комісія банку за зарахування коштів на СКР працівників,26009580176,state,2.57,"АТ ""Райффайзен банк Аваль""",14305909,юридична особа
РПЛ,"Київ, вулиця Миколи Лєскова, 9",70,2017-11-20,292,Банківські послуги,Інші витрати,120393,Центральний офіс,37279703,Україна,Комісія банку за зарахування коштів на СКР працівників,26009580176,state,770.39,"АТ ""Райффайзен банк Аваль""",14305909,юридична особа
РПЛ,"Київ, вулиця Івана Франка, 13",72,2017-11-17,285,"Придбання, ремонт офісної техніки та програмного забезпечення (Бухгалтерські програми, Ліга.закон, домени)",Придбання офісної техніки та програмного забезпечення,121037,Центральний офіс,37279703,Україна,"Роботи з обслуговування ком""ютерної техніки та локальної мережі",26009580176,state,6000.00,"ТОВ ""ОДІКОМ СЕРВІС""",40188920,юридична особа
РПЛ,"Київ, проспект Академіка Палладіна, 18/30",72,2017-11-17,283,"Придбання, ремонт офісної техніки та програмного забезпечення (Бухгалтерські програми, Ліга.закон, домени)",Придбання офісної техніки та програмного забезпечення,120957,Центральний офіс,37279703,Україна,Заправка картриджей,26009580176,state,3040.00,"ТОВ ""ЛКОМ""",39310603,юридична особа
РПЛ,"Київ, Кільцева дорога, 1Б",73,2017-11-17,284,Придбання меблів,Придбання меблів,120533,Центральний офіс,37279703,Україна,Крісло АЕРО пластик,26009580176,state,1798.98,"ТОВ ""Епіцентр К""",32490244,юридична особа
РПЛ,"Київ, вулиця Братиславська, 11",74,2017-11-17,287,"Придбання канцтоварів, паперу, інших предметів і матеріалів, а також госп товари",Придбання канцтоварів та госп. товарів,120531,Центральний офіс,37279703,Україна,Столове приладдя,26006580179,current,10041.58,"ТОВ ""Епіцентр К""",32490244,юридична особа
РПЛ,"Київ, вулиця Братиславська, 11",74,2017-11-17,286,"Придбання канцтоварів, паперу, інших предметів і матеріалів, а також госп товари",Придбання канцтоварів та госп. товарів,120530,Центральний офіс,37279703,Україна,Столове приладдя,26006580179,current,739.86,"ТОВ ""Епіцентр К""",32490244,юридична особа
РПЛ,"Вінницька область, Вінниця",84,2017-11-16,281,"Заробітна плата, премії","Заробітна плата, лікарняні, вагітності, відрядження, компенсації",123497,Центральний офіс,37279703,Україна,Заробітна плата за 1 пол. листопада,26009580176,state,3949.87,Гавриш Юлія Костянтинівна,,фізична особа
РПЛ,"Київ, вулиця Багговутівська, 26",62,2017-11-16,280,Сплата ЄСВ,Податкові платежі,120927,Центральний офіс,37279703,Україна,Єдиний соціальний внесок нарахований на з/плату,26009580176,state,1079.47,ДПІ у Шевченківському районі у м. Києві,38728711,юридична особа
РПЛ,"Київ, вулиця Академіка Туполєва, 28А",61,2017-11-16,279,Військовий збір,Податкові платежі,120852,Центральний офіс,37279703,Україна,Військовий збір нарахований на доходи громадян,26009580176,state,73.60,УДКСУ у Шевченківському районі м. Києва,37995466,юридична особа
РПЛ,"Київ, вулиця Академіка Туполєва, 28А",63,2017-11-16,278,Податок на доходи,Податкові платежі,120851,Центральний офіс,37279703,Україна,Податок на доходи фізичних осіб за 1 половину листоп.,26009580176,state,833.20,УДКСУ у Шевченківському районі м. Києва,37995466,юридична особа
РПЛ,"Київ, вулиця Миколи Лєскова, 9",70,2017-11-16,282,Банківські послуги,Інші витрати,120392,Центральний офіс,37279703,Україна,Комісія банку за зарахування коштів на СКР працівників,26009580176,state,7.90,"АТ ""Райффайзен банк Аваль""",14305909,юридична особа
РПЛ,"Полтавська область, Полтава",83,2017-11-15,276,"Виплати працівникам (не зарплата): лікарняні, вагітності, відрядження, компенсації ","Заробітна плата, лікарняні, вагітності, відрядження, компенсації",123496,Центральний офіс,37279703,Україна,Аванс на відрядження,26009580176,state,1916.78,Матяш Руслан Анатолійович,,фізична особа
РПЛ,"Київ, вулиця Миколи Лєскова, 9",70,2017-11-15,277,Банківські послуги,Інші витрати,120391,Центральний офіс,37279703,Україна,Комісія банку за зарахування коштів на СКР працівників,26009580176,state,3.83,"АТ ""Райффайзен банк Аваль""",14305909,юридична особа
РПЛ,Київ,84,2017-11-14,271,"Заробітна плата, премії","Заробітна плата, лікарняні, вагітності, відрядження, компенсації",123502,Центральний офіс,37279703,Україна,Заробітна плата за 1 пол. листопада,26009580176,state,2278.56,Бугаєв Сергій Володимирович,,фізична особа
РПЛ,Київ,84,2017-11-14,271,"Заробітна плата, премії","Заробітна плата, лікарняні, вагітності, відрядження, компенсації",123501,Центральний офіс,37279703,Україна,Заробітна плата за 1 пол. листопада,26009580176,state,2752.91,Поліщук Анна Валентинівна,,фізична особа
РПЛ,"Київська обл., Бородянський район, Шибене",77,2017-11-14,264,"Оренда, ремонт та обслуговування автомобілів","Оренда, ремонт та обслуговування автомобілів",123500,Центральний офіс,37279703,Україна,Оренда автомобіля,26009580176,state,20125.00,Бардаш Олег Миколайович,,фізична особа
РПЛ,"Київ, Кловський узвіз, 7, 39",82,2017-11-14,274,"Гонорари, в тому числі за надані консультаційні послуги","Гонорари, в тому числі за надані консультаційні послуги",121128,Центральний офіс,37279703,Україна,Нотаріальні послуги,26009580176,state,3500.00,Авершина І В,2684300807,фізична особа
РПЛ,"Київ, вулиця Багговутівська, 26",62,2017-11-14,270,Сплата ЄСВ,Податкові платежі,120926,Центральний офіс,37279703,Україна,Єдиний соціальний внесок нарахований на з/плату,26009580176,state,1375.06,ДПІ у Шевченківському районі у м. Києві,38728711,юридична особа
РПЛ,"Київ, вулиця Академіка Туполєва, 28А",63,2017-11-14,268,Податок на доходи,Податкові платежі,120850,Центральний офіс,37279703,Україна,Податок на доходи фізичних осіб за 1 половину листоп.,26009580176,state,1125.05,УДКСУ у Шевченківському районі м. Києва,37995466,юридична особа
РПЛ,"Київ, вулиця Академіка Туполєва, 28А",61,2017-11-14,269,Військовий збір,Податкові платежі,120849,Центральний офіс,37279703,Україна,Військовий збір нарахований на доходи громадян,26009580176,state,93.76,УДКСУ у Шевченківському районі м. Києва,37995466,юридична особа
РПЛ,"Київ, вулиця Академіка Туполєва, 28А",61,2017-11-14,263,Військовий збір,Податкові платежі,120848,Центральний офіс,37279703,Україна,Військовий збір нарахований на доходи громадян,26009580176,state,375.00,УДКСУ у Шевченківському районі м. Києва,37995466,юридична особа
РПЛ,"Київ, вулиця Академіка Туполєва, 28А",63,2017-11-14,262,Податок на доходи,Податкові платежі,120847,Центральний офіс,37279703,Україна,Податок з доходів громадян за оренду автомобіля,26009580176,state,4500.00,УДКСУ у Шевченківському районі м. Києва,37995466,юридична особа
РПЛ,"Київ, бульвар Дружби Народів, 8А",72,2017-11-14,275,"Придбання, ремонт офісної техніки та програмного забезпечення (Бухгалтерські програми, Ліга.закон, домени)",Придбання офісної техніки та програмного забезпечення,120723,Центральний офіс,37279703,Україна,Жорсткий диск,26009580176,state,1720.00,"ТОВ ""Розетка.УА""",37193071,юридична особа
РПЛ,"Вінницька область, Вінниця, вулиця Академіка Янгеля, 45",79,2017-11-14,265,"Оренда будинків і приміщень та експлуатаційні витрати (прибирання, страхування орендованих будинків, охорона, сигналізація, ремонт, вивіз сміття, тощо)",Оренда нерухомості,120521,Центральний офіс,37279703,Україна,Вода питна,26006580179,current,240.00,"ТОВ ""Еко-сфера""",32320552,юридична особа
РПЛ,"Полтавська область, Полтава, вулиця Європейська, 57",75,2017-11-14,273,Поштові послуги та поширення друкованих матеріалів,Поштові послуги та поширення друкованих матеріалів,120508,Центральний офіс,37279703,Україна,Організація перевезень відправлень,26009580176,state,947.50,"ТОВ ""Нова пошта""",31316718,юридична особа
РПЛ,"Київ, вулиця Антоновича, 103",76,2017-11-14,267,Послуги зв’язку,Послуги зв’язку,120427,Центральний офіс,37279703,Україна,"Абонентная плата, доступ до мобільного зв""язку за жовтень",26009580176,state,424.18,"ТОВ НВФ ""ВОЛЗ""",24251847,юридична особа
РПЛ,"Київ, вулиця Антоновича, 103",76,2017-11-14,266,Послуги зв’язку,Послуги зв’язку,120426,Центральний офіс,37279703,Україна,Телекомунікаційні послуги (послуги інтернет) за листопад,26009580176,state,1700.00,"ТОВ НВФ ""ВОЛЗ""",24251847,юридична особа
РПЛ,"Київ, вулиця Миколи Лєскова, 9",70,2017-11-14,272,Банківські послуги,Інші витрати,120390,Центральний офіс,37279703,Україна,Комісія банку за зарахування коштів на СКР працівників,26009580176,state,10.06,"АТ ""Райффайзен банк Аваль""",14305909,юридична особа
РПЛ,"Київська обл., Бориспіль",83,2017-11-13,255,"Виплати працівникам (не зарплата): лікарняні, вагітності, відрядження, компенсації ","Заробітна плата, лікарняні, вагітності, відрядження, компенсації",123495,Центральний офіс,37279703,Україна,Аванс на відрядження,26009580176,state,1394.66,Федун Юрій Степанович,,фізична особа
РПЛ,"Донецька область, Костянтинівський район, Кіндратівка",84,2017-11-13,260,"Заробітна плата, премії","Заробітна плата, лікарняні, вагітності, відрядження, компенсації",123494,Центральний офіс,37279703,Україна,Заробітна плата за 1 пол. листопада,26009580176,state,3857.82,Деревʼянко Олександра Олександрівна,,фізична особа
РПЛ,"Київ, вулиця Багговутівська, 26",62,2017-11-13,257,Сплата ЄСВ,Податкові платежі,120925,Центральний офіс,37279703,Україна,Єдиний соціальний внесок нарахований на з/плату,26009580176,state,1054.31,ДПІ у Шевченківському районі у м. Києві,38728711,юридична особа
РПЛ,"Київ, вулиця Академіка Туполєва, 28А",61,2017-11-13,259,Військовий збір,Податкові платежі,120846,Центральний офіс,37279703,Україна,Військовий збір нарахований на доходи громадян,26009580176,state,71.88,УДКСУ у Шевченківському районі м. Києва,37995466,юридична особа
РПЛ,"Київ, вулиця Академіка Туполєва, 28А",63,2017-11-13,258,Податок на доходи,Податкові платежі,120845,Центральний офіс,37279703,Україна,Податок на доходи фізичних осіб за 1 половину листоп.,26009580176,state,862.62,УДКСУ у Шевченківському районі м. Києва,37995466,юридична особа
РПЛ,"Київ, вулиця Миколи Лєскова, 9",70,2017-11-13,261,Банківські послуги,Інші витрати,120389,Центральний офіс,37279703,Україна,Комісія банку за зарахування коштів на СКР працівників,26009580176,state,7.72,"АТ ""Райффайзен банк Аваль""",14305909,юридична особа
РПЛ,"Київ, вулиця Миколи Лєскова, 9",70,2017-11-13,256,Банківські послуги,Інші витрати,120388,Центральний офіс,37279703,Україна,Комісія банку за зарахування коштів на СКР працівників,26009580176,state,2.79,"АТ ""Райффайзен банк Аваль""",14305909,юридична особа
РПЛ,"Київ, вулиця Івана Франка, 13",72,2017-11-10,254,"Придбання, ремонт офісної техніки та програмного забезпечення (Бухгалтерські програми, Ліга.закон, домени)",Придбання офісної техніки та програмного забезпечення,121036,Центральний офіс,37279703,Україна,Ремонт ноутбука,26009580176,state,850.00,"ТОВ ""ОДІКОМ СЕРВІС""",40188920,юридична особа
РПЛ,"Київ, вулиця Івана Франка, 13",72,2017-11-10,253,"Придбання, ремонт офісної техніки та програмного забезпечення (Бухгалтерські програми, Ліга.закон, домени)",Придбання офісної техніки та програмного забезпечення,121035,Центральний офіс,37279703,Україна,Точка доступу Aruba-125,26009580176,state,10640.00,"ТОВ ""ОДІКОМ СЕРВІС""",40188920,юридична особа
РПЛ,"Київ, вулиця Інститутська, 16",58,2017-11-10,252,"Виготовлення друкованих матеріалів (плакатів, листівок, буклетів та інших агітаційних матеріалів)",Друкована агітація,120361,Центральний офіс,37279703,Україна,Плакати,26009580176,state,865008.00,"ТОВ ""ПРІНТСТОР ГРУП""",21595836,юридична особа
РПЛ,"Тернопільська область, Збаразький район, Збараж",84,2017-11-09,250,"Заробітна плата, премії","Заробітна плата, лікарняні, вагітності, відрядження, компенсації",123499,Центральний офіс,37279703,Україна,заробітна плата за жовтень,26009580176,state,3434.67,Чернета Роман Іванович,,фізична особа
РПЛ,Київ,84,2017-11-09,250,"Заробітна плата, премії","Заробітна плата, лікарняні, вагітності, відрядження, компенсації",123498,Центральний офіс,37279703,Україна,Заробітна плата за жовтень,26009580176,state,1916.67,Нечипорук Олександр Григорович,,фізична особа
РПЛ,"Київ, вулиця Миколи Лєскова, 9",70,2017-11-09,251,Банківські послуги,Інші витрати,120387,Центральний офіс,37279703,Україна,Комісія банку за зарахування коштів на СКР працівників,26009580176,state,10.70,"АТ ""Райффайзен банк Аваль""",14305909,юридична особа
РПЛ,"Запорізька область, Гуляйпільський район, Гуляйполе, вулиця Українська",72,2017-11-08,248,"Придбання, ремонт офісної техніки та програмного забезпечення (Бухгалтерські програми, Ліга.закон, домени)",Придбання офісної техніки та програмного забезпечення,121184,Центральний офіс,37279703,Україна,Надання в строкове платне користування Віртуальної інф.,26009580176,state,1156.69,Сухобок Катерина Володимирівна,2974809628,фізична особа
РПЛ,"Запорізька область, Гуляйпільський район, Гуляйполе, вулиця Українська",72,2017-11-08,247,"Придбання, ремонт офісної техніки та програмного забезпечення (Бухгалтерські програми, Ліга.закон, домени)",Придбання офісної техніки та програмного забезпечення,121183,Центральний офіс,37279703,Україна,Надання в строкове платне користування Віртуальної інф.,26009580176,state,5189.49,Сухобок Катерина Володимирівна,2974809628,фізична особа
РПЛ,"Київ, Харківське шосе, 144Б, 208",74,2017-11-08,245,"Придбання канцтоварів, паперу, інших предметів і матеріалів, а також госп товари",Придбання канцтоварів та госп. товарів,120701,Центральний офіс,37279703,Україна,"Папір офісний, маркери, коректор, штемпельна фарба",26009580176,state,3292.74,"ПП ""Універсалторг-сервіс""",36214844,юридична особа
РПЛ,"Київ, Харківське шосе, 144Б, 208",74,2017-11-08,244,"Придбання канцтоварів, паперу, інших предметів і матеріалів, а також госп товари",Придбання канцтоварів та госп. товарів,120700,Центральний офіс,37279703,Україна,"Миючі засоби, пакетиЄ рушники листові та. Ін.",26009580176,state,3257.89,"ПП ""Універсалторг-сервіс""",36214844,юридична особа
РПЛ,"Київ, вулиця Дмитрівська, 46",54,2017-11-08,249,Виготовлення відеозаписів,Реклама (без класифікації),120602,Центральний офіс,37279703,Україна,Виготовлення інформаційного ролика,26009580176,state,120000.00,"ТОВ ""Файно-Коапані""",34494701,юридична особа
РПЛ,"Вінницька область, Вінниця, вулиця Академіка Янгеля, 45",79,2017-11-08,246,"Оренда будинків і приміщень та експлуатаційні витрати (прибирання, страхування орендованих будинків, охорона, сигналізація, ремонт, вивіз сміття, тощо)",Оренда нерухомості,120520,Центральний офіс,37279703,Україна,Вода питна,26006580179,current,240.00,"ТОВ ""Еко-сфера""",32320552,юридична особа
РПЛ,"Закарпатська область, Ужгород",84,2017-11-07,242,"Заробітна плата, премії","Заробітна плата, лікарняні, вагітності, відрядження, компенсації",123493,Центральний офіс,37279703,Україна,Заробітна плата за 1 пол. листопада,26009580176,state,3610.02,Андрушко Кветослава Антонівна,,фізична особа
РПЛ,"Полтавська область, Полтава",84,2017-11-07,242,"Заробітна плата, премії","Заробітна плата, лікарняні, вагітності, відрядження, компенсації",123492,Центральний офіс,37279703,Україна,Заробітна плата за 1 пол. листопада,26009580176,state,5181.54,Кіріченко Артем Андрійович,,фізична особа
РПЛ,"Київ, вулиця Багговутівська, 26",62,2017-11-07,241,Сплата ЄСВ,Податкові платежі,120924,Центральний офіс,37279703,Україна,Єдиний соціальний внесок нарахований на з/плату,26009580176,state,2402.66,ДПІ у Шевченківському районі у м. Києві,38728711,юридична особа
РПЛ,"Київ, вулиця Академіка Туполєва, 28А",61,2017-11-07,240,Військовий збір,Податкові платежі,120844,Центральний офіс,37279703,Україна,Військовий збір нарахований на доходи громадян,26009580176,state,163.82,УДКСУ у Шевченківському районі м. Києва,37995466,юридична особа
РПЛ,"Київ, вулиця Академіка Туполєва, 28А",63,2017-11-07,239,Податок на доходи,Податкові платежі,120843,Центральний офіс,37279703,Україна,Податок на доходи фізичних осіб,26009580176,state,1965.82,УДКСУ у Шевченківському районі м. Києва,37995466,юридична особа
РПЛ,"Київ, вулиця Миколи Лєскова, 9",70,2017-11-07,243,Банківські послуги,Інші витрати,120386,Центральний офіс,37279703,Україна,Комісія банку за зарахування коштів на СКР працівників,26009580176,state,17.58,"АТ ""Райффайзен банк Аваль""",14305909,юридична особа
РПЛ,"Київ, вулиця Велика Васильківська, 8",74,2017-11-06,237,"Придбання канцтоварів, паперу, інших предметів і матеріалів, а також госп товари",Придбання канцтоварів та госп. товарів,120670,Центральний офіс,37279703,Україна,Конверти,26009580176,state,732.90,"ТОВ ""Укрбланковидав""",36002620,юридична особа
РПЛ,"Дніпропетровська область, Дніпро́, вулиця Калинова, 43",79,2017-11-06,236,"Оренда будинків і приміщень та експлуатаційні витрати (прибирання, страхування орендованих будинків, охорона, сигналізація, ремонт, вивіз сміття, тощо)",Оренда нерухомості,120624,Центральний офіс,37279703,Україна,"Оренда нежитлового прим., компенсація витрат з утр. Буд. І споруд",26009580176,state,115839.22,"ТОВ ""Наутилус-Інвест 2006""",34823774,юридична особа
РПЛ,"Полтавська область, Полтава, вулиця Європейська, 57",75,2017-11-06,238,Поштові послуги та поширення друкованих матеріалів,Поштові послуги та поширення друкованих матеріалів,120507,Центральний офіс,37279703,Україна,Організація перевезень відправлень,26009580176,state,9826.50,"ТОВ ""Нова пошта""",31316718,юридична особа
РПЛ,Київ,84,2017-11-03,231,"Заробітна плата, премії","Заробітна плата, лікарняні, вагітності, відрядження, компенсації",123491,Центральний офіс,37279703,Україна,заробітна плата за жовтень,26009580176,state,2453.34,Нагорська Марина Володимирівна,,фізична особа
РПЛ,Київ,84,2017-11-03,229,"Заробітна плата, премії","Заробітна плата, лікарняні, вагітності, відрядження, компенсації",123490,Центральний офіс,37279703,Україна,заробітна плата за жовтень,26009580176,state,13282.50,Мєдвєдєв Олександр Леонідович,,фізична особа
РПЛ,"Одеська область, Одеса",84,2017-11-03,230,"Заробітна плата, премії","Заробітна плата, лікарняні, вагітності, відрядження, компенсації",123489,Центральний офіс,37279703,Україна,заробітна плата за жовтень,26009580176,state,5152.00,Щербініна Валентина Леонідівна,,фізична особа
РПЛ,Київ,84,2017-11-03,227,"Заробітна плата, премії","Заробітна плата, лікарняні, вагітності, відрядження, компенсації",123488,Центральний офіс,37279703,Україна,заробітна плата за жовтень,26009580176,state,7043.75,Яковлєва Вероніка Павлівна,,фізична особа
РПЛ,Київ,84,2017-11-03,227,"Заробітна плата, премії","Заробітна плата, лікарняні, вагітності, відрядження, компенсації",123487,Центральний офіс,37279703,Україна,заробітна плата за жовтень,26009580176,state,9418.51,Якименко Оксана Сергіївна,,фізична особа
РПЛ,"Дніпропетровська область, Дніпро́",84,2017-11-03,227,"Заробітна плата, премії","Заробітна плата, лікарняні, вагітності, відрядження, компенсації",123486,Центральний офіс,37279703,Україна,заробітна плата за жовтень,26009580176,state,5152.00,Штогрін Тетяна Миколаївна,,фізична особа
РПЛ,Київ,84,2017-11-03,227,"Заробітна плата, премії","Заробітна плата, лікарняні, вагітності, відрядження, компенсації",123485,Центральний офіс,37279703,Україна,заробітна плата за жовтень,26009580176,state,5474.00,Шищенко Наталка Олександрівна,,фізична особа
РПЛ,Київ,84,2017-11-03,227,"Заробітна плата, премії","Заробітна плата, лікарняні, вагітності, відрядження, компенсації",123484,Центральний офіс,37279703,Україна,заробітна плата за жовтень,26009580176,state,13443.50,Шаян Євген Леонідович,,фізична особа
РПЛ,"Донецька область, Донецьк",84,2017-11-03,227,"Заробітна плата, премії","Заробітна плата, лікарняні, вагітності, відрядження, компенсації",123483,Центральний офіс,37279703,Україна,заробітна плата за жовтень,26009580176,state,9955.17,Чухляк Ольга Олегівна,,фізична особа
РПЛ,"Вінницька область, Вінниця",84,2017-11-03,227,"Заробітна плата, премії","Заробітна плата, лікарняні, вагітності, відрядження, компенсації",123482,Центральний офіс,37279703,Україна,заробітна плата за жовтень,26009580176,state,5152.00,Чонка Софія Миколаївна,,фізична особа
РПЛ,"Дніпропетровська область, Синельникове",84,2017-11-03,227,"Заробітна плата, премії","Заробітна плата, лікарняні, вагітності, відрядження, компенсації",123481,Центральний офіс,37279703,Україна,заробітна плата за жовтень,26009580176,state,5152.00,Чернова Катерина Валеріївна,,фізична особа
РПЛ,"Житомирська область, Житомир",84,2017-11-03,227,"Заробітна плата, премії","Заробітна плата, лікарняні, вагітності, відрядження, компенсації",123480,Центральний офіс,37279703,Україна,заробітна плата за жовтень,26009580176,state,5152.00,Цивінський Павло Васильович,,фізична особа
РПЛ,"Дніпропетровська область, Дніпро́",84,2017-11-03,227,"Заробітна плата, премії","Заробітна плата, лікарняні, вагітності, відрядження, компенсації",123479,Центральний офіс,37279703,Україна,заробітна плата за жовтень,26009580176,state,5152.00,Цаплін Євген Костянтинович,,фізична особа
РПЛ,"Запорізька область, Запоріжжя",84,2017-11-03,227,"Заробітна плата, премії","Заробітна плата, лікарняні, вагітності, відрядження, компенсації",123478,Центральний офіс,37279703,Україна,заробітна плата за жовтень,26009580176,state,5152.00,Хохлов Юрій Станіславович,,фізична особа
РПЛ,Київ,84,2017-11-03,227,"Заробітна плата, премії","Заробітна плата, лікарняні, вагітності, відрядження, компенсації",123477,Центральний офіс,37279703,Україна,заробітна плата за жовтень,26009580176,state,5152.00,Хоменко Клим Миколайович,,фізична особа
РПЛ,"Київська обл., Бориспіль",84,2017-11-03,227,"Заробітна плата, премії","Заробітна плата, лікарняні, вагітності, відрядження, компенсації",123476,Центральний офіс,37279703,Україна,заробітна плата за жовтень,26009580176,state,13202.00,Федун Юрій Степанович,,фізична особа
РПЛ,"Вінницька область, Вінниця",84,2017-11-03,227,"Заробітна плата, премії","Заробітна плата, лікарняні, вагітності, відрядження, компенсації",123475,Центральний офіс,37279703,Україна,заробітна плата за жовтень,26009580176,state,5152.00,Федорова Ольга Іванівна,,фізична особа
РПЛ,"Чернігівська область, Чернігів",84,2017-11-03,227,"Заробітна плата, премії","Заробітна плата, лікарняні, вагітності, відрядження, компенсації",123474,Центральний офіс,37279703,Україна,заробітна плата за жовтень,26009580176,state,5152.00,Урожай Аліна Вікторівна,,фізична особа
РПЛ,"Луганська область, Борівське",84,2017-11-03,227,"Заробітна плата, премії","Заробітна плата, лікарняні, вагітності, відрядження, компенсації",123473,Центральний офіс,37279703,Україна,заробітна плата за жовтень,26009580176,state,5152.00,Троценко Ольга Анатоліївна,,фізична особа
РПЛ,"Волинська область, Ратнівський район, Ратне",84,2017-11-03,227,"Заробітна плата, премії","Заробітна плата, лікарняні, вагітності, відрядження, компенсації",123472,Центральний офіс,37279703,Україна,заробітна плата за жовтень,26009580176,state,4661.33,Трикош Ірина Олександрівна,,фізична особа
РПЛ,Київ,84,2017-11-03,227,"Заробітна плата, премії","Заробітна плата, лікарняні, вагітності, відрядження, компенсації",123471,Центральний офіс,37279703,Україна,заробітна плата за жовтень,26009580176,state,14087.50,Торговець Юлія Василівна,,фізична особа
РПЛ,Київ,84,2017-11-03,227,"Заробітна плата, премії","Заробітна плата, лікарняні, вагітності, відрядження, компенсації",123470,Центральний офіс,37279703,Україна,заробітна плата за жовтень,26009580176,state,2576.00,Ткаченко Катерина Станіславівна,,фізична особа
РПЛ,"Київська обл., Володарський район, Володарка",84,2017-11-03,227,"Заробітна плата, премії","Заробітна плата, лікарняні, вагітності, відрядження, компенсації",123469,Центральний офіс,37279703,Україна,заробітна плата за жовтень,26009580176,state,5152.00,Тихонова Світлана Ігорівна,,фізична особа
РПЛ,"Сумська область, Сумський район, Суми",84,2017-11-03,227,"Заробітна плата, премії","Заробітна плата, лікарняні, вагітності, відрядження, компенсації",123468,Центральний офіс,37279703,Україна,заробітна плата за жовтень,26009580176,state,2576.00,Тихенко Володимир Сергійович,,фізична особа
РПЛ,"Чернігівська область, Корюківський район, Корюківка",84,2017-11-03,227,"Заробітна плата, премії","Заробітна плата, лікарняні, вагітності, відрядження, компенсації",123467,Центральний офіс,37279703,Україна,заробітна плата за жовтень,26009580176,state,9418.50,Стукало Світлана Анатоліївна,,фізична особа
РПЛ,"Луганська область, Луганськ",84,2017-11-03,227,"Заробітна плата, премії","Заробітна плата, лікарняні, вагітності, відрядження, компенсації",123466,Центральний офіс,37279703,Україна,заробітна плата за жовтень,26009580176,state,5152.00,Старицький Владислав Олександрович,,фізична особа
РПЛ,"Чернігівська область, Чернігів",84,2017-11-03,227,"Заробітна плата, премії","Заробітна плата, лікарняні, вагітності, відрядження, компенсації",123465,Центральний офіс,37279703,Україна,заробітна плата за жовтень,26009580176,state,13202.00,Соколова Анжеліка Артурівна,,фізична особа
РПЛ,"Львівська область, Городоцький район, Городок",84,2017-11-03,227,"Заробітна плата, премії","Заробітна плата, лікарняні, вагітності, відрядження, компенсації",123464,Центральний офіс,37279703,Україна,заробітна плата за жовтень,26009580176,state,5152.00,Снігур Христина Іванівна,,фізична особа
РПЛ,"Сумська область, Сумський район, Суми",84,2017-11-03,227,"Заробітна плата, премії","Заробітна плата, лікарняні, вагітності, відрядження, компенсації",123463,Центральний офіс,37279703,Україна,заробітна плата за жовтень,26009580176,state,2943.99,Скляров Олександр Павлович,,фізична особа
РПЛ,"Черкаська область, Черкаси",84,2017-11-03,227,"Заробітна плата, премії","Заробітна плата, лікарняні, вагітності, відрядження, компенсації",123462,Центральний офіс,37279703,Україна,заробітна плата за жовтень,26009580176,state,5152.00,Сичов Ігор Григорович,,фізична особа
РПЛ,"Сумська область, Сумський район, Суми",84,2017-11-03,227,"Заробітна плата, премії","Заробітна плата, лікарняні, вагітності, відрядження, компенсації",123461,Центральний офіс,37279703,Україна,заробітна плата за жовтень,26009580176,state,2576.00,Сидоренко Дарʼя Олександрівна,,фізична особа
РПЛ,"Львівська область, Львів",84,2017-11-03,227,"Заробітна плата, премії","Заробітна плата, лікарняні, вагітності, відрядження, компенсації",123460,Центральний офіс,37279703,Україна,заробітна плата за жовтень,26009580176,state,2576.00,Сидор Адріана Ігорівна,,фізична особа
РПЛ,"Волинська область, Луцьк",84,2017-11-03,227,"Заробітна плата, премії","Заробітна плата, лікарняні, вагітності, відрядження, компенсації",123459,Центральний офіс,37279703,Україна,заробітна плата за жовтень,26009580176,state,5152.00,Семчук Юрій Анатолійович,,фізична особа
РПЛ,"Тернопільська область, Тернопіль",84,2017-11-03,227,"Заробітна плата, премії","Заробітна плата, лікарняні, вагітності, відрядження, компенсації",123458,Центральний офіс,37279703,Україна,заробітна плата за жовтень,26009580176,state,1919.01,Сербенюк Андрій Альфредович,,фізична особа
РПЛ,"Київ, вулиця Максима Берлинського, 6, 14",84,2017-11-03,227,"Заробітна плата, премії","Заробітна плата, лікарняні, вагітності, відрядження, компенсації",123457,Центральний офіс,37279703,Україна,заробітна плата за жовтень,26009580176,state,5152.00,Самсонова Аліна Вікторівна,2947606863,фізична особа
РПЛ,"Закарпатська область, Ужгород",84,2017-11-03,227,"Заробітна плата, премії","Заробітна плата, лікарняні, вагітності, відрядження, компенсації",123456,Центральний офіс,37279703,Україна,заробітна плата за жовтень,26009580176,state,5152.00,Рудман Олеся Іванівна,,фізична особа
РПЛ,"Луганська область, Сєвєродонецьк",84,2017-11-03,227,"Заробітна плата, премії","Заробітна плата, лікарняні, вагітності, відрядження, компенсації",123455,Центральний офіс,37279703,Україна,заробітна плата за жовтень,26009580176,state,5186.93,Руденко Ганна Володимирівна,,фізична особа
РПЛ,"Дніпропетровська область, Дніпро́",84,2017-11-03,227,"Заробітна плата, премії","Заробітна плата, лікарняні, вагітності, відрядження, компенсації",123454,Центральний офіс,37279703,Україна,заробітна плата за жовтень,26009580176,state,5152.00,Ревенко Юлія Сергіївна,,фізична особа
РПЛ,"Чернівецька область, Чернівці",84,2017-11-03,227,"Заробітна плата, премії","Заробітна плата, лікарняні, вагітності, відрядження, компенсації",123453,Центральний офіс,37279703,Україна,заробітна плата за жовтень,26009580176,state,2576.00,Пузема Катерина Володимирівна,,фізична особа
РПЛ,Київ,84,2017-11-03,227,"Заробітна плата, премії","Заробітна плата, лікарняні, вагітності, відрядження, компенсації",123452,Центральний офіс,37279703,Україна,заробітна плата за жовтень,26009580176,state,13202.00,Пугачова Ярослава Павлівна,,фізична особа
РПЛ,"Хмельницька область, Красилівський район, Красилів",84,2017-11-03,227,"Заробітна плата, премії","Заробітна плата, лікарняні, вагітності, відрядження, компенсації",123451,Центральний офіс,37279703,Україна,заробітна плата за жовтень,26009580176,state,2576.00,Процюк Наталія Юріївна,,фізична особа
РПЛ,"Київська обл., Бориспіль",84,2017-11-03,227,"Заробітна плата, премії","Заробітна плата, лікарняні, вагітності, відрядження, компенсації",123450,Центральний офіс,37279703,Україна,заробітна плата за жовтень,26009580176,state,8994.17,Проценко Володимир Володимирович,,фізична особа
РПЛ,Київ,84,2017-11-03,227,"Заробітна плата, премії","Заробітна плата, лікарняні, вагітності, відрядження, компенсації",123449,Центральний офіс,37279703,Україна,заробітна плата за жовтень,26009580176,state,6581.84,Приміський Олег Владиславович,,фізична особа
РПЛ,"Київська обл., Обухівський район, Обухів",84,2017-11-03,227,"Заробітна плата, премії","Заробітна плата, лікарняні, вагітності, відрядження, компенсації",123448,Центральний офіс,37279703,Україна,заробітна плата за жовтень,26009580176,state,5152.00,Потеряйко Вадим Юрійович,,фізична особа
РПЛ,"Закарпатська область, Ужгород",84,2017-11-03,227,"Заробітна плата, премії","Заробітна плата, лікарняні, вагітності, відрядження, компенсації",123447,Центральний офіс,37279703,Україна,заробітна плата за жовтень,26009580176,state,2576.00,Попадюк Надія Іванівна,,фізична особа
РПЛ,Київ,84,2017-11-03,227,"Заробітна плата, премії","Заробітна плата, лікарняні, вагітності, відрядження, компенсації",123446,Центральний офіс,37279703,Україна,заробітна плата за жовтень,26009580176,state,12155.50,Поліщук Анна Валентинівна,,фізична особа
РПЛ,"Сумська область, Сумський район, Суми",84,2017-11-03,227,"Заробітна плата, премії","Заробітна плата, лікарняні, вагітності, відрядження, компенсації",123445,Центральний офіс,37279703,Україна,заробітна плата за жовтень,26009580176,state,1717.34,Пінчук Юрій Петрович,,фізична особа
РПЛ,"Одеська область, Одеса",84,2017-11-03,227,"Заробітна плата, премії","Заробітна плата, лікарняні, вагітності, відрядження, компенсації",123444,Центральний офіс,37279703,Україна,заробітна плата за жовтень,26009580176,state,5152.00,Перчеклій Микола Васильович,,фізична особа
РПЛ,Київ,84,2017-11-03,227,"Заробітна плата, премії","Заробітна плата, лікарняні, вагітності, відрядження, компенсації",123443,Центральний офіс,37279703,Україна,заробітна плата за жовтень,26009580176,state,5152.00,Пархоменко Аліна Петрівна,,фізична особа
РПЛ,Київ,84,2017-11-03,227,"Заробітна плата, премії","Заробітна плата, лікарняні, вагітності, відрядження, компенсації",123442,Центральний офіс,37279703,Україна,заробітна плата за жовтень,26009580176,state,5152.00,Парака Ярослава Володимирівна,,фізична особа
РПЛ,"Київська обл., Васильків",84,2017-11-03,227,"Заробітна плата, премії","Заробітна плата, лікарняні, вагітності, відрядження, компенсації",123441,Центральний офіс,37279703,Україна,заробітна плата за жовтень,26009580176,state,12155.50,Падурець Людмила Володимирівна,,фізична особа
РПЛ,"Київська обл., Біла Церква",84,2017-11-03,227,"Заробітна плата, премії","Заробітна плата, лікарняні, вагітності, відрядження, компенсації",123440,Центральний офіс,37279703,Україна,заробітна плата за жовтень,26009580176,state,3823.75,Остапенко Сергій Анатолійович,,фізична особа
РПЛ,"Харківська область, Харків",84,2017-11-03,227,"Заробітна плата, премії","Заробітна плата, лікарняні, вагітності, відрядження, компенсації",123439,Центральний офіс,37279703,Україна,заробітна плата за жовтень,26009580176,state,5152.00,Олійник Костянтин Михайлович,,фізична особа
РПЛ,"Чернігівська область, Чернігів",84,2017-11-03,227,"Заробітна плата, премії","Заробітна плата, лікарняні, вагітності, відрядження, компенсації",123438,Центральний офіс,37279703,Україна,заробітна плата за жовтень,26009580176,state,5152.00,Олексієнко Ярослав Олександрович,,фізична особа
РПЛ,Київ,84,2017-11-03,227,"Заробітна плата, премії","Заробітна плата, лікарняні, вагітності, відрядження, компенсації",123437,Центральний офіс,37279703,Україна,заробітна плата за жовтень,26009580176,state,10787.00,Новохацька Олександра Вікторівна,,фізична особа
РПЛ,"Тернопільська область, Тернопіль",84,2017-11-03,227,"Заробітна плата, премії","Заробітна плата, лікарняні, вагітності, відрядження, компенсації",123436,Центральний офіс,37279703,Україна,заробітна плата за жовтень,26009580176,state,3434.67,Німко Олег Васильович,,фізична особа
РПЛ,"Рівненська область, Рівне",84,2017-11-03,227,"Заробітна плата, премії","Заробітна плата, лікарняні, вагітності, відрядження, компенсації",123435,Центральний офіс,37279703,Україна,заробітна плата за жовтень,26009580176,state,5152.00,Назарчук Юлія Юріївна,,фізична особа
РПЛ,"Запорізька область, Запоріжжя",84,2017-11-03,227,"Заробітна плата, премії","Заробітна плата, лікарняні, вагітності, відрядження, компенсації",123434,Центральний офіс,37279703,Україна,заробітна плата за жовтень,26009580176,state,5152.00,Надолинський Ростислав Федорович,,фізична особа
РПЛ,"Полтавська область, Лубенський район, Новооріхівка",84,2017-11-03,227,"Заробітна плата, премії","Заробітна плата, лікарняні, вагітності, відрядження, компенсації",123433,Центральний офіс,37279703,Україна,заробітна плата за жовтень,26009580176,state,2576.00,Моренко Лідія Сергіївна,,фізична особа
